{"text_format":"1","workbook":"xlsx","n_sheets":4,"sheets":["Tabelle1","SSI","Translations","List"],"not_rendered":{"charts":0,"images":2,"macros":1,"external_links":1,"defined_names":15,"comments":0,"pivot_tables":0},"unopened":[],"bounds":{"document_bytes":16777216,"sheet_cells":100000,"rows_first":2000,"rows_last":500,"rows_between":2000,"halvings":0,"cell_chars":16384,"cell_head_chars":4096},"cells_cut":0,"cells_raw":0,"read":"whole","date_system":"1900"}

{"sheet":"Tabelle1","index":0,"n_rows":17,"n_cols":5,"rows_kept":17,"cut":false,"hidden":false,"merged":[[5,1,10,1],[5,4,10,4]]}
[]
[]
[]
["Important notes: ","The macros have to be active! In addition, if you create a new sheet, the first two rows of the new sheet need to be disabled.",null,"Wichtige Hinweise:","Die Makros müssen aktiviert sein! Zusätzlich müssen beim Erstellen eines neuen Arbeitsblattes die ersten beiden Zeilen gesperrt werden."]
[]
["Description:","To generate the header and footer you have to fill in all the information according the GATE info into the fields below (DocID, Published and optional Old_DocID). Then click on the Generate button. Whenever you create a new work sheet, you have to click on the button to generate the header & footer automatically. The document number will then be adopted into the footer. ",null,"Beschreibung:","Um die Kopf- und Fusszeilen automatisch zu generieren, müssen alle unterstehenden Felder entsprechend der Angaben im GATE ausgefüllt sein (DocID, Published und optional Old_DocID). Der Button \"Generate Header&Footer\" ist der Auslöser. Sobald ein neues Arbeitsblatt hinzugefügt wird, muss dieser Vorgang wiederholt werden. Die Dokumentennummern wird dabei in die Fußzeile übernommen."]
[]
[]
[]
[]
[]
[]
["Title:","Template Excel Title abc"]
["DocID:","SD_24739"]
["Old_DocID:","SD_20167"]
["Published:","2024-10-14"]
["Version:",3]

{"sheet":"SSI","index":1,"n_rows":204,"n_cols":8,"rows_kept":204,"cut":false,"hidden":false,"merged":[[126,5,126,6],[202,2,202,3],[202,5,202,6],[190,2,191,3],[190,5,191,6],[172,2,172,3],[178,2,180,6],[169,5,169,6],[5,2,5,6],[8,3,8,5],[9,3,9,5],[10,3,10,5],[11,3,11,5],[12,3,12,5],[57,3,57,4],[45,2,45,3],[45,4,45,5],[46,2,46,3],[46,4,46,5],[50,5,50,6],[22,3,22,5],[23,3,23,5],[31,3,31,6],[19,3,19,5],[20,2,20,5],[21,3,21,5],[13,3,13,5],[14,3,14,5],[15,3,15,5],[16,3,16,5],[17,3,17,5],[18,3,18,5],[74,3,74,4],[75,3,75,4],[76,3,76,4],[77,3,77,4],[83,3,83,5],[81,2,81,6],[43,2,43,4],[64,3,64,4],[65,3,65,4],[69,3,69,4],[70,3,70,4],[71,3,71,4],[73,3,73,4],[58,3,58,4],[59,3,59,4],[60,3,60,4],[61,3,61,4],[62,3,62,4],[63,3,63,4],[52,3,52,4],[52,5,52,6],[54,3,54,4],[55,3,55,4],[56,3,56,4],[92,2,92,5],[93,2,93,5],[94,2,94,5],[95,2,95,5],[96,2,96,5],[97,2,97,5],[86,2,86,5],[87,2,87,5],[88,2,88,5],[89,2,89,5],[90,2,90,5],[91,2,91,5],[104,2,104,5],[105,2,105,5],[106,2,106,5],[107,2,107,5],[108,2,108,5],[109,2,109,5],[98,2,98,5],[99,2,99,5],[100,2,100,5],[101,2,101,5],[102,2,102,5],[103,2,103,5],[120,5,120,6],[121,5,121,6],[122,5,122,6],[123,5,123,6],[124,5,124,6],[125,5,125,6],[110,2,110,5],[111,2,111,5],[112,2,112,5],[113,2,113,5],[114,2,114,5],[116,2,116,6],[119,5,119,6],[141,3,141,4],[142,3,142,4],[143,3,143,4],[144,3,144,4],[145,3,145,4],[146,3,146,4],[127,5,127,6],[129,3,129,6],[131,2,133,6],[137,3,137,6],[140,3,140,4],[127,2,128,4],[167,3,167,4],[172,5,172,6],[164,3,164,5],[165,3,165,5],[147,3,147,4],[148,3,148,4],[149,3,149,4],[150,3,150,4],[151,3,151,4],[154,3,154,6],[197,2,197,3],[197,5,197,6],[200,2,200,3],[200,5,200,6],[175,2,175,6],[184,2,184,3],[184,5,184,6],[187,2,187,3],[187,5,187,6],[176,2,176,6]]}
[]
[null,null,null,null,"Note: Kindly fill the form in English only"]
[]
[null,null,null,"Language Selection:"]
[]
[null,0,{"$f":"IF(Translations!A2=1,VLOOKUP(SSI!B6,Translations!B:I,2,0),IF(Translations!A2=2,VLOOKUP(SSI!B6,Translations!B:I,3,0),IF(Translations!A2=3,VLOOKUP(SSI!B6,Translations!B:I,4,0),IF(Translations!A2=4,VLOOKUP(SSI!B6,Translations!B:I,5,0),IF(Translations!A2=5,VLOOKUP(SSI!B6,Translations!B:I,6,0), IF(Translations!A2=6, VLOOKUP(SSI!B6,Translations!B:I,7,0), VLOOKUP(SSI!B6,Translations!B:I,8,0)))))))","v":"Oerlikon Supplier Self Information "}]
[]
[null,1,{"$f":"IF(Translations!A2=1, VLOOKUP(SSI!B8,Translations!B:C,2,0), IF(Translations!A2=2, VLOOKUP(SSI!B8,Translations!B:D,3,0), IF(Translations!A2=3, VLOOKUP(SSI!B8,Translations!B:E,4,0), IF(Translations!A2=4, VLOOKUP(SSI!B8,Translations!B:F,5,0), IF(Translations!A2=5, VLOOKUP(SSI!B8,Translations!B:I,6,0),IF(Translations!A2=6, VLOOKUP(SSI!B8,Translations!B:I,7,0), VLOOKUP(SSI!B8,Translations!B:I,8,0)))))))","v":"1.    Company Information"}]
[null,1.01,{"$f":"IF(Translations!A2=1,VLOOKUP(SSI!B9,Translations!B:C,2,0),IF(Translations!A2=2,VLOOKUP(SSI!B9,Translations!B:D,3,0),IF(Translations!A2=3,VLOOKUP(SSI!B9,Translations!B:E,4,0),IF(Translations!A2=4,VLOOKUP(SSI!B9,Translations!B:F,5,0),IF(Translations!A2=5,VLOOKUP(SSI!B9,Translations!B:I,6,0), IF(Translations!A2=6,VLOOKUP(SSI!B9,Translations!B:I,7,0), VLOOKUP(SSI!B9,Translations!B:I,8,0)))))))","v":"Company Name"}]
[null,1.02,{"$f":"IF(Translations!A2=1,VLOOKUP(SSI!B10,Translations!B:C,2,0),IF(Translations!A2=2,VLOOKUP(SSI!B10,Translations!B:D,3,0),IF(Translations!A2=3,VLOOKUP(SSI!B10,Translations!B:E,4,0),IF(Translations!A2=4,VLOOKUP(SSI!B10,Translations!B:F,5,0),IF(Translations!A2=5,VLOOKUP(SSI!B10,Translations!B:I,6,0), IF(Translations!A2=6,VLOOKUP(SSI!B10,Translations!B:I,7,0),VLOOKUP(SSI!B10,Translations!B:I,8,0)))))))","v":"Address"}]
[null,1.03,{"$f":"IF(Translations!A2=1,VLOOKUP(SSI!B11,Translations!B:C,2,0),IF(Translations!A2=2,VLOOKUP(SSI!B11,Translations!B:D,3,0),IF(Translations!A2=3,VLOOKUP(SSI!B11,Translations!B:E,4,0),IF(Translations!A2=4,VLOOKUP(SSI!B11,Translations!B:F,5,0),IF(Translations!A2=5,VLOOKUP(SSI!B11,Translations!B:I,6,0),IF(Translations!A2=6,VLOOKUP(SSI!B11,Translations!B:I,7,0),VLOOKUP(SSI!B11,Translations!B:I,8,0)))))))","v":"Address Supplement"},"                                     "]
[null,1.04,{"$f":"IF(Translations!A2=1, VLOOKUP(SSI!B12,Translations!B:C,2,0), IF(Translations!A2=2, VLOOKUP(SSI!B12,Translations!B:D,3,0), IF(Translations!A2=3, VLOOKUP(SSI!B12,Translations!B:E,4,0), IF(Translations!A2=4, VLOOKUP(SSI!B12,Translations!B:F,5,0),  IF(Translations!A2=5, VLOOKUP(SSI!B12,Translations!B:I,6,0), IF(Translations!A2=6, VLOOKUP(SSI!B12,Translations!B:I,7,0),VLOOKUP(SSI!B12,Translations!B:I,8,0)))))))","v":"Postal Code / City"},"                                       "]
[null,1.05,{"$f":"IF(Translations!A2=1,VLOOKUP(SSI!B13,Translations!B:C,2,0),IF(Translations!A2=2,VLOOKUP(SSI!B13,Translations!B:D,3,0),IF(Translations!A2=3,VLOOKUP(SSI!B13,Translations!B:E,4,0),IF(Translations!A2=4,VLOOKUP(SSI!B13,Translations!B:F,5,0),IF(Translations!A2=5,VLOOKUP(SSI!B13,Translations!B:I,6,0),IF(Translations!A2=6,VLOOKUP(SSI!B13,Translations!B:I,7,0),VLOOKUP(SSI!B13,Translations!B:I,8,0)))))))","v":"Country"}]
[null,1.06,{"$f":"IF(Translations!A2=1, VLOOKUP(SSI!B14,Translations!B:C,2,0), IF(Translations!A2=2, VLOOKUP(SSI!B14,Translations!B:D,3,0), IF(Translations!A2=3, VLOOKUP(SSI!B14,Translations!B:E,4,0), IF(Translations!A2=4, VLOOKUP(SSI!B14,Translations!B:F,5,0), IF(Translations!A2=5, VLOOKUP(SSI!B14,Translations!B:I,6,0),IF(Translations!A2=6, VLOOKUP(SSI!B14,Translations!B:I,7,0), VLOOKUP(SSI!B14,Translations!B:I,8,0)))))))","v":"Region / State"},"                                                             "]
[null,1.07,{"$f":"IF(Translations!A2=1, VLOOKUP(SSI!B15,Translations!B:C,2,0), IF(Translations!A2=2, VLOOKUP(SSI!B15,Translations!B:D,3,0), IF(Translations!A2=3, VLOOKUP(SSI!B15,Translations!B:E,4,0), IF(Translations!A2=4, VLOOKUP(SSI!B15,Translations!B:F,5,0), IF(Translations!A2=5, VLOOKUP(SSI!B15,Translations!B:I,6,0),IF(Translations!A2=6, VLOOKUP(SSI!B15,Translations!B:I,7,0), VLOOKUP(SSI!B15,Translations!B:I,8,0)))))))","v":"Phone Number"}]
[null,1.08,{"$f":"IF(Translations!A2=1, VLOOKUP(SSI!B16,Translations!B:C,2,0), IF(Translations!A2=2, VLOOKUP(SSI!B16,Translations!B:D,3,0), IF(Translations!A2=3, VLOOKUP(SSI!B16,Translations!B:E,4,0), IF(Translations!A2=4, VLOOKUP(SSI!B16,Translations!B:F,5,0),  IF(Translations!A2=5, VLOOKUP(SSI!B16,Translations!B:I,6,0),IF(Translations!A2=6, VLOOKUP(SSI!B16,Translations!B:I,7,0), VLOOKUP(SSI!B16,Translations!B:I,8,0)))))))","v":"Homepage"}]
[null,1.0900000000000001,{"$f":"IF(Translations!A2=1,VLOOKUP(SSI!B17,Translations!B:C,2,0),IF(Translations!A2=2,VLOOKUP(SSI!B17,Translations!B:D,3,0),IF(Translations!A2=3,VLOOKUP(SSI!B17,Translations!B:E,4,0),IF(Translations!A2=4,VLOOKUP(SSI!B17,Translations!B:F,5,0), IF(Translations!A2=5, VLOOKUP(SSI!B17,Translations!B:I,6,0),IF(Translations!A2=6, VLOOKUP(SSI!B17,Translations!B:I,7,0), VLOOKUP(SSI!B17,Translations!B:I,8,0)))))))","v":"Email for electronic P.O."}]
[null,1.1000000000000001,{"$f":"IF(Translations!A2=1, VLOOKUP(SSI!B18,Translations!B:C,2,0), IF(Translations!A2=2, VLOOKUP(SSI!B18,Translations!B:D,3,0), IF(Translations!A2=3, VLOOKUP(SSI!B18,Translations!B:G,4,0), IF(Translations!A2=4, VLOOKUP(SSI!B18,Translations!B:G,5,0),  IF(Translations!A2=5, VLOOKUP(SSI!B18,Translations!B:I,6,0),IF(Translations!A2=6, VLOOKUP(SSI!B18,Translations!B:I,7,0), VLOOKUP(SSI!B18,Translations!B:I,8,0)))))))","v":"Year of foundation"}]
[null,1.1100000000000001,{"$f":"IF(Translations!A2=1, VLOOKUP(SSI!B19,Translations!B:C,2,0), IF(Translations!A2=2, VLOOKUP(SSI!B19,Translations!B:D,3,0), IF(Translations!A2=3, VLOOKUP(SSI!B19,Translations!B:G,4,0), IF(Translations!A2=4, VLOOKUP(SSI!B19,Translations!B:G,5,0),  IF(Translations!A2=5, VLOOKUP(SSI!B19,Translations!B:I,6,0),IF(Translations!A2=6, VLOOKUP(SSI!B19,Translations!B:I,7,0), VLOOKUP(SSI!B19,Translations!B:I,8,0)))))))","v":"Oerlikon Vendor Code (if existing)"}]
[null,1.1200000000000001,{"$f":"IF(Translations!A2=1, VLOOKUP(SSI!B20,Translations!B:G,2,0), IF(Translations!A2=2, VLOOKUP(SSI!B20,Translations!B:G,3,0), IF(Translations!A2=3, VLOOKUP(SSI!B20,Translations!B:G,4,0), IF(Translations!A2=4, VLOOKUP(SSI!B20,Translations!B:G,5,0),  IF(Translations!A2=5, VLOOKUP(SSI!B20,Translations!B:I,6,0),IF(Translations!A2=6, VLOOKUP(SSI!B20,Translations!B:I,7,0), VLOOKUP(SSI!B20,Translations!B:I,8,0)))))))","v":"Dun & Bradstreet ID"}]
[null,1.1299999999999999,{"$f":"IF(Translations!A2=1, VLOOKUP(SSI!B21,Translations!B:C,2,0), IF(Translations!A2=2, VLOOKUP(SSI!B21,Translations!B:G,3,0), IF(Translations!A2=3, VLOOKUP(SSI!B21,Translations!B:G,4,0), IF(Translations!A2=4, VLOOKUP(SSI!B21,Translations!B1:G154,5,0),  IF(Translations!A2=5, VLOOKUP(SSI!B21,Translations!B:I,6,0),IF(Translations!A2=6, VLOOKUP(SSI!B21,Translations!B:I,7,0), VLOOKUP(SSI!B21,Translations!B:I,8,0)))))))","v":"(In order to business with Oerlikon register in Dun & Bradstreet for free)"}]
[null,1.1399999999999999,{"$f":"IF(Translations!A2=1,VLOOKUP(SSI!B22,Translations!B:G,2,0),IF(Translations!A2=2,VLOOKUP(SSI!B22,Translations!B:G,3,0),IF(Translations!A2=3,VLOOKUP(SSI!B22,Translations!B:G,4,0),IF(Translations!A2=4,VLOOKUP(SSI!B22,Translations!B:G,5,0), IF(Translations!A2=5, VLOOKUP(SSI!B22,Translations!B:I,6,0),IF(Translations!A2=6, VLOOKUP(SSI!B22,Translations!B:I,7,0), VLOOKUP(SSI!B22,Translations!B:I,8,0)))))))","v":"VAT Registration Number"}]
[null,1.1499999999999999,{"$f":"IF(Translations!A2=1,VLOOKUP(SSI!B23,Translations!B:G,2,0),IF(Translations!A2=2,VLOOKUP(SSI!B23,Translations!B:G,3,0),IF(Translations!A2=3,VLOOKUP(SSI!B23,Translations!B:G,4,0),IF(Translations!A2=4,VLOOKUP(SSI!B23,Translations!B:G,5,0), IF(Translations!A2=5, VLOOKUP(SSI!B23,Translations!B:I,6,0),IF(Translations!A2=6, VLOOKUP(SSI!B23,Translations!B:I,7,0), VLOOKUP(SSI!B23,Translations!B:I,8,0)))))))","v":"Leading Category Level 1"}]
[null,1.1599999999999999,{"$f":"IF(Translations!A2=1,VLOOKUP(SSI!B24,Translations!B:G,2,0),IF(Translations!A2=2,VLOOKUP(SSI!B24,Translations!B:G,3,0),IF(Translations!A2=3,VLOOKUP(SSI!B24,Translations!B:G,4,0),IF(Translations!A2=4,VLOOKUP(SSI!B24,Translations!B:G,5,0), IF(Translations!A2=5, VLOOKUP(SSI!B24,Translations!B:I,6,0),IF(Translations!A2=6, VLOOKUP(SSI!B24,Translations!B:I,7,0), VLOOKUP(SSI!B24,Translations!B:I,8,0)))))))","v":"Leading Category Level 2"}]
[]
[null,2,{"$f":"IF(Translations!A2=1,VLOOKUP(SSI!B26,Translations!B:G,2,0),IF(Translations!A2=2,VLOOKUP(SSI!B26,Translations!B:G,3,0),IF(Translations!A2=3,VLOOKUP(SSI!B26,Translations!B:G,4,0),IF(Translations!A2=4,VLOOKUP(SSI!B26,Translations!B:G,5,0), IF(Translations!A2=5, VLOOKUP(SSI!B26,Translations!B:I,6,0),IF(Translations!A2=6, VLOOKUP(SSI!B26,Translations!B:I,7,0), VLOOKUP(SSI!B26,Translations!B:I,8,0)))))))","v":"2.     Financial Information"}]
[]
[null,2.1,{"$f":"IF(Translations!A2=1,VLOOKUP(SSI!B28,Translations!B:G,2,0),IF(Translations!A2=2,VLOOKUP(SSI!B28,Translations!B:G,3,0),IF(Translations!A2=3,VLOOKUP(SSI!B28,Translations!B:G,4,0),IF(Translations!A2=4,VLOOKUP(SSI!B28,Translations!B:G,5,0), IF(Translations!A2=5, VLOOKUP(SSI!B28,Translations!B:I,6,0),IF(Translations!A2=6, VLOOKUP(SSI!B28,Translations!B:I,7,0), VLOOKUP(SSI!B28,Translations!B:I,8,0)))))))","v":"2.1   Banking Information"}]
[null,2.11,{"$f":"IF(Translations!A2=1,VLOOKUP(SSI!B29,Translations!B:G,2,0),IF(Translations!A2=2,VLOOKUP(SSI!B29,Translations!B:G,3,0),IF(Translations!A2=3,VLOOKUP(SSI!B29,Translations!B:G,4,0),IF(Translations!A2=4,VLOOKUP(SSI!B29,Translations!B:G,5,0), IF(Translations!A2=5, VLOOKUP(SSI!B29,Translations!B:I,6,0),IF(Translations!A2=6, VLOOKUP(SSI!B29,Translations!B:I,7,0), VLOOKUP(SSI!B29,Translations!B:I,8,0)))))))","v":"IBAN"}]
[null,2.12,{"$f":"IF(Translations!A2=1,VLOOKUP(SSI!B30,Translations!B:G,2,0),IF(Translations!A2=2,VLOOKUP(SSI!B30,Translations!B:G,3,0),IF(Translations!A2=3,VLOOKUP(SSI!B30,Translations!B:G,4,0),IF(Translations!A2=4,VLOOKUP(SSI!B30,Translations!B:G,5,0), IF(Translations!A2=5, VLOOKUP(SSI!B30,Translations!B:I,6,0),IF(Translations!A2=6, VLOOKUP(SSI!B30,Translations!B:I,7,0), VLOOKUP(SSI!B30,Translations!B:I,8,0)))))))","v":"or"}]
[null,2.13,{"$f":"IF(Translations!A2=1,VLOOKUP(SSI!B31,Translations!B:G,2,0),IF(Translations!A2=2,VLOOKUP(SSI!B31,Translations!B:G,3,0),IF(Translations!A2=3,VLOOKUP(SSI!B31,Translations!B:G,4,0),IF(Translations!A2=4,VLOOKUP(SSI!B31,Translations!B:G,5,0), IF(Translations!A2=5, VLOOKUP(SSI!B31,Translations!B:I,6,0),IF(Translations!A2=6, VLOOKUP(SSI!B31,Translations!B:I,7,0), VLOOKUP(SSI!B31,Translations!B:I,8,0)))))))","v":"Bank Name:"},null,2.16,{"$f":"IF(Translations!A2=1,VLOOKUP(SSI!E31,Translations!B:G,2,0),IF(Translations!A2=2,VLOOKUP(SSI!E31,Translations!B:G,3,0),IF(Translations!A2=3,VLOOKUP(SSI!E31,Translations!B:G,4,0),IF(Translations!A2=4,VLOOKUP(SSI!E31,Translations!B:G,5,0), IF(Translations!A2=5, VLOOKUP(SSI!E31,Translations!B:I,6,0),IF(Translations!A2=6, VLOOKUP(SSI!E31,Translations!B:I,7,0), VLOOKUP(SSI!E31,Translations!B:I,8,0)))))))","v":"Account Number:"}]
[null,2.14,{"$f":"IF(Translations!A2=1, VLOOKUP(SSI!B32,Translations!B:G,2,0), IF(Translations!A2=2, VLOOKUP(SSI!B32,Translations!B:G,3,0), IF(Translations!A2=3, VLOOKUP(SSI!B32,Translations!B:G,4,0), IF(Translations!A2=4, VLOOKUP(SSI!B32,Translations!B:G,5,0),  IF(Translations!A2=5, VLOOKUP(SSI!B32,Translations!B:I,6,0),IF(Translations!A2=6, VLOOKUP(SSI!B32,Translations!B:I,7,0), VLOOKUP(SSI!B32,Translations!B:I,8,0)))))))","v":"Bank Address:"}]
[null,2.15,{"$f":"IF(Translations!A2=1, VLOOKUP(SSI!B33,Translations!B:G,2,0), IF(Translations!A2=2, VLOOKUP(SSI!B33,Translations!B:G,3,0), IF(Translations!A2=3, VLOOKUP(SSI!B33,Translations!B:G,4,0), IF(Translations!A2=4, VLOOKUP(SSI!B33,Translations!B:G,5,0), IF(Translations!A2=5, VLOOKUP(SSI!B33,Translations!B:I,6,0),IF(Translations!A2=6, VLOOKUP(SSI!B33,Translations!B:I,7,0), VLOOKUP(SSI!B33,Translations!B:I,8,0)))))))","v":"Bank Number:"},null,2.17,{"$f":"IF(Translations!A2=1, VLOOKUP(SSI!E33,Translations!B:G,2,0), IF(Translations!A2=2, VLOOKUP(SSI!E33,Translations!B:G,3,0), IF(Translations!A2=3, VLOOKUP(SSI!E33,Translations!B:G,4,0), IF(Translations!A2=4, VLOOKUP(SSI!E33,Translations!B:G,5,0), IF(Translations!A2=5, VLOOKUP(SSI!E33,Translations!B:I,6,0),IF(Translations!A2=6, VLOOKUP(SSI!E33,Translations!B:I,7,0), VLOOKUP(SSI!E33,Translations!B:I,8,0)))))))","v":"SWIFT / BIC-Code:"}]
[]
[null,2.2000000000000002,{"$f":"IF(Translations!A2=1,VLOOKUP(SSI!B35,Translations!B:G,2,0),IF(Translations!A2=2,VLOOKUP(SSI!B35,Translations!B:G,3,0),IF(Translations!A2=3,VLOOKUP(SSI!B35,Translations!B:G,4,0),IF(Translations!A2=4,VLOOKUP(SSI!B35,Translations!B:G,5,0),IF(Translations!A2=5, VLOOKUP(SSI!B35,Translations!B:I,6,0),IF(Translations!A2=6, VLOOKUP(SSI!B35,Translations!B:I,7,0), VLOOKUP(SSI!B35,Translations!B:I,8,0)))))))","v":"2.2   Insurance Information"}]
[null,2.21,{"$f":"IF(Translations!A2=1, VLOOKUP(SSI!B36,Translations!B:G,2,0), IF(Translations!A2=2, VLOOKUP(SSI!B36,Translations!B:G,3,0), IF(Translations!A2=3, VLOOKUP(SSI!B36,Translations!B:G,4,0), IF(Translations!A2=4, VLOOKUP(SSI!B36,Translations!B:G,5,0), IF(Translations!A2=5, VLOOKUP(SSI!B36,Translations!B:I,6,0),IF(Translations!A2=6, VLOOKUP(SSI!B36,Translations!B:I,7,0), VLOOKUP(SSI!B36,Translations!B:I,8,0)))))))","v":"Business liability insurance"}]
[null,2.2200000000000002,{"$f":"IF(Translations!A2=1, VLOOKUP(SSI!B37,Translations!B:C,2,0), IF(Translations!A2=2, VLOOKUP(SSI!B37,Translations!B:D,3,0), IF(Translations!A2=3, VLOOKUP(SSI!B37,Translations!B:G,4,0), IF(Translations!A2=4, VLOOKUP(SSI!B37,Translations!B:G,5,0), IF(Translations!A2=5, VLOOKUP(SSI!B37,Translations!B:I,6,0),IF(Translations!A2=6, VLOOKUP(SSI!B37,Translations!B:I,7,0), VLOOKUP(SSI!B37,Translations!B:I,8,0)))))))","v":"Insurance Company:"},null,2.27,{"$f":"IF(Translations!A2=1, VLOOKUP(SSI!E37,Translations!B:G,2,0), IF(Translations!A2=2, VLOOKUP(SSI!E37,Translations!B:G,3,0), IF(Translations!A2=3, VLOOKUP(SSI!E37,Translations!B:G,4,0), IF(Translations!A2=4, VLOOKUP(SSI!E37,Translations!B:G,5,0), IF(Translations!A2=5, VLOOKUP(SSI!E37,Translations!B:I,6,0),IF(Translations!A2=6, VLOOKUP(SSI!E37,Translations!B:I,7,0), VLOOKUP(SSI!E37,Translations!B:I,8,0)))))))","v":"Agency Number:"}]
[null,2.23,{"$f":"IF(Translations!A2=1, VLOOKUP(SSI!B38,Translations!B:G,2,0), IF(Translations!A2=2, VLOOKUP(SSI!B38,Translations!B:G,3,0), IF(Translations!A2=3, VLOOKUP(SSI!B38,Translations!B:G,4,0), IF(Translations!A2=4, VLOOKUP(SSI!B38,Translations!B:G,5,0),IF(Translations!A2=5, VLOOKUP(SSI!B38,Translations!B:I,6,0),IF(Translations!A2=6, VLOOKUP(SSI!B38,Translations!B:I,7,0), VLOOKUP(SSI!B38,Translations!B:I,8,0)))))))","v":"Agency Digit:"}]
[]
[null,2.2400000000000002,{"$f":"IF(Translations!A2=1, VLOOKUP(SSI!B40,Translations!B:G,2,0), IF(Translations!A2=2, VLOOKUP(SSI!B40,Translations!B:G,3,0), IF(Translations!A2=3, VLOOKUP(SSI!B40,Translations!B:G,4,0), IF(Translations!A2=4, VLOOKUP(SSI!B40,Translations!B:G,5,0), IF(Translations!A2=5, VLOOKUP(SSI!B40,Translations!B:I,6,0),IF(Translations!A2=6, VLOOKUP(SSI!B40,Translations!B:I,7,0), VLOOKUP(SSI!B40,Translations!B:I,8,0)))))))","v":"Product liability insurance"}]
[null,2.25,{"$f":"IF(Translations!A2=1, VLOOKUP(SSI!B41,Translations!B:G,2,0), IF(Translations!A2=2, VLOOKUP(SSI!B41,Translations!B:G,3,0), IF(Translations!A2=3, VLOOKUP(SSI!B41,Translations!B:G,4,0), IF(Translations!A2=4, VLOOKUP(SSI!B41,Translations!B:G,5,0), IF(Translations!A2=5, VLOOKUP(SSI!B41,Translations!B:I,6,0),IF(Translations!A2=6, VLOOKUP(SSI!B41,Translations!B:I,7,0), VLOOKUP(SSI!B41,Translations!B:I,8,0)))))))","v":"Insurance Company:"},null,2.2799999999999998,{"$f":"IF(Translations!A2=1, VLOOKUP(SSI!E41,Translations!B:G,2,0), IF(Translations!A2=2, VLOOKUP(SSI!E41,Translations!B:G,3,0), IF(Translations!A2=3, VLOOKUP(SSI!E41,Translations!B:E,4,0), IF(Translations!A2=4, VLOOKUP(SSI!E41,Translations!B:G,5,0), IF(Translations!A2=5, VLOOKUP(SSI!E41,Translations!B:I,6,0),IF(Translations!A2=6, VLOOKUP(SSI!E41,Translations!B:I,7,0), VLOOKUP(SSI!E41,Translations!B:I,8,0)))))))","v":"Agency Number:"}]
[null,2.2599999999999998,{"$f":"IF(Translations!A2=1, VLOOKUP(SSI!B42,Translations!B:G,2,0), IF(Translations!A2=2, VLOOKUP(SSI!B42,Translations!B:G,3,0), IF(Translations!A2=3, VLOOKUP(SSI!B42,Translations!B:G,4,0), IF(Translations!A2=4, VLOOKUP(SSI!B42,Translations!B:G,5,0), IF(Translations!A2=5, VLOOKUP(SSI!B42,Translations!B:I,6,0),IF(Translations!A2=6, VLOOKUP(SSI!B42,Translations!B:I,7,0), VLOOKUP(SSI!B42,Translations!B:I,8,0)))))))","v":"Agency Digit:"}]
[]
[null,2.29,{"$f":"IF(Translations!A2=1, VLOOKUP(SSI!B44,Translations!B:G,2,0), IF(Translations!A2=2, VLOOKUP(SSI!B44,Translations!B:G,3,0), IF(Translations!A2=3, VLOOKUP(SSI!B44,Translations!B:G,4,0), IF(Translations!A2=4, VLOOKUP(SSI!B44,Translations!B:G,5,0),IF(Translations!A2=5, VLOOKUP(SSI!B44,Translations!B:I,6,0),IF(Translations!A2=6, VLOOKUP(SSI!B44,Translations!B:I,7,0), VLOOKUP(SSI!B44,Translations!B:I,8,0)))))))","v":"Already Supplier to Oerlikon? (Yes/No):"}]
[null,null,null,null,null,2.2919999999999998,2.2930000000000001]
[null,2.2909999999999999,{"$f":"IF(Translations!A2=1, VLOOKUP(SSI!B46,Translations!B:G,2,0), IF(Translations!A2=2, VLOOKUP(SSI!B46,Translations!B:G,3,0), IF(Translations!A2=3, VLOOKUP(SSI!B46,Translations!B:G,4,0), IF(Translations!A2=4, VLOOKUP(SSI!B46,Translations!B:G,5,0), IF(Translations!A2=5, VLOOKUP(SSI!B46,Translations!B:I,6,0),IF(Translations!A2=6, VLOOKUP(SSI!B46,Translations!B:I,7,0), VLOOKUP(SSI!B46,Translations!B:I,8,0)))))))","v":"Oerlikon Company"},null,{"$f":"IF(Translations!A2=1, VLOOKUP(SSI!F45,Translations!B:G,2,0), IF(Translations!A2=2, VLOOKUP(SSI!F45,Translations!B:G,3,0), IF(Translations!A2=3, VLOOKUP(SSI!F45,Translations!B:G,4,0), IF(Translations!A2=4, VLOOKUP(SSI!F45,Translations!B:G,5,0), IF(Translations!A2=5, VLOOKUP(SSI!F45,Translations!B:I,6,0),IF(Translations!A2=6, VLOOKUP(SSI!F45,Translations!B:I,7,0), VLOOKUP(SSI!F45,Translations!B:I,8,0)))))))","v":"Sales Volume"},null,{"$f":"IF(Translations!A2=1,VLOOKUP(SSI!G45,Translations!B:G,2,0),IF(Translations!A2=2,VLOOKUP(SSI!G45,Translations!B:G,3,0),IF(Translations!A2=3,VLOOKUP(SSI!G45,Translations!B:G,4,0),IF(Translations!A2=4,VLOOKUP(SSI!G45,Translations!B:G,5,0),IF(Translations!A2=5, VLOOKUP(SSI!G45,Translations!B:I,6,0),IF(Translations!A2=6, VLOOKUP(SSI!G45,Translations!B:I,7,0), VLOOKUP(SSI!G45,Translations!B:I,8,0)))))))","v":"Products"}]
[]
[null,null,null,null,null,3.11]
[null,3,{"$f":"IF(Translations!A2=1, VLOOKUP(SSI!B49,Translations!B:G,2,0), IF(Translations!A2=2, VLOOKUP(SSI!B49,Translations!B:G,3,0), IF(Translations!A2=3, VLOOKUP(SSI!B49,Translations!B:G,4,0), IF(Translations!A2=4, VLOOKUP(SSI!B49,Translations!B:G,5,0), IF(Translations!A2=5, VLOOKUP(SSI!B49,Translations!B:I,6,0),IF(Translations!A2=6, VLOOKUP(SSI!B49,Translations!B:I,7,0), VLOOKUP(SSI!B49,Translations!B:I,8,0)))))))","v":"3.     Certificates and Certifications"},null,{"$f":"IF(Translations!A2=1, VLOOKUP(SSI!F48,Translations!B:G,2,0), IF(Translations!A2=2, VLOOKUP(SSI!F48,Translations!B:G,3,0), IF(Translations!A2=3, VLOOKUP(SSI!F48,Translations!B:G,4,0), IF(Translations!A2=4, VLOOKUP(SSI!F48,Translations!B:G,5,0), IF(Translations!A2=5, VLOOKUP(SSI!F48,Translations!B:I,6,0),IF(Translations!A2=6, VLOOKUP(SSI!F48,Translations!B:I,7,0), VLOOKUP(SSI!F48,Translations!B:I,8,0)))))))","v":"Attach all Relevant Certificates with SSI Form"}]
[null,null,null,3.12,3.13,3.14]
[null,3.1,{"$f":"IF(Translations!A2=1, VLOOKUP(SSI!B51,Translations!B:G,2,0), IF(Translations!A2=2, VLOOKUP(SSI!B51,Translations!B:G,3,0), IF(Translations!A2=3, VLOOKUP(SSI!B51,Translations!B:G,4,0), IF(Translations!A2=4, VLOOKUP(SSI!B51,Translations!B:G,5,0), IF(Translations!A2=5, VLOOKUP(SSI!B51,Translations!B:I,6,0),IF(Translations!A2=6, VLOOKUP(SSI!B51,Translations!B:I,7,0), VLOOKUP(SSI!B51,Translations!B:I,8,0)))))))","v":"Does a Quality Management System exist and is it in place?  "},{"$f":"IF(Translations!A2=1, VLOOKUP(SSI!D50,Translations!B:G,2,0), IF(Translations!A2=2, VLOOKUP(SSI!D50,Translations!B:G,3,0),IF(Translations!A2=3, VLOOKUP(SSI!D50,Translations!B:G,4,0),IF(Translations!A2=4, VLOOKUP(SSI!D50,Translations!B:G,5,0),IF(Translations!A2=5, VLOOKUP(SSI!D50,Translations!B:I,6,0),IF(Translations!A2=6, VLOOKUP(SSI!D50,Translations!B:I,7,0), VLOOKUP(SSI!D50,Translations!B:I,8,0)))))))","v":"Yes"},{"$f":"IF(Translations!A2=1,VLOOKUP(SSI!E50,Translations!B:G,2,0),IF(Translations!A2=2,VLOOKUP(SSI!E50,Translations!B:G,3,0),IF(Translations!A2=3,VLOOKUP(SSI!E50,Translations!B:G,4,0),IF(Translations!A2=4,VLOOKUP(SSI!E50,Translations!B:G,5,0),IF(Translations!A2=5, VLOOKUP(SSI!E50,Translations!B:I,6,0),IF(Translations!A2=6, VLOOKUP(SSI!E50,Translations!B:I,7,0), VLOOKUP(SSI!E50,Translations!B:I,8,0)))))))","v":"No"},{"$f":"IF(Translations!A2=1, VLOOKUP(SSI!F50,Translations!B:G,2,0), IF(Translations!A2=2, VLOOKUP(SSI!F50,Translations!B:G,3,0), IF(Translations!A2=3, VLOOKUP(SSI!F50,Translations!B:G,4,0),IF(Translations!A2=4, VLOOKUP(SSI!F50,Translations!B:G,5,0), IF(Translations!A2=5, VLOOKUP(SSI!F50,Translations!B:I,6,0),IF(Translations!A2=6, VLOOKUP(SSI!F50,Translations!B:I,7,0), VLOOKUP(SSI!F50,Translations!B:I,8,0)))))))","v":"Comments"}]
[null,null,null,null,3.15,3.16]
[null,3.2,{"$f":"IF(Translations!A2=1, VLOOKUP(SSI!B53,Translations!B:G,2,0), IF(Translations!A2=2, VLOOKUP(SSI!B53,Translations!B:G,3,0),IF(Translations!A2=3, VLOOKUP(SSI!B53,Translations!B:G,4,0),IF(Translations!A2=4, VLOOKUP(SSI!B53,Translations!B:G,5,0), IF(Translations!A2=5, VLOOKUP(SSI!B53,Translations!B:I,6,0),IF(Translations!A2=6, VLOOKUP(SSI!B53,Translations!B:I,7,0), VLOOKUP(SSI!B53,Translations!B:I,8,0)))))))","v":"Certificate"},{"$f":"IF(Translations!A2=1, VLOOKUP(SSI!E52,Translations!B:G,2,0), IF(Translations!A2=2, VLOOKUP(SSI!E52,Translations!B:G,3,0),IF(Translations!A2=3, VLOOKUP(SSI!E52,Translations!B:G,4,0),IF(Translations!A2=4, VLOOKUP(SSI!E52,Translations!B:G,5,0), IF(Translations!A2=5, VLOOKUP(SSI!E52,Translations!B:I,6,0),IF(Translations!A2=6, VLOOKUP(SSI!E52,Translations!B:I,7,0), VLOOKUP(SSI!E52,Translations!B:I,8,0)))))))","v":"Version"},null,{"$f":"IF(Translations!A2=1, VLOOKUP(SSI!F52,Translations!B:G,2,0), IF(Translations!A2=2, VLOOKUP(SSI!F52,Translations!B:G,3,0),IF(Translations!A2=3, VLOOKUP(SSI!F52,Translations!B:G,4,0),IF(Translations!A2=4, VLOOKUP(SSI!F52,Translations!B:G,5,0), IF(Translations!A2=5, VLOOKUP(SSI!F52,Translations!B:I,6,0),IF(Translations!A2=6, VLOOKUP(SSI!F52,Translations!B:I,7,0), VLOOKUP(SSI!F52,Translations!B:I,8,0)))))))","v":"Date of Certification Expiration"}]
[]
[null,null,null,null,null,null,{"$f":"IF(H55=TRUE,\"Attach Relevent Certificates with SSI Form\",\"\")","v":""},false]
[null,null,null,null,null,null,{"$f":"IF(H56=TRUE,\"Attach Relevent Certificates with SSI Form\",\"\")","v":""},false]
[null,null,null,null,null,null,"",false]
[null,null,null,null,null,null,"",false]
[null,null,null,null,null,null,"",false]
[null,null,null,null,null,null,"",false]
[null,null,null,null,null,null,"",false]
[null,null,null,null,null,null,"",false]
[null,null,null,null,null,null,"",false]
[null,null,null,null,null,null,"",false]
[null,null,null,null,null,null,"",false]
[null,null,null,null,null,null,"",false]
[]
[null,3.3,{"$f":"IF(Translations!A2=1, VLOOKUP(SSI!B68,Translations!B:G,2,0), IF(Translations!A2=2, VLOOKUP(SSI!B68,Translations!B:G,3,0), IF(Translations!A2=3, VLOOKUP(SSI!B68,Translations!B:G,4,0), IF(Translations!A2=4, VLOOKUP(SSI!B68,Translations!B:G,5,0), IF(Translations!A2=5, VLOOKUP(SSI!B68,Translations!B:I,6,0),IF(Translations!A2=6, VLOOKUP(SSI!B68,Translations!B:I,7,0), VLOOKUP(SSI!B68,Translations!B:I,8,0)))))))","v":"Others"},{"$f":"IF(Translations!A2=1, VLOOKUP(SSI!E68,Translations!B:G,2,0),IF(Translations!A2=2, VLOOKUP(SSI!E68,Translations!B:G,3,0),IF(Translations!A2=3, VLOOKUP(SSI!E68,Translations!B:G,4,0),IF(Translations!A2=4, VLOOKUP(SSI!E68,Translations!B:G,5,0), IF(Translations!A2=5, VLOOKUP(SSI!E68,Translations!B:I,6,0),IF(Translations!A2=6, VLOOKUP(SSI!E68,Translations!B:I,7,0), VLOOKUP(SSI!E68,Translations!B:I,8,0)))))))","v":"Remarks"},3.38,3.391,3.3919999999999999]
[]
[null,3.31,{"$f":"IF(Translations!A2=1, VLOOKUP(SSI!B70,Translations!B:G,2,0),IF(Translations!A2=2, VLOOKUP(SSI!B70,Translations!B:G,3,0),IF(Translations!A2=3, VLOOKUP(SSI!B70,Translations!B:G,4,0),IF(Translations!A2=4, VLOOKUP(SSI!B70,Translations!B:G,5,0),IF(Translations!A2=5, VLOOKUP(SSI!B70,Translations!B:I,6,0),IF(Translations!A2=6, VLOOKUP(SSI!B70,Translations!B:I,7,0), VLOOKUP(SSI!B70,Translations!B:I,8,0)))))))","v":"Conflict Mineral Statement"},{"$f":"IF(Translations!A2=1, VLOOKUP(SSI!F68,Translations!B:G,2,0), IF(Translations!A2=2, VLOOKUP(SSI!F68,Translations!B:G,3,0), IF(Translations!A2=3, VLOOKUP(SSI!F68,Translations!B:G,4,0), IF(Translations!A2=4, VLOOKUP(SSI!F68,Translations!B:G,5,0), IF(Translations!A2=5, VLOOKUP(SSI!F68,Translations!B:I,6,0),IF(Translations!A2=6, VLOOKUP(SSI!F68,Translations!B:I,7,0), VLOOKUP(SSI!F68,Translations!B:I,8,0)))))))","v":"Compliance Confirmed"},null,{"$f":"IF(Translations!A2=1, VLOOKUP(SSI!G68,Translations!B:G,2,0),IF(Translations!A2=2, VLOOKUP(SSI!G68,Translations!B:G,3,0),IF(Translations!A2=3, VLOOKUP(SSI!G68,Translations!B:G,4,0),IF(Translations!A2=4, VLOOKUP(SSI!G68,Translations!B:G,5,0), IF(Translations!A2=5, VLOOKUP(SSI!G68,Translations!B:I,6,0),IF(Translations!A2=6, VLOOKUP(SSI!G68,Translations!B:I,7,0), VLOOKUP(SSI!G68,Translations!B:I,8,0)))))))","v":"Compliance not Confirmed"}]
[null,3.32,{"$f":"IF(Translations!A2=1, VLOOKUP(SSI!B71,Translations!B:G,2,0),IF(Translations!A2=2, VLOOKUP(SSI!B71,Translations!B:G,3,0),IF(Translations!A2=3, VLOOKUP(SSI!B71,Translations!B:G,4,0),IF(Translations!A2=4, VLOOKUP(SSI!B71,Translations!B:G,5,0),IF(Translations!A2=5, VLOOKUP(SSI!B71,Translations!B:I,6,0),IF(Translations!A2=6, VLOOKUP(SSI!B71,Translations!B:I,7,0), VLOOKUP(SSI!B71,Translations!B:I,8,0)))))))","v":"RoHS Directive"},{"$f":"IF(Translations!A2=1, VLOOKUP(SSI!F68,Translations!B:G,2,0), IF(Translations!A2=2, VLOOKUP(SSI!F68,Translations!B:G,3,0), IF(Translations!A2=3, VLOOKUP(SSI!F68,Translations!B:G,4,0), IF(Translations!A2=4, VLOOKUP(SSI!F68,Translations!B:G,5,0), IF(Translations!A2=5, VLOOKUP(SSI!F68,Translations!B:I,6,0),IF(Translations!A2=6, VLOOKUP(SSI!F68,Translations!B:I,7,0), VLOOKUP(SSI!F68,Translations!B:I,8,0)))))))","v":"Compliance Confirmed"},null,{"$f":"IF(Translations!A2=1, VLOOKUP(SSI!G68,Translations!B:G,2,0),IF(Translations!A2=2, VLOOKUP(SSI!G68,Translations!B:G,3,0),IF(Translations!A2=3, VLOOKUP(SSI!G68,Translations!B:G,4,0),IF(Translations!A2=4, VLOOKUP(SSI!G68,Translations!B:G,5,0),IF(Translations!A2=5, VLOOKUP(SSI!G68,Translations!B:I,6,0),IF(Translations!A2=6, VLOOKUP(SSI!G68,Translations!B:I,7,0), VLOOKUP(SSI!G68,Translations!B:I,8,0)))))))","v":"Compliance not Confirmed"}]
[null,3.33,{"$f":"IF(Translations!A2=1, VLOOKUP(SSI!B72,Translations!B:G,2,0),IF(Translations!A2=2, VLOOKUP(SSI!B72,Translations!B:G,3,0),IF(Translations!A2=3, VLOOKUP(SSI!B72,Translations!B:G,4,0),IF(Translations!A2=4, VLOOKUP(SSI!B72,Translations!B:G,5,0),IF(Translations!A2=5, VLOOKUP(SSI!B72,Translations!B:I,6,0),IF(Translations!A2=6, VLOOKUP(SSI!B72,Translations!B:I,7,0), VLOOKUP(SSI!B72,Translations!B:I,8,0)))))))","v":"REACH Directive"},{"$f":"IF(Translations!A2=1, VLOOKUP(SSI!F68,Translations!B:G,2,0), IF(Translations!A2=2, VLOOKUP(SSI!F68,Translations!B:G,3,0), IF(Translations!A2=3, VLOOKUP(SSI!F68,Translations!B:G,4,0), IF(Translations!A2=4, VLOOKUP(SSI!F68,Translations!B:G,5,0), IF(Translations!A2=5, VLOOKUP(SSI!F68,Translations!B:I,6,0),IF(Translations!A2=6, VLOOKUP(SSI!F68,Translations!B:I,7,0), VLOOKUP(SSI!F68,Translations!B:I,8,0)))))))","v":"Compliance Confirmed"},null,{"$f":"IF(Translations!A2=1, VLOOKUP(SSI!G68,Translations!B:G,2,0),IF(Translations!A2=2, VLOOKUP(SSI!G68,Translations!B:G,3,0),IF(Translations!A2=3, VLOOKUP(SSI!G68,Translations!B:G,4,0),IF(Translations!A2=4, VLOOKUP(SSI!G68,Translations!B:G,5,0),IF(Translations!A2=5, VLOOKUP(SSI!G68,Translations!B:I,6,0),IF(Translations!A2=6, VLOOKUP(SSI!G68,Translations!B:I,7,0), VLOOKUP(SSI!G68,Translations!B:I,8,0)))))))","v":"Compliance not Confirmed"}]
[null,3.34,{"$f":"IF(Translations!A2=1, VLOOKUP(SSI!B73,Translations!B:G,2,0),IF(Translations!A2=2, VLOOKUP(SSI!B73,Translations!B:G,3,0),IF(Translations!A2=3, VLOOKUP(SSI!B73,Translations!B:G,4,0),IF(Translations!A2=4, VLOOKUP(SSI!B73,Translations!B:G,5,0),IF(Translations!A2=5, VLOOKUP(SSI!B73,Translations!B:I,6,0),IF(Translations!A2=6, VLOOKUP(SSI!B73,Translations!B:I,7,0), VLOOKUP(SSI!B73,Translations!B:I,8,0)))))))","v":"Hazardous Substances/ Dangerous Goods"},{"$f":"IF(Translations!A2=1, VLOOKUP(SSI!E73,Translations!B:G,2,0),IF(Translations!A2=2, VLOOKUP(SSI!E73,Translations!B:G,3,0),IF(Translations!A2=3, VLOOKUP(SSI!E73,Translations!B:G,4,0),IF(Translations!A2=4, VLOOKUP(SSI!E73,Translations!B:G,5,0),  IF(Translations!A2=5, VLOOKUP(SSI!E73,Translations!B:I,6,0),IF(Translations!A2=6, VLOOKUP(SSI!E73,Translations!B:I,7,0), VLOOKUP(SSI!E73,Translations!B:I,8,0)))))))","v":"Products Exist"},3.3929999999999998,{"$f":"IF(Translations!A2=1, VLOOKUP(SSI!G73,Translations!B:G,2,0),IF(Translations!A2=2, VLOOKUP(SSI!G73,Translations!B:G,3,0),IF(Translations!A2=3, VLOOKUP(SSI!G73,Translations!B:G,4,0),IF(Translations!A2=4, VLOOKUP(SSI!G73,Translations!B:G,5,0),IF(Translations!A2=5, VLOOKUP(SSI!G73,Translations!B:I,6,0),IF(Translations!A2=6, VLOOKUP(SSI!G73,Translations!B:I,7,0), VLOOKUP(SSI!G73,Translations!B:I,8,0)))))))","v":"Irrelevant"},3.3940000000000001]
[null,3.35,{"$f":"IF(Translations!A2=1, VLOOKUP(SSI!B74,Translations!B:G,2,0),IF(Translations!A2=2, VLOOKUP(SSI!B74,Translations!B:G,3,0),IF(Translations!A2=3, VLOOKUP(SSI!B74,Translations!B:G,4,0),IF(Translations!A2=4, VLOOKUP(SSI!B74,Translations!B:G,5,0),IF(Translations!A2=5, VLOOKUP(SSI!B74,Translations!B:I,6,0),IF(Translations!A2=6, VLOOKUP(SSI!B74,Translations!B:I,7,0), VLOOKUP(SSI!B74,Translations!B:I,8,0)))))))","v":"Declaration of Conformity"},null,null,{"$f":"IF(Translations!A2=1, VLOOKUP(SSI!G75,Translations!B:G,2,0),IF(Translations!A2=2, VLOOKUP(SSI!G75,Translations!B:G,3,0),IF(Translations!A2=3, VLOOKUP(SSI!G75,Translations!B:G,4,0),IF(Translations!A2=4, VLOOKUP(SSI!G75,Translations!B:G,5,0),IF(Translations!A2=5, VLOOKUP(SSI!G75,Translations!B:I,6,0),IF(Translations!A2=6, VLOOKUP(SSI!G75,Translations!B:I,7,0), VLOOKUP(SSI!G75,Translations!B:I,8,0)))))))","v":"Others"}]
[null,3.36,{"$f":"IF(Translations!A2=1, VLOOKUP(SSI!B75,Translations!B:G,2,0),IF(Translations!A2=2, VLOOKUP(SSI!B75,Translations!B:G,3,0),IF(Translations!A2=3, VLOOKUP(SSI!B75,Translations!B:G,4,0),IF(Translations!A2=4, VLOOKUP(SSI!B75,Translations!B:G,5,0),IF(Translations!A2=5, VLOOKUP(SSI!B75,Translations!B:I,6,0),IF(Translations!A2=6, VLOOKUP(SSI!B75,Translations!B:I,7,0), VLOOKUP(SSI!B75,Translations!B:I,8,0)))))))","v":"Internal Code of Conduct"},{"$f":"IF(Translations!A2=1,VLOOKUP(SSI!G81,Translations!B:G,2,0),IF(Translations!A2=2,VLOOKUP(SSI!G81,Translations!B:G,3,0),IF(Translations!A2=3,VLOOKUP(SSI!G81,Translations!B:G,4,0),IF(Translations!A2=4,VLOOKUP(SSI!G81,Translations!B:G,5,0),IF(Translations!A2=5, VLOOKUP(SSI!G81,Translations!B:I,6,0),IF(Translations!A2=6, VLOOKUP(SSI!G81,Translations!B:I,7,0), VLOOKUP(SSI!G81,Translations!B:I,8,0)))))))","v":"Yes            No"},null,null,3.395]
[null,3.37,{"$f":"IF(Translations!A2=1, VLOOKUP(SSI!B76,Translations!B:G,2,0),IF(Translations!A2=2, VLOOKUP(SSI!B76,Translations!B:G,3,0),IF(Translations!A2=3, VLOOKUP(SSI!B76,Translations!B:G,4,0),IF(Translations!A2=4, VLOOKUP(SSI!B76,Translations!B:G,5,0),IF(Translations!A2=5, VLOOKUP(SSI!B76,Translations!B:I,6,0),IF(Translations!A2=6, VLOOKUP(SSI!B76,Translations!B:I,7,0), VLOOKUP(SSI!B76,Translations!B:I,8,0)))))))","v":"EICC Member (Electronic Industry Citizenship Coalition)"},{"$f":"IF(Translations!A2=1,VLOOKUP(SSI!G81,Translations!B:G,2,0),IF(Translations!A2=2,VLOOKUP(SSI!G81,Translations!B:G,3,0),IF(Translations!A2=3,VLOOKUP(SSI!G81,Translations!B:G,4,0),IF(Translations!A2=4,VLOOKUP(SSI!G81,Translations!B:G,5,0),IF(Translations!A2=5, VLOOKUP(SSI!G81,Translations!B:I,6,0),IF(Translations!A2=6, VLOOKUP(SSI!G81,Translations!B:I,7,0), VLOOKUP(SSI!G81,Translations!B:I,8,0)))))))","v":"Yes            No"}]
[]
[]
[]
[null,3.4,{"$f":"IF(Translations!A2=1, VLOOKUP(SSI!B80,Translations!B:G,2,0),IF(Translations!A2=2, VLOOKUP(SSI!B80,Translations!B:G,3,0),IF(Translations!A2=3, VLOOKUP(SSI!B80,Translations!B:G,4,0),IF(Translations!A2=4, VLOOKUP(SSI!B80,Translations!B:G,5,0),IF(Translations!A2=5, VLOOKUP(SSI!B80,Translations!B:I,6,0),IF(Translations!A2=6, VLOOKUP(SSI!B80,Translations!B:I,7,0), VLOOKUP(SSI!B80,Translations!B:I,8,0)))))))","v":"Are you willing to develop a quality assurance agreement with Oerlikon?  (Yes/No):"}]
[null,null,null,3.5419999999999998,3.5430000000000001,null,3.544]
[null,3.5,{"$f":"IF(Translations!A2=1, VLOOKUP(SSI!B82,Translations!B:G,2,0),IF(Translations!A2=2, VLOOKUP(SSI!B82,Translations!B:G,3,0),IF(Translations!A2=3, VLOOKUP(SSI!B82,Translations!B:G,4,0),IF(Translations!A2=4, VLOOKUP(SSI!B82,Translations!B:G,5,0),IF(Translations!A2=5, VLOOKUP(SSI!B82,Translations!B:I,6,0),IF(Translations!A2=6, VLOOKUP(SSI!B82,Translations!B:I,7,0), VLOOKUP(SSI!B82,Translations!B:I,8,0)))))))","v":"Does your company plan the implementation of a certified Quality and Environmental Management System? "}]
[null,null,null,{"$f":"IF(Translations!A2=1, VLOOKUP(SSI!D81,Translations!B:G,2,0),IF(Translations!A2=2, VLOOKUP(SSI!D81,Translations!B:G,3,0),IF(Translations!A2=3, VLOOKUP(SSI!D81,Translations!B:G,4,0),IF(Translations!A2=4, VLOOKUP(SSI!D81,Translations!B:G,5,0),IF(Translations!A2=5, VLOOKUP(SSI!D81,Translations!B:I,6,0),IF(Translations!A2=6, VLOOKUP(SSI!D81,Translations!B:I,7,0), VLOOKUP(SSI!D81,Translations!B:I,8,0)))))))","v":"Yes"},{"$f":"IF(Translations!A2=1, VLOOKUP(SSI!E81,Translations!B:G,2,0),IF(Translations!A2=2, VLOOKUP(SSI!E81,Translations!B:G,3,0),IF(Translations!A2=3, VLOOKUP(SSI!E81,Translations!B:G,4,0),IF(Translations!A2=4, VLOOKUP(SSI!E81,Translations!B:G,5,0),IF(Translations!A2=5, VLOOKUP(SSI!E81,Translations!B:I,6,0),IF(Translations!A2=6, VLOOKUP(SSI!E81,Translations!B:I,7,0), VLOOKUP(SSI!E81,Translations!B:I,8,0)))))))","v":"No"}]
[null,3.51,{"$f":"IF(Translations!A2=1, VLOOKUP(SSI!B84,Translations!B:G,2,0),IF(Translations!A2=2, VLOOKUP(SSI!B84,Translations!B:G,3,0),IF(Translations!A2=3, VLOOKUP(SSI!B84,Translations!B:G,4,0),IF(Translations!A2=4, VLOOKUP(SSI!B84,Translations!B:G,5,0),IF(Translations!A2=5, VLOOKUP(SSI!B84,Translations!B:I,6,0),IF(Translations!A2=6, VLOOKUP(SSI!B84,Translations!B:I,7,0), VLOOKUP(SSI!B84,Translations!B:I,8,0)))))))","v":"If yes, which one and until when:"}]
[]
[null,3.5110000000000001,{"$f":"IF(Translations!A2=1, VLOOKUP(SSI!B86,Translations!B:G,2,0),IF(Translations!A2=2, VLOOKUP(SSI!B86,Translations!B:G,3,0),IF(Translations!A2=3, VLOOKUP(SSI!B86,Translations!B:G,4,0),IF(Translations!A2=4, VLOOKUP(SSI!B86,Translations!B:G,5,0),IF(Translations!A2=5, VLOOKUP(SSI!B86,Translations!B:I,6,0),IF(Translations!A2=6, VLOOKUP(SSI!B86,Translations!B:I,7,0), VLOOKUP(SSI!B86,Translations!B:I,8,0)))))))","v":"If you do not dispose of a certified management system, please, answer the following questions:"}]
[null,3.512,{"$f":"IF(Translations!A2=1, VLOOKUP(SSI!B87,Translations!B:G,2,0),IF(Translations!A2=2, VLOOKUP(SSI!B87,Translations!B:G,3,0),IF(Translations!A2=3, VLOOKUP(SSI!B87,Translations!B:G,4,0),IF(Translations!A2=4, VLOOKUP(SSI!B87,Translations!B:G,5,0),IF(Translations!A2=5, VLOOKUP(SSI!B87,Translations!B:I,6,0),IF(Translations!A2=6, VLOOKUP(SSI!B87,Translations!B:I,7,0), VLOOKUP(SSI!B87,Translations!B:I,8,0)))))))","v":"1.    Does your company have a (Quality) Management Manual?  (If yes, please provide copy)"},null,null,null,{"$f":"IF(Translations!A2=1, VLOOKUP(SSI!G81,Translations!B:G,2,0),IF(Translations!A2=2, VLOOKUP(SSI!G81,Translations!B:G,3,0),IF(Translations!A2=3, VLOOKUP(SSI!G81,Translations!B:G,4,0),IF(Translations!A2=4, VLOOKUP(SSI!G81,Translations!B:G,5,0),IF(Translations!A2=5, VLOOKUP(SSI!G81,Translations!B:I,6,0),IF(Translations!A2=6, VLOOKUP(SSI!G81,Translations!B:I,7,0), VLOOKUP(SSI!G81,Translations!B:I,8,0)))))))","v":"Yes            No"}]
[null,3.5129999999999999,{"$f":"IF(Translations!A2=1, VLOOKUP(SSI!B88,Translations!B:G,2,0),IF(Translations!A2=2, VLOOKUP(SSI!B88,Translations!B:G,3,0),IF(Translations!A2=3, VLOOKUP(SSI!B88,Translations!B:G,4,0),IF(Translations!A2=4, VLOOKUP(SSI!B88,Translations!B:G,5,0),IF(Translations!A2=5, VLOOKUP(SSI!B88,Translations!B:I,6,0),IF(Translations!A2=6, VLOOKUP(SSI!B88,Translations!B:I,7,0), VLOOKUP(SSI!B88,Translations!B:I,8,0)))))))","v":"2.    Does your company have a Supplier Assessment System?"},null,null,null,{"$f":"IF(Translations!A2=1, VLOOKUP(SSI!G81,Translations!B:G,2,0),IF(Translations!A2=2, VLOOKUP(SSI!G81,Translations!B:G,3,0),IF(Translations!A2=3, VLOOKUP(SSI!G81,Translations!B:G,4,0),IF(Translations!A2=4, VLOOKUP(SSI!G81,Translations!B:G,5,0),IF(Translations!A2=5, VLOOKUP(SSI!G81,Translations!B:I,6,0),IF(Translations!A2=6, VLOOKUP(SSI!G81,Translations!B:I,7,0), VLOOKUP(SSI!G81,Translations!B:I,8,0)))))))","v":"Yes            No"}]
[null,3.5139999999999998,{"$f":"IF(Translations!A2=1, VLOOKUP(SSI!B89,Translations!B:G,2,0),IF(Translations!A2=2, VLOOKUP(SSI!B89,Translations!B:G,3,0),IF(Translations!A2=3, VLOOKUP(SSI!B89,Translations!B:G,4,0),IF(Translations!A2=4, VLOOKUP(SSI!B89,Translations!B:G,5,0),IF(Translations!A2=5, VLOOKUP(SSI!B89,Translations!B:I,6,0),IF(Translations!A2=6, VLOOKUP(SSI!B89,Translations!B:I,7,0), VLOOKUP(SSI!B89,Translations!B:I,8,0)))))))","v":"3.    Does your company request quality records from its suppliers?"},null,null,null,{"$f":"IF(Translations!A2=1, VLOOKUP(SSI!G81,Translations!B:G,2,0),IF(Translations!A2=2, VLOOKUP(SSI!G81,Translations!B:G,3,0),IF(Translations!A2=3, VLOOKUP(SSI!G81,Translations!B:G,4,0),IF(Translations!A2=4, VLOOKUP(SSI!G81,Translations!B:G,5,0),IF(Translations!A2=5, VLOOKUP(SSI!G81,Translations!B:I,6,0),IF(Translations!A2=6, VLOOKUP(SSI!G81,Translations!B:I,7,0), VLOOKUP(SSI!G81,Translations!B:I,8,0)))))))","v":"Yes            No"}]
[null,3.5150000000000001,{"$f":"IF(Translations!A2=1, VLOOKUP(SSI!B90,Translations!B:G,2,0),IF(Translations!A2=2, VLOOKUP(SSI!B90,Translations!B:G,3,0),IF(Translations!A2=3, VLOOKUP(SSI!B90,Translations!B:G,4,0),IF(Translations!A2=4, VLOOKUP(SSI!B90,Translations!B:G,5,0),IF(Translations!A2=5, VLOOKUP(SSI!B90,Translations!B:I,6,0),IF(Translations!A2=6, VLOOKUP(SSI!B90,Translations!B:I,7,0), VLOOKUP(SSI!B90,Translations!B:I,8,0)))))))","v":"4.    Does your company perform an incoming goods inspection?"},null,null,null,{"$f":"IF(Translations!A2=1, VLOOKUP(SSI!G81,Translations!B:G,2,0),IF(Translations!A2=2, VLOOKUP(SSI!G81,Translations!B:G,3,0),IF(Translations!A2=3, VLOOKUP(SSI!G81,Translations!B:G,4,0),IF(Translations!A2=4, VLOOKUP(SSI!G81,Translations!B:G,5,0),IF(Translations!A2=5, VLOOKUP(SSI!G81,Translations!B:I,6,0),IF(Translations!A2=6, VLOOKUP(SSI!G81,Translations!B:I,7,0), VLOOKUP(SSI!G81,Translations!B:I,8,0)))))))","v":"Yes            No"}]
[null,3.516,{"$f":"IF(Translations!A2=1, VLOOKUP(SSI!B91,Translations!B:G,2,0),IF(Translations!A2=2, VLOOKUP(SSI!B91,Translations!B:G,3,0),IF(Translations!A2=3, VLOOKUP(SSI!B91,Translations!B:G,4,0),IF(Translations!A2=4, VLOOKUP(SSI!B91,Translations!B:G,5,0),IF(Translations!A2=5, VLOOKUP(SSI!B91,Translations!B:I,6,0),IF(Translations!A2=6, VLOOKUP(SSI!B91,Translations!B:I,7,0), VLOOKUP(SSI!B91,Translations!B:I,8,0)))))))","v":"5.    Does your company have appropriate means enabling you to identify your products throughout the entire product realization process?"},null,null,null,{"$f":"IF(Translations!A2=1, VLOOKUP(SSI!G81,Translations!B:G,2,0),IF(Translations!A2=2, VLOOKUP(SSI!G81,Translations!B:G,3,0),IF(Translations!A2=3, VLOOKUP(SSI!G81,Translations!B:G,4,0),IF(Translations!A2=4, VLOOKUP(SSI!G81,Translations!B:G,5,0),IF(Translations!A2=5, VLOOKUP(SSI!G81,Translations!B:I,6,0),IF(Translations!A2=6, VLOOKUP(SSI!G81,Translations!B:I,7,0), VLOOKUP(SSI!G81,Translations!B:I,8,0)))))))","v":"Yes            No"}]
[null,3.5169999999999999,{"$f":"IF(Translations!A2=1, VLOOKUP(SSI!B92,Translations!B:G,2,0),IF(Translations!A2=2, VLOOKUP(SSI!B92,Translations!B:G,3,0),IF(Translations!A2=3, VLOOKUP(SSI!B92,Translations!B:G,4,0),IF(Translations!A2=4, VLOOKUP(SSI!B92,Translations!B:G,5,0),IF(Translations!A2=5, VLOOKUP(SSI!B92,Translations!B:I,6,0),IF(Translations!A2=6, VLOOKUP(SSI!B92,Translations!B:I,7,0), VLOOKUP(SSI!B92,Translations!B:I,8,0)))))))","v":"6.    Are quality controls performed throughout the production process?"},null,null,null,{"$f":"IF(Translations!A2=1, VLOOKUP(SSI!G81,Translations!B:G,2,0),IF(Translations!A2=2, VLOOKUP(SSI!G81,Translations!B:G,3,0),IF(Translations!A2=3, VLOOKUP(SSI!G81,Translations!B:G,4,0),IF(Translations!A2=4, VLOOKUP(SSI!G81,Translations!B:G,5,0),IF(Translations!A2=5, VLOOKUP(SSI!G81,Translations!B:I,6,0),IF(Translations!A2=6, VLOOKUP(SSI!G81,Translations!B:I,7,0), VLOOKUP(SSI!G81,Translations!B:I,8,0)))))))","v":"Yes            No"}]
[null,3.5179999999999998,{"$f":"IF(Translations!A2=1, VLOOKUP(SSI!B93,Translations!B:G,2,0),IF(Translations!A2=2, VLOOKUP(SSI!B93,Translations!B:G,3,0),IF(Translations!A2=3, VLOOKUP(SSI!B93,Translations!B:G,4,0),IF(Translations!A2=4, VLOOKUP(SSI!B93,Translations!B:G,5,0),IF(Translations!A2=5, VLOOKUP(SSI!B93,Translations!B:I,6,0),IF(Translations!A2=6, VLOOKUP(SSI!B93,Translations!B:I,7,0), VLOOKUP(SSI!B93,Translations!B:I,8,0)))))))","v":"7.    Does your company maintain quality records?  If yes, for how long? _____ Years"},null,null,null,{"$f":"IF(Translations!A2=1, VLOOKUP(SSI!G81,Translations!B:G,2,0),IF(Translations!A2=2, VLOOKUP(SSI!G81,Translations!B:G,3,0),IF(Translations!A2=3, VLOOKUP(SSI!G81,Translations!B:G,4,0),IF(Translations!A2=4, VLOOKUP(SSI!G81,Translations!B:G,5,0),IF(Translations!A2=5, VLOOKUP(SSI!G81,Translations!B:I,6,0),IF(Translations!A2=6, VLOOKUP(SSI!G81,Translations!B:I,7,0), VLOOKUP(SSI!G81,Translations!B:I,8,0)))))))","v":"Yes            No"}]
[null,3.5190000000000001,{"$f":"IF(Translations!A2=1, VLOOKUP(SSI!B94,Translations!B:G,2,0),IF(Translations!A2=2, VLOOKUP(SSI!B94,Translations!B:G,3,0),IF(Translations!A2=3, VLOOKUP(SSI!B94,Translations!B:G,4,0),IF(Translations!A2=4, VLOOKUP(SSI!B94,Translations!B:G,5,0),IF(Translations!A2=5, VLOOKUP(SSI!B94,Translations!B:I,6,0),IF(Translations!A2=6, VLOOKUP(SSI!B94,Translations!B:I,7,0), VLOOKUP(SSI!B94,Translations!B:I,8,0)))))))","v":"8.    Does your company perform a final quality inspection of the finished goods?"},null,null,null,{"$f":"IF(Translations!A2=1, VLOOKUP(SSI!G81,Translations!B:G,2,0),IF(Translations!A2=2, VLOOKUP(SSI!G81,Translations!B:G,3,0),IF(Translations!A2=3, VLOOKUP(SSI!G81,Translations!B:G,4,0),IF(Translations!A2=4, VLOOKUP(SSI!G81,Translations!B:G,5,0),IF(Translations!A2=5, VLOOKUP(SSI!G81,Translations!B:I,6,0),IF(Translations!A2=6, VLOOKUP(SSI!G81,Translations!B:I,7,0), VLOOKUP(SSI!G81,Translations!B:I,8,0)))))))","v":"Yes            No"}]
[null,3.52,{"$f":"IF(Translations!A2=1, VLOOKUP(SSI!B95,Translations!B:G,2,0),IF(Translations!A2=2, VLOOKUP(SSI!B95,Translations!B:G,3,0),IF(Translations!A2=3, VLOOKUP(SSI!B95,Translations!B:G,4,0),IF(Translations!A2=4, VLOOKUP(SSI!B95,Translations!B:G,5,0),IF(Translations!A2=5, VLOOKUP(SSI!B95,Translations!B:I,6,0),IF(Translations!A2=6, VLOOKUP(SSI!B95,Translations!B:I,7,0), VLOOKUP(SSI!B95,Translations!B:I,8,0)))))))","v":"9.    Does your company have a Crisis Management and / or Business Continuity Plan?"},null,null,null,{"$f":"IF(Translations!A2=1, VLOOKUP(SSI!G81,Translations!B:G,2,0),IF(Translations!A2=2, VLOOKUP(SSI!G81,Translations!B:G,3,0),IF(Translations!A2=3, VLOOKUP(SSI!G81,Translations!B:G,4,0),IF(Translations!A2=4, VLOOKUP(SSI!G81,Translations!B:G,5,0),IF(Translations!A2=5, VLOOKUP(SSI!G81,Translations!B:I,6,0),IF(Translations!A2=6, VLOOKUP(SSI!G81,Translations!B:I,7,0), VLOOKUP(SSI!G81,Translations!B:I,8,0)))))))","v":"Yes            No"}]
[null,3.5209999999999999,{"$f":"IF(Translations!A2=1, VLOOKUP(SSI!B96,Translations!B:G,2,0),IF(Translations!A2=2, VLOOKUP(SSI!B96,Translations!B:G,3,0),IF(Translations!A2=3, VLOOKUP(SSI!B96,Translations!B:G,4,0),IF(Translations!A2=4, VLOOKUP(SSI!B96,Translations!B:G,5,0),IF(Translations!A2=5, VLOOKUP(SSI!B96,Translations!B:I,6,0),IF(Translations!A2=6, VLOOKUP(SSI!B96,Translations!B:I,7,0), VLOOKUP(SSI!B96,Translations!B:I,8,0)))))))","v":"10.  Does your company have procedure to control Foreign Object Damage (FOD)?"},null,null,null,{"$f":"IF(Translations!A2=1, VLOOKUP(SSI!G81,Translations!B:G,2,0),IF(Translations!A2=2, VLOOKUP(SSI!G81,Translations!B:G,3,0),IF(Translations!A2=3, VLOOKUP(SSI!G81,Translations!B:G,4,0),IF(Translations!A2=4, VLOOKUP(SSI!G81,Translations!B:G,5,0),IF(Translations!A2=5, VLOOKUP(SSI!G81,Translations!B:I,6,0),IF(Translations!A2=6, VLOOKUP(SSI!G81,Translations!B:I,7,0), VLOOKUP(SSI!G81,Translations!B:I,8,0)))))))","v":"Yes            No"}]
[null,3.5219999999999998,{"$f":"IF(Translations!A2=1, VLOOKUP(SSI!B97,Translations!B:G,2,0),IF(Translations!A2=2, VLOOKUP(SSI!B97,Translations!B:G,3,0),IF(Translations!A2=3, VLOOKUP(SSI!B97,Translations!B:G,4,0),IF(Translations!A2=4, VLOOKUP(SSI!B97,Translations!B:G,5,0),IF(Translations!A2=5, VLOOKUP(SSI!B97,Translations!B:I,6,0),IF(Translations!A2=6, VLOOKUP(SSI!B97,Translations!B:I,7,0), VLOOKUP(SSI!B97,Translations!B:I,8,0)))))))","v":"11.  Does your company have control mechanisms in place which identify and sort out defective products?"},null,null,null,{"$f":"IF(Translations!A2=1, VLOOKUP(SSI!G81,Translations!B:G,2,0),IF(Translations!A2=2, VLOOKUP(SSI!G81,Translations!B:G,3,0),IF(Translations!A2=3, VLOOKUP(SSI!G81,Translations!B:G,4,0),IF(Translations!A2=4, VLOOKUP(SSI!G81,Translations!B:G,5,0),IF(Translations!A2=5, VLOOKUP(SSI!G81,Translations!B:I,6,0),IF(Translations!A2=6, VLOOKUP(SSI!G81,Translations!B:I,7,0), VLOOKUP(SSI!G81,Translations!B:I,8,0)))))))","v":"Yes            No"}]
[null,3.5230000000000001,{"$f":"IF(Translations!A2=1, VLOOKUP(SSI!B98,Translations!B:G,2,0),IF(Translations!A2=2, VLOOKUP(SSI!B98,Translations!B:G,3,0),IF(Translations!A2=3, VLOOKUP(SSI!B98,Translations!B:G,4,0),IF(Translations!A2=4, VLOOKUP(SSI!B98,Translations!B:G,5,0),IF(Translations!A2=5, VLOOKUP(SSI!B98,Translations!B:I,6,0),IF(Translations!A2=6, VLOOKUP(SSI!B98,Translations!B:I,7,0), VLOOKUP(SSI!B98,Translations!B:I,8,0)))))))","v":"12.  Does your company have a formal corrective action program in place?"},null,null,null,{"$f":"IF(Translations!A2=1, VLOOKUP(SSI!G81,Translations!B:G,2,0),IF(Translations!A2=2, VLOOKUP(SSI!G81,Translations!B:G,3,0),IF(Translations!A2=3, VLOOKUP(SSI!G81,Translations!B:G,4,0),IF(Translations!A2=4, VLOOKUP(SSI!G81,Translations!B:G,5,0),IF(Translations!A2=5, VLOOKUP(SSI!G81,Translations!B:I,6,0),IF(Translations!A2=6, VLOOKUP(SSI!G81,Translations!B:I,7,0), VLOOKUP(SSI!G81,Translations!B:I,8,0)))))))","v":"Yes            No"}]
[null,3.524,{"$f":"IF(Translations!A2=1, VLOOKUP(SSI!B99,Translations!B:G,2,0),IF(Translations!A2=2, VLOOKUP(SSI!B99,Translations!B:G,3,0),IF(Translations!A2=3, VLOOKUP(SSI!B99,Translations!B:G,4,0),IF(Translations!A2=4, VLOOKUP(SSI!B99,Translations!B:G,5,0),IF(Translations!A2=5, VLOOKUP(SSI!B99,Translations!B:I,6,0),IF(Translations!A2=6, VLOOKUP(SSI!B99,Translations!B:I,7,0), VLOOKUP(SSI!B99,Translations!B:I,8,0)))))))","v":"13.  Is Human Factor considered during investigation and improvement plans?"},null,null,null,{"$f":"IF(Translations!A2=1, VLOOKUP(SSI!G81,Translations!B:G,2,0),IF(Translations!A2=2, VLOOKUP(SSI!G81,Translations!B:G,3,0),IF(Translations!A2=3, VLOOKUP(SSI!G81,Translations!B:G,4,0),IF(Translations!A2=4, VLOOKUP(SSI!G81,Translations!B:G,5,0),IF(Translations!A2=5, VLOOKUP(SSI!G81,Translations!B:I,6,0),IF(Translations!A2=6, VLOOKUP(SSI!G81,Translations!B:I,7,0), VLOOKUP(SSI!G81,Translations!B:I,8,0)))))))","v":"Yes            No"}]
[null,3.5249999999999999,{"$f":"IF(Translations!A2=1, VLOOKUP(SSI!B100,Translations!B:G,2,0),IF(Translations!A2=2, VLOOKUP(SSI!B100,Translations!B:G,3,0),IF(Translations!A2=3, VLOOKUP(SSI!B100,Translations!B:G,4,0),IF(Translations!A2=4, VLOOKUP(SSI!B100,Translations!B:G,5,0),IF(Translations!A2=5, VLOOKUP(SSI!B100,Translations!B:I,6,0),IF(Translations!A2=6, VLOOKUP(SSI!B100,Translations!B:I,7,0), VLOOKUP(SSI!B100,Translations!B:I,8,0)))))))","v":"14.  Does your company perform a cause analysis and defines preventive measures?"},null,null,null,{"$f":"IF(Translations!A2=1, VLOOKUP(SSI!G81,Translations!B:G,2,0),IF(Translations!A2=2, VLOOKUP(SSI!G81,Translations!B:G,3,0),IF(Translations!A2=3, VLOOKUP(SSI!G81,Translations!B:G,4,0),IF(Translations!A2=4, VLOOKUP(SSI!G81,Translations!B:G,5,0),IF(Translations!A2=5, VLOOKUP(SSI!G81,Translations!B:I,6,0),IF(Translations!A2=6, VLOOKUP(SSI!G81,Translations!B:I,7,0), VLOOKUP(SSI!G81,Translations!B:I,8,0)))))))","v":"Yes            No"}]
[null,3.5259999999999998,{"$f":"IF(Translations!A2=1, VLOOKUP(SSI!B101,Translations!B:G,2,0),IF(Translations!A2=2, VLOOKUP(SSI!B101,Translations!B:G,3,0),IF(Translations!A2=3, VLOOKUP(SSI!B101,Translations!B:G,4,0),IF(Translations!A2=4, VLOOKUP(SSI!B101,Translations!B:G,5,0),IF(Translations!A2=5, VLOOKUP(SSI!B101,Translations!B:I,6,0),IF(Translations!A2=6, VLOOKUP(SSI!B101,Translations!B:I,7,0), VLOOKUP(SSI!B101,Translations!B:I,8,0)))))))","v":"15.  Does your company have a calibration system in place that is in accordance with international standards?"},null,null,null,{"$f":"IF(Translations!A2=1, VLOOKUP(SSI!G81,Translations!B:G,2,0),IF(Translations!A2=2, VLOOKUP(SSI!G81,Translations!B:G,3,0),IF(Translations!A2=3, VLOOKUP(SSI!G81,Translations!B:G,4,0),IF(Translations!A2=4, VLOOKUP(SSI!G81,Translations!B:G,5,0),IF(Translations!A2=5, VLOOKUP(SSI!G81,Translations!B:I,6,0),IF(Translations!A2=6, VLOOKUP(SSI!G81,Translations!B:I,7,0), VLOOKUP(SSI!G81,Translations!B:I,8,0)))))))","v":"Yes            No"}]
[null,3.5270000000000001,{"$f":"IF(Translations!A2=1, VLOOKUP(SSI!B102,Translations!B:G,2,0),IF(Translations!A2=2, VLOOKUP(SSI!B102,Translations!B:G,3,0),IF(Translations!A2=3, VLOOKUP(SSI!B102,Translations!B:G,4,0),IF(Translations!A2=4, VLOOKUP(SSI!B102,Translations!B:G,5,0),IF(Translations!A2=5, VLOOKUP(SSI!B102,Translations!B:I,6,0),IF(Translations!A2=6, VLOOKUP(SSI!B102,Translations!B:I,7,0), VLOOKUP(SSI!B102,Translations!B:I,8,0)))))))","v":"16.  Does your company agree to provide acceptance reports if necessary?"},null,null,null,{"$f":"IF(Translations!A2=1, VLOOKUP(SSI!G81,Translations!B:G,2,0),IF(Translations!A2=2, VLOOKUP(SSI!G81,Translations!B:G,3,0),IF(Translations!A2=3, VLOOKUP(SSI!G81,Translations!B:G,4,0),IF(Translations!A2=4, VLOOKUP(SSI!G81,Translations!B:G,5,0),IF(Translations!A2=5, VLOOKUP(SSI!G81,Translations!B:I,6,0),IF(Translations!A2=6, VLOOKUP(SSI!G81,Translations!B:I,7,0), VLOOKUP(SSI!G81,Translations!B:I,8,0)))))))","v":"Yes            No"}]
[null,3.528,{"$f":"IF(Translations!A2=1, VLOOKUP(SSI!B103,Translations!B:G,2,0),IF(Translations!A2=2, VLOOKUP(SSI!B103,Translations!B:G,3,0),IF(Translations!A2=3, VLOOKUP(SSI!B103,Translations!B:G,4,0),IF(Translations!A2=4, VLOOKUP(SSI!B103,Translations!B:G,5,0),IF(Translations!A2=5, VLOOKUP(SSI!B103,Translations!B:I,6,0),IF(Translations!A2=6, VLOOKUP(SSI!B103,Translations!B:I,7,0), VLOOKUP(SSI!B103,Translations!B:I,8,0)))))))","v":"17.  Has your company defined procedures regarding environmental and are they implemented on-site?"},null,null,null,{"$f":"IF(Translations!A2=1, VLOOKUP(SSI!G81,Translations!B:G,2,0),IF(Translations!A2=2, VLOOKUP(SSI!G81,Translations!B:G,3,0),IF(Translations!A2=3, VLOOKUP(SSI!G81,Translations!B:G,4,0),IF(Translations!A2=4, VLOOKUP(SSI!G81,Translations!B:G,5,0),IF(Translations!A2=5, VLOOKUP(SSI!G81,Translations!B:I,6,0),IF(Translations!A2=6, VLOOKUP(SSI!G81,Translations!B:I,7,0), VLOOKUP(SSI!G81,Translations!B:I,8,0)))))))","v":"Yes            No"}]
[null,3.5289999999999999,{"$f":"IF(Translations!A2=1, VLOOKUP(SSI!B104,Translations!B:G,2,0),IF(Translations!A2=2, VLOOKUP(SSI!B104,Translations!B:G,3,0),IF(Translations!A2=3, VLOOKUP(SSI!B104,Translations!B:G,4,0),IF(Translations!A2=4, VLOOKUP(SSI!B104,Translations!B:G,5,0),IF(Translations!A2=5, VLOOKUP(SSI!B104,Translations!B:I,6,0),IF(Translations!A2=6, VLOOKUP(SSI!B104,Translations!B:I,7,0), VLOOKUP(SSI!B104,Translations!B:I,8,0)))))))","v":"18.  Has your company defined procedures regarding occupational health and are they implemented on-site?"},null,null,null,{"$f":"IF(Translations!A2=1, VLOOKUP(SSI!G81,Translations!B:G,2,0),IF(Translations!A2=2, VLOOKUP(SSI!G81,Translations!B:G,3,0),IF(Translations!A2=3, VLOOKUP(SSI!G81,Translations!B:G,4,0),IF(Translations!A2=4, VLOOKUP(SSI!G81,Translations!B:G,5,0),IF(Translations!A2=5, VLOOKUP(SSI!G81,Translations!B:I,6,0),IF(Translations!A2=6, VLOOKUP(SSI!G81,Translations!B:I,7,0), VLOOKUP(SSI!G81,Translations!B:I,8,0)))))))","v":"Yes            No"}]
[null,3.53,{"$f":"IF(Translations!A2=1, VLOOKUP(SSI!B105,Translations!B:G,2,0),IF(Translations!A2=2, VLOOKUP(SSI!B105,Translations!B:G,3,0),IF(Translations!A2=3, VLOOKUP(SSI!B105,Translations!B:G,4,0),IF(Translations!A2=4, VLOOKUP(SSI!B105,Translations!B:G,5,0),IF(Translations!A2=5, VLOOKUP(SSI!B105,Translations!B:I,6,0),IF(Translations!A2=6, VLOOKUP(SSI!B105,Translations!B:I,7,0), VLOOKUP(SSI!B105,Translations!B:I,8,0)))))))","v":"19.  Has your company defined procedures regarding safety aspects and are they implemented on-site?"},null,null,null,{"$f":"IF(Translations!A2=1, VLOOKUP(SSI!G81,Translations!B:G,2,0),IF(Translations!A2=2, VLOOKUP(SSI!G81,Translations!B:G,3,0),IF(Translations!A2=3, VLOOKUP(SSI!G81,Translations!B:G,4,0),IF(Translations!A2=4, VLOOKUP(SSI!G81,Translations!B:G,5,0),IF(Translations!A2=5, VLOOKUP(SSI!G81,Translations!B:I,6,0),IF(Translations!A2=6, VLOOKUP(SSI!G81,Translations!B:I,7,0), VLOOKUP(SSI!G81,Translations!B:I,8,0)))))))","v":"Yes            No"}]
[null,3.5310000000000001,{"$f":"IF(Translations!A2=1, VLOOKUP(SSI!B106,Translations!B:G,2,0),IF(Translations!A2=2, VLOOKUP(SSI!B106,Translations!B:G,3,0),IF(Translations!A2=3, VLOOKUP(SSI!B106,Translations!B:G,4,0),IF(Translations!A2=4, VLOOKUP(SSI!B106,Translations!B:G,5,0),IF(Translations!A2=5, VLOOKUP(SSI!B106,Translations!B:I,6,0),IF(Translations!A2=6, VLOOKUP(SSI!B106,Translations!B:I,7,0), VLOOKUP(SSI!B106,Translations!B:I,8,0)))))))","v":"20.  Does your company take measures to systematically ensure that your products comply with all requirements which may have an impact on environmental as well as occupational health and safety issues?"},null,null,null,{"$f":"IF(Translations!A2=1, VLOOKUP(SSI!G81,Translations!B:G,2,0),IF(Translations!A2=2, VLOOKUP(SSI!G81,Translations!B:G,3,0),IF(Translations!A2=3, VLOOKUP(SSI!G81,Translations!B:G,4,0),IF(Translations!A2=4, VLOOKUP(SSI!G81,Translations!B:G,5,0),IF(Translations!A2=5, VLOOKUP(SSI!G81,Translations!B:I,6,0),IF(Translations!A2=6, VLOOKUP(SSI!G81,Translations!B:I,7,0), VLOOKUP(SSI!G81,Translations!B:I,8,0)))))))","v":"Yes            No"}]
[null,3.532,{"$f":"IF(Translations!A2=1, VLOOKUP(SSI!B107,Translations!B:G,2,0),IF(Translations!A2=2, VLOOKUP(SSI!B107,Translations!B:G,3,0),IF(Translations!A2=3, VLOOKUP(SSI!B107,Translations!B:G,4,0),IF(Translations!A2=4, VLOOKUP(SSI!B107,Translations!B:G,5,0),IF(Translations!A2=5, VLOOKUP(SSI!B107,Translations!B:I,6,0),IF(Translations!A2=6, VLOOKUP(SSI!B107,Translations!B:I,7,0), VLOOKUP(SSI!B107,Translations!B:I,8,0)))))))","v":"21.  Does your company have a Risk Mitigation program in place as part of quality management system?"},null,null,null,{"$f":"IF(Translations!A2=1, VLOOKUP(SSI!G81,Translations!B:G,2,0),IF(Translations!A2=2, VLOOKUP(SSI!G81,Translations!B:G,3,0),IF(Translations!A2=3, VLOOKUP(SSI!G81,Translations!B:G,4,0),IF(Translations!A2=4, VLOOKUP(SSI!G81,Translations!B:G,5,0),IF(Translations!A2=5, VLOOKUP(SSI!G81,Translations!B:I,6,0),IF(Translations!A2=6, VLOOKUP(SSI!G81,Translations!B:I,7,0), VLOOKUP(SSI!G81,Translations!B:I,8,0)))))))","v":"Yes            No"}]
[null,3.5329999999999999,{"$f":"IF(Translations!A2=1, VLOOKUP(SSI!B108,Translations!B:G,2,0),IF(Translations!A2=2, VLOOKUP(SSI!B108,Translations!B:G,3,0),IF(Translations!A2=3, VLOOKUP(SSI!B108,Translations!B:G,4,0),IF(Translations!A2=4, VLOOKUP(SSI!B108,Translations!B:G,5,0),IF(Translations!A2=5, VLOOKUP(SSI!B108,Translations!B:I,6,0),IF(Translations!A2=6, VLOOKUP(SSI!B108,Translations!B:I,7,0), VLOOKUP(SSI!B108,Translations!B:I,8,0)))))))","v":"22.  Is effectiveness of companies' risk management system reviewed annually?"},null,null,null,{"$f":"IF(Translations!A2=1, VLOOKUP(SSI!G81,Translations!B:G,2,0),IF(Translations!A2=2, VLOOKUP(SSI!G81,Translations!B:G,3,0),IF(Translations!A2=3, VLOOKUP(SSI!G81,Translations!B:G,4,0),IF(Translations!A2=4, VLOOKUP(SSI!G81,Translations!B:G,5,0),IF(Translations!A2=5, VLOOKUP(SSI!G81,Translations!B:I,6,0),IF(Translations!A2=6, VLOOKUP(SSI!G81,Translations!B:I,7,0), VLOOKUP(SSI!G81,Translations!B:I,8,0)))))))","v":"Yes            No"}]
[null,3.5339999999999998,{"$f":"IF(Translations!A2=1, VLOOKUP(SSI!B109,Translations!B:G,2,0),IF(Translations!A2=2, VLOOKUP(SSI!B109,Translations!B:G,3,0),IF(Translations!A2=3, VLOOKUP(SSI!B109,Translations!B:G,4,0),IF(Translations!A2=4, VLOOKUP(SSI!B109,Translations!B:G,5,0),IF(Translations!A2=5, VLOOKUP(SSI!B109,Translations!B:I,6,0),IF(Translations!A2=6, VLOOKUP(SSI!B109,Translations!B:I,7,0), VLOOKUP(SSI!B109,Translations!B:I,8,0)))))))","v":"23.  Does your company have a system to grant the security of information?"},null,null,null,{"$f":"IF(Translations!A2=1, VLOOKUP(SSI!G81,Translations!B:G,2,0),IF(Translations!A2=2, VLOOKUP(SSI!G81,Translations!B:G,3,0),IF(Translations!A2=3, VLOOKUP(SSI!G81,Translations!B:G,4,0),IF(Translations!A2=4, VLOOKUP(SSI!G81,Translations!B:G,5,0),IF(Translations!A2=5, VLOOKUP(SSI!G81,Translations!B:I,6,0),IF(Translations!A2=6, VLOOKUP(SSI!G81,Translations!B:I,7,0), VLOOKUP(SSI!G81,Translations!B:I,8,0)))))))","v":"Yes            No"}]
[null,3.5350000000000001,{"$f":"IF(Translations!A2=1, VLOOKUP(SSI!B110,Translations!B:G,2,0),IF(Translations!A2=2, VLOOKUP(SSI!B110,Translations!B:G,3,0),IF(Translations!A2=3, VLOOKUP(SSI!B110,Translations!B:G,4,0),IF(Translations!A2=4, VLOOKUP(SSI!B110,Translations!B:G,5,0),IF(Translations!A2=5, VLOOKUP(SSI!B110,Translations!B:I,6,0),IF(Translations!A2=6, VLOOKUP(SSI!B110,Translations!B:I,7,0), VLOOKUP(SSI!B110,Translations!B:I,8,0)))))))","v":"24.  Does your company agree to a site visit by our auditors and allows access to all relevant records, if necessary?"},null,null,null,{"$f":"IF(Translations!A2=1, VLOOKUP(SSI!G81,Translations!B:G,2,0),IF(Translations!A2=2, VLOOKUP(SSI!G81,Translations!B:G,3,0),IF(Translations!A2=3, VLOOKUP(SSI!G81,Translations!B:G,4,0),IF(Translations!A2=4, VLOOKUP(SSI!G81,Translations!B:G,5,0),IF(Translations!A2=5, VLOOKUP(SSI!G81,Translations!B:I,6,0),IF(Translations!A2=6, VLOOKUP(SSI!G81,Translations!B:I,7,0), VLOOKUP(SSI!G81,Translations!B:I,8,0)))))))","v":"Yes            No"}]
[null,3.536,{"$f":"IF(Translations!A2=1, VLOOKUP(SSI!B111,Translations!B:G,2,0),IF(Translations!A2=2, VLOOKUP(SSI!B111,Translations!B:G,3,0),IF(Translations!A2=3, VLOOKUP(SSI!B111,Translations!B:G,4,0),IF(Translations!A2=4, VLOOKUP(SSI!B111,Translations!B:G,5,0),IF(Translations!A2=5, VLOOKUP(SSI!B111,Translations!B:I,6,0),IF(Translations!A2=6, VLOOKUP(SSI!B111,Translations!B:I,7,0), VLOOKUP(SSI!B111,Translations!B:I,8,0)))))))","v":"25.  Is your company willing to draw up and enter into a Quality Assurance Agreement with Oerlikon?"},null,null,null,{"$f":"IF(Translations!A2=1, VLOOKUP(SSI!G81,Translations!B:G,2,0),IF(Translations!A2=2, VLOOKUP(SSI!G81,Translations!B:G,3,0),IF(Translations!A2=3, VLOOKUP(SSI!G81,Translations!B:G,4,0),IF(Translations!A2=4, VLOOKUP(SSI!G81,Translations!B:G,5,0),IF(Translations!A2=5, VLOOKUP(SSI!G81,Translations!B:I,6,0),IF(Translations!A2=6, VLOOKUP(SSI!G81,Translations!B:I,7,0), VLOOKUP(SSI!G81,Translations!B:I,8,0)))))))","v":"Yes            No"}]
[null,3.5369999999999999,{"$f":"IF(Translations!A2=1, VLOOKUP(SSI!B112,Translations!B:G,2,0),IF(Translations!A2=2, VLOOKUP(SSI!B112,Translations!B:G,3,0),IF(Translations!A2=3, VLOOKUP(SSI!B112,Translations!B:G,4,0),IF(Translations!A2=4, VLOOKUP(SSI!B112,Translations!B:G,5,0),IF(Translations!A2=5, VLOOKUP(SSI!B112,Translations!B:I,6,0),IF(Translations!A2=6, VLOOKUP(SSI!B112,Translations!B:I,7,0), VLOOKUP(SSI!B112,Translations!B:I,8,0)))))))","v":"26.  Does your company have a documented First Article Inspection Report (FAIR) program in place, that includes customer approval on changes?"},null,null,null,{"$f":"IF(Translations!A2=1, VLOOKUP(SSI!G81,Translations!B:G,2,0),IF(Translations!A2=2, VLOOKUP(SSI!G81,Translations!B:G,3,0),IF(Translations!A2=3, VLOOKUP(SSI!G81,Translations!B:G,4,0),IF(Translations!A2=4, VLOOKUP(SSI!G81,Translations!B:G,5,0),IF(Translations!A2=5, VLOOKUP(SSI!G81,Translations!B:I,6,0),IF(Translations!A2=6, VLOOKUP(SSI!G81,Translations!B:I,7,0), VLOOKUP(SSI!G81,Translations!B:I,8,0)))))))","v":"Yes            No"}]
[null,3.5379999999999998,{"$f":"IF(Translations!A2=1, VLOOKUP(SSI!B113,Translations!B:G,2,0),IF(Translations!A2=2, VLOOKUP(SSI!B113,Translations!B:G,3,0),IF(Translations!A2=3, VLOOKUP(SSI!B113,Translations!B:G,4,0),IF(Translations!A2=4, VLOOKUP(SSI!B113,Translations!B:G,5,0),IF(Translations!A2=5, VLOOKUP(SSI!B113,Translations!B:I,6,0),IF(Translations!A2=6, VLOOKUP(SSI!B113,Translations!B:I,7,0), VLOOKUP(SSI!B113,Translations!B:I,8,0)))))))","v":"27.  Does your company have a defined process for handling data and information (information security)?"},null,null,null,{"$f":"IF(Translations!A2=1, VLOOKUP(SSI!G81,Translations!B:G,2,0),IF(Translations!A2=2, VLOOKUP(SSI!G81,Translations!B:G,3,0),IF(Translations!A2=3, VLOOKUP(SSI!G81,Translations!B:G,4,0),IF(Translations!A2=4, VLOOKUP(SSI!G81,Translations!B:G,5,0),IF(Translations!A2=5, VLOOKUP(SSI!G81,Translations!B:I,6,0),IF(Translations!A2=6, VLOOKUP(SSI!G81,Translations!B:I,7,0), VLOOKUP(SSI!G81,Translations!B:I,8,0)))))))","v":"Yes            No"}]
[null,3.5390000000000001,{"$f":"IF(Translations!A2=1, VLOOKUP(SSI!B114,Translations!B:G,2,0),IF(Translations!A2=2, VLOOKUP(SSI!B114,Translations!B:G,3,0),IF(Translations!A2=3, VLOOKUP(SSI!B114,Translations!B:G,4,0),IF(Translations!A2=4, VLOOKUP(SSI!B114,Translations!B:G,5,0),IF(Translations!A2=5, VLOOKUP(SSI!B114,Translations!B:I,6,0),IF(Translations!A2=6, VLOOKUP(SSI!B114,Translations!B:I,7,0), VLOOKUP(SSI!B114,Translations!B:I,8,0)))))))","v":"28.  Is your company certified by an external organization for sustainability?"},null,null,null,{"$f":"IF(Translations!A2=1, VLOOKUP(SSI!G81,Translations!B:G,2,0),IF(Translations!A2=2, VLOOKUP(SSI!G81,Translations!B:G,3,0),IF(Translations!A2=3, VLOOKUP(SSI!G81,Translations!B:G,4,0),IF(Translations!A2=4, VLOOKUP(SSI!G81,Translations!B:G,5,0),IF(Translations!A2=5, VLOOKUP(SSI!G81,Translations!B:I,6,0),IF(Translations!A2=6, VLOOKUP(SSI!G81,Translations!B:I,7,0), VLOOKUP(SSI!G81,Translations!B:I,8,0)))))))","v":"Yes            No"}]
[null,3.54,{"$f":"IF(Translations!A2=1, VLOOKUP(SSI!B115,Translations!B:G,2,0),IF(Translations!A2=2, VLOOKUP(SSI!B115,Translations!B:G,3,0),IF(Translations!A2=3, VLOOKUP(SSI!B115,Translations!B:G,4,0),IF(Translations!A2=4, VLOOKUP(SSI!B115,Translations!B:G,5,0),IF(Translations!A2=5, VLOOKUP(SSI!B115,Translations!B:I,6,0),IF(Translations!A2=6, VLOOKUP(SSI!B115,Translations!B:I,7,0), VLOOKUP(SSI!B115,Translations!B:I,8,0)))))))","v":"29.  If your company does not have a sustainability rating yet, is it willing to undergo Sustainability assessment by EcoVadis?"},null,null,null,{"$f":"IF(Translations!A2=1, VLOOKUP(SSI!G81,Translations!B:G,2,0),IF(Translations!A2=2, VLOOKUP(SSI!G81,Translations!B:G,3,0),IF(Translations!A2=3, VLOOKUP(SSI!G81,Translations!B:G,4,0),IF(Translations!A2=4, VLOOKUP(SSI!G81,Translations!B:G,5,0),IF(Translations!A2=5, VLOOKUP(SSI!G81,Translations!B:I,6,0),IF(Translations!A2=6, VLOOKUP(SSI!G81,Translations!B:I,7,0), VLOOKUP(SSI!G81,Translations!B:I,8,0)))))))","v":"Yes            No"}]
[null,3.5409999999999999,{"$f":"IF(Translations!A2=1, VLOOKUP(SSI!B116,Translations!B:G,2,0),IF(Translations!A2=2, VLOOKUP(SSI!B116,Translations!B:G,3,0),IF(Translations!A2=3, VLOOKUP(SSI!B116,Translations!B:G,4,0),IF(Translations!A2=4, VLOOKUP(SSI!B116,Translations!B:G,5,0),IF(Translations!A2=5, VLOOKUP(SSI!B116,Translations!B:I,6,0),IF(Translations!A2=6, VLOOKUP(SSI!B116,Translations!B:I,7,0), VLOOKUP(SSI!B116,Translations!B:I,8,0)))))))","v":"Remarks:"}]
[]
[]
[null,4,{"$f":"IF(Translations!A2=1, VLOOKUP(SSI!B119,Translations!B:G,2,0), IF(Translations!A2=2, VLOOKUP(SSI!B119,Translations!B:G,3,0), IF(Translations!A2=3, VLOOKUP(SSI!B119,Translations!B:G,4,0), IF(Translations!A2=4, VLOOKUP(SSI!B119,Translations!B:G,5,0), IF(Translations!A2=5, VLOOKUP(SSI!B119,Translations!B:I,6,0),IF(Translations!A2=6, VLOOKUP(SSI!B119,Translations!B:I,7,0), VLOOKUP(SSI!B119,Translations!B:I,8,0)))))))","v":"4.     Enclosures"},null,null,null,4.3]
[null,4.1100000000000003,{"$f":"IF(Translations!A2=1, VLOOKUP(SSI!B120,Translations!B:G,2,0),IF(Translations!A2=2, VLOOKUP(SSI!B120,Translations!B:G,3,0),IF(Translations!A2=3, VLOOKUP(SSI!B120,Translations!B:G,4,0),IF(Translations!A2=4, VLOOKUP(SSI!B120,Translations!B:G,5,0),IF(Translations!A2=5, VLOOKUP(SSI!B120,Translations!B:I,6,0),IF(Translations!A2=6, VLOOKUP(SSI!B120,Translations!B:I,7,0), VLOOKUP(SSI!B120,Translations!B:I,8,0)))))))","v":"General Payment and Delivery Conditions"},null,null,{"$f":"IF(H120=TRUE,IF(Translations!A2=1, VLOOKUP(SSI!G119,Translations!B:G,2,0),IF(Translations!A2=2, VLOOKUP(SSI!G119,Translations!B:G,3,0),IF(Translations!A2=3, VLOOKUP(SSI!G119,Translations!B:G,4,0),IF(Translations!A2=4, VLOOKUP(SSI!G119,Translations!B:G,5,0),IF(Translations!A2=5, VLOOKUP(SSI!G119,Translations!B:I,6,0),IF(Translations!A2=6, VLOOKUP(SSI!G119,Translations!B:I,7,0), VLOOKUP(SSI!G119,Translations!B:I,8,0))))))),\"\")","v":""},null,false]
[null,4.12,{"$f":"IF(Translations!A2=1, VLOOKUP(SSI!B121,Translations!B:G,2,0),IF(Translations!A2=2, VLOOKUP(SSI!B121,Translations!B:G,3,0),IF(Translations!A2=3, VLOOKUP(SSI!B121,Translations!B:G,4,0),IF(Translations!A2=4, VLOOKUP(SSI!B121,Translations!B:G,5,0),IF(Translations!A2=5, VLOOKUP(SSI!B121,Translations!B:I,6,0),IF(Translations!A2=6, VLOOKUP(SSI!B121,Translations!B:I,7,0), VLOOKUP(SSI!B121,Translations!B:I,8,0)))))))","v":"Brochure and Product Documentation"},null,null,{"$f":"IF(H121=TRUE,IF(Translations!A2=1, VLOOKUP(SSI!G119,Translations!B:G,2,0),IF(Translations!A2=2, VLOOKUP(SSI!G119,Translations!B:G,3,0),IF(Translations!A2=3, VLOOKUP(SSI!G119,Translations!B:G,4,0),IF(Translations!A2=4, VLOOKUP(SSI!G119,Translations!B:G,5,0),IF(Translations!A2=5, VLOOKUP(SSI!G119,Translations!B:I,6,0),IF(Translations!A2=6, VLOOKUP(SSI!G119,Translations!B:I,7,0), VLOOKUP(SSI!G119,Translations!B:I,8,0))))))),\"\")","v":""},null,false]
[null,4.13,{"$f":"IF(Translations!A2=1, VLOOKUP(SSI!B122,Translations!B:G,2,0),IF(Translations!A2=2, VLOOKUP(SSI!B122,Translations!B:G,3,0),IF(Translations!A2=3, VLOOKUP(SSI!B122,Translations!B:G,4,0),IF(Translations!A2=4, VLOOKUP(SSI!B122,Translations!B:G,5,0),IF(Translations!A2=5, VLOOKUP(SSI!B122,Translations!B:I,6,0),IF(Translations!A2=6, VLOOKUP(SSI!B122,Translations!B:I,7,0), VLOOKUP(SSI!B122,Translations!B:I,8,0)))))))","v":"References of Completed Projects"},null,null,{"$f":"IF(H122=TRUE,IF(Translations!A2=1, VLOOKUP(SSI!G119,Translations!B:G,2,0),IF(Translations!A2=2, VLOOKUP(SSI!G119,Translations!B:G,3,0),IF(Translations!A2=3, VLOOKUP(SSI!G119,Translations!B:G,4,0),IF(Translations!A2=4, VLOOKUP(SSI!G119,Translations!B:G,5,0),IF(Translations!A2=5, VLOOKUP(SSI!G119,Translations!B:I,6,0),IF(Translations!A2=6, VLOOKUP(SSI!G119,Translations!B:I,7,0), VLOOKUP(SSI!G119,Translations!B:I,8,0))))))),\"\")","v":""},null,false]
[null,4.1399999999999997,{"$f":"IF(Translations!A2=1, VLOOKUP(SSI!B123,Translations!B:G,2,0),IF(Translations!A2=2, VLOOKUP(SSI!B123,Translations!B:G,3,0),IF(Translations!A2=3, VLOOKUP(SSI!B123,Translations!B:G,4,0),IF(Translations!A2=4, VLOOKUP(SSI!B123,Translations!B:G,5,0),IF(Translations!A2=5, VLOOKUP(SSI!B123,Translations!B:I,6,0),IF(Translations!A2=6, VLOOKUP(SSI!B123,Translations!B:I,7,0), VLOOKUP(SSI!B123,Translations!B:I,8,0)))))))","v":"Organization Charts"},null,null,{"$f":"IF(H123=TRUE,IF(Translations!A2=1, VLOOKUP(SSI!G119,Translations!B:G,2,0),IF(Translations!A2=2, VLOOKUP(SSI!G119,Translations!B:G,3,0),IF(Translations!A2=3, VLOOKUP(SSI!G119,Translations!B:G,4,0),IF(Translations!A2=4, VLOOKUP(SSI!G119,Translations!B:G,5,0),IF(Translations!A2=5, VLOOKUP(SSI!G119,Translations!B:I,6,0),IF(Translations!A2=6, VLOOKUP(SSI!G119,Translations!B:I,7,0), VLOOKUP(SSI!G119,Translations!B:I,8,0))))))),\"\")","v":""},null,false]
[null,4.1500000000000004,{"$f":"IF(Translations!A2=1, VLOOKUP(SSI!B124,Translations!B:G,2,0),IF(Translations!A2=2, VLOOKUP(SSI!B124,Translations!B:G,3,0),IF(Translations!A2=3, VLOOKUP(SSI!B124,Translations!B:G,4,0),IF(Translations!A2=4, VLOOKUP(SSI!B124,Translations!B:G,5,0),IF(Translations!A2=5, VLOOKUP(SSI!B124,Translations!B:I,6,0),IF(Translations!A2=6, VLOOKUP(SSI!B124,Translations!B:I,7,0), VLOOKUP(SSI!B124,Translations!B:I,8,0)))))))","v":"List of Production Resources"},null,null,{"$f":"IF(H124=TRUE,IF(Translations!A2=1, VLOOKUP(SSI!G119,Translations!B:G,2,0),IF(Translations!A2=2, VLOOKUP(SSI!G119,Translations!B:G,3,0),IF(Translations!A2=3, VLOOKUP(SSI!G119,Translations!B:G,4,0),IF(Translations!A2=4, VLOOKUP(SSI!G119,Translations!B:G,5,0),IF(Translations!A2=5, VLOOKUP(SSI!G119,Translations!B:I,6,0),IF(Translations!A2=6, VLOOKUP(SSI!G119,Translations!B:I,7,0), VLOOKUP(SSI!G119,Translations!B:I,8,0))))))),\"\")","v":""},null,false]
[null,4.16,{"$f":"IF(Translations!A2=1, VLOOKUP(SSI!B125,Translations!B:G,2,0),IF(Translations!A2=2, VLOOKUP(SSI!B125,Translations!B:G,3,0),IF(Translations!A2=3, VLOOKUP(SSI!B125,Translations!B:G,4,0),IF(Translations!A2=4, VLOOKUP(SSI!B125,Translations!B:G,5,0),IF(Translations!A2=5, VLOOKUP(SSI!B125,Translations!B:I,6,0),IF(Translations!A2=6, VLOOKUP(SSI!B125,Translations!B:I,7,0), VLOOKUP(SSI!B125,Translations!B:I,8,0)))))))","v":"Annual Report"},null,null,{"$f":"IF(H125=TRUE,IF(Translations!A2=1, VLOOKUP(SSI!G119,Translations!B:G,2,0),IF(Translations!A2=2, VLOOKUP(SSI!G119,Translations!B:G,3,0),IF(Translations!A2=3, VLOOKUP(SSI!G119,Translations!B:G,4,0),IF(Translations!A2=4, VLOOKUP(SSI!G119,Translations!B:G,5,0),IF(Translations!A2=5, VLOOKUP(SSI!G119,Translations!B:I,6,0),IF(Translations!A2=6, VLOOKUP(SSI!G119,Translations!B:I,7,0), VLOOKUP(SSI!G119,Translations!B:I,8,0))))))),\"\")","v":""},null,false]
[null,4.17,{"$f":"IF(Translations!A2=1, VLOOKUP(SSI!B126,Translations!B:G,2,0),IF(Translations!A2=2, VLOOKUP(SSI!B126,Translations!B:G,3,0),IF(Translations!A2=3, VLOOKUP(SSI!B126,Translations!B:G,4,0),IF(Translations!A2=4, VLOOKUP(SSI!B126,Translations!B:G,5,0),IF(Translations!A2=5, VLOOKUP(SSI!B126,Translations!B:I,6,0),IF(Translations!A2=6, VLOOKUP(SSI!B126,Translations!B:I,7,0), VLOOKUP(SSI!B126,Translations!B:I,8,0)))))))","v":"Quality Manual"},null,null,{"$f":"IF(H126=TRUE,IF(Translations!A2=1, VLOOKUP(SSI!G119,Translations!B:G,2,0),IF(Translations!A2=2, VLOOKUP(SSI!G119,Translations!B:G,3,0),IF(Translations!A2=3, VLOOKUP(SSI!G119,Translations!B:G,4,0),IF(Translations!A2=4, VLOOKUP(SSI!G119,Translations!B:G,5,0),IF(Translations!A2=5, VLOOKUP(SSI!G119,Translations!B:I,6,0),IF(Translations!A2=6, VLOOKUP(SSI!G119,Translations!B:I,7,0), VLOOKUP(SSI!G119,Translations!B:I,8,0))))))),\"\")","v":""},null,false]
[null,4.18,{"$f":"IF(Translations!A2=1, VLOOKUP(SSI!B127,Translations!B:G,2,0),IF(Translations!A2=2, VLOOKUP(SSI!B127,Translations!B:G,3,0),IF(Translations!A2=3, VLOOKUP(SSI!B127,Translations!B:G,4,0),IF(Translations!A2=4, VLOOKUP(SSI!B127,Translations!B:G,5,0),IF(Translations!A2=5, VLOOKUP(SSI!B127,Translations!B:I,6,0),IF(Translations!A2=6, VLOOKUP(SSI!B127,Translations!B:I,7,0), VLOOKUP(SSI!B127,Translations!B:I,8,0)))))))","v":"Self-Assessment for Electrical Safety"},null,null,{"$f":"IF(H127=TRUE,IF(Translations!A2=1, VLOOKUP(SSI!G119,Translations!B:G,2,0),IF(Translations!A2=2, VLOOKUP(SSI!G119,Translations!B:G,3,0),IF(Translations!A2=3, VLOOKUP(SSI!G119,Translations!B:G,4,0),IF(Translations!A2=4, VLOOKUP(SSI!G119,Translations!B:G,5,0),IF(Translations!A2=5, VLOOKUP(SSI!G119,Translations!B:I,6,0),IF(Translations!A2=6, VLOOKUP(SSI!G119,Translations!B:I,7,0), VLOOKUP(SSI!G119,Translations!B:I,8,0))))))),\"\")","v":""},null,false]
[null,4.1900000000000004,{"$f":"IF(Translations!A2=1, VLOOKUP(SSI!B128,Translations!B:G,2,0),IF(Translations!A2=2, VLOOKUP(SSI!B128,Translations!B:G,3,0),IF(Translations!A2=3, VLOOKUP(SSI!B128,Translations!B:G,4,0),IF(Translations!A2=4, VLOOKUP(SSI!B128,Translations!B:G,5,0),IF(Translations!A2=5, VLOOKUP(SSI!B128,Translations!B:I,6,0),IF(Translations!A2=6, VLOOKUP(SSI!B128,Translations!B:I,7,0), VLOOKUP(SSI!B128,Translations!B:I,8,0)))))))","v":"Additional Business Unit Specific Self Information Survey:"},null,null,{"$f":"IF(H128=TRUE,IF(Translations!A2=1, VLOOKUP(SSI!G119,Translations!B:G,2,0),IF(Translations!A2=2, VLOOKUP(SSI!G119,Translations!B:G,3,0),IF(Translations!A2=3, VLOOKUP(SSI!G119,Translations!B:G,4,0),IF(Translations!A2=4, VLOOKUP(SSI!G119,Translations!B:G,5,0),IF(Translations!A2=5, VLOOKUP(SSI!G119,Translations!B:I,6,0),IF(Translations!A2=6, VLOOKUP(SSI!G119,Translations!B:I,7,0), VLOOKUP(SSI!G119,Translations!B:I,8,0))))))),\"\")","v":""},null,false]
[]
[null,4.2,{"$f":"IF(Translations!A2=1, VLOOKUP(SSI!B130,Translations!B:G,2,0),IF(Translations!A2=2, VLOOKUP(SSI!B130,Translations!B:G,3,0),IF(Translations!A2=3, VLOOKUP(SSI!B130,Translations!B:G,4,0),IF(Translations!A2=4, VLOOKUP(SSI!B130,Translations!B:G,5,0),IF(Translations!A2=5, VLOOKUP(SSI!B130,Translations!B:I,6,0),IF(Translations!A2=6, VLOOKUP(SSI!B130,Translations!B:I,7,0), VLOOKUP(SSI!B130,Translations!B:I,8,0)))))))","v":"          Comments:"}]
[null,5,{"$f":"IF(Translations!A2=1, VLOOKUP(SSI!B131,Translations!B:G,2,0),IF(Translations!A2=2, VLOOKUP(SSI!B131,Translations!B:G,3,0),IF(Translations!A2=3, VLOOKUP(SSI!B131,Translations!B:G,4,0),IF(Translations!A2=4, VLOOKUP(SSI!B131,Translations!B:G,5,0),IF(Translations!A2=5, VLOOKUP(SSI!B131,Translations!B:I,6,0),IF(Translations!A2=6, VLOOKUP(SSI!B131,Translations!B:I,7,0), VLOOKUP(SSI!B131,Translations!B:I,8,0)))))))","v":"5.     Remarks"}]
[]
[]
[]
[]
[null,5.0999999999999996,{"$f":"IF(Translations!A2=1, VLOOKUP(SSI!B136,Translations!B:G,2,0),IF(Translations!A2=2, VLOOKUP(SSI!B136,Translations!B:G,3,0),IF(Translations!A2=3, VLOOKUP(SSI!B136,Translations!B:G,4,0),IF(Translations!A2=4, VLOOKUP(SSI!B136,Translations!B:G,5,0), IF(Translations!A2=5, VLOOKUP(SSI!B136,Translations!B:I,6,0),IF(Translations!A2=6, VLOOKUP(SSI!B136,Translations!B:I,7,0), VLOOKUP(SSI!B136,Translations!B:I,8,0)))))))","v":"List of machines & test equipment"}]
[]
[null,5.1100000000000003,{"$f":"IF(Translations!A2=1, VLOOKUP(SSI!B138,Translations!B:G,2,0),IF(Translations!A2=2, VLOOKUP(SSI!B138,Translations!B:G,3,0),IF(Translations!A2=3, VLOOKUP(SSI!B138,Translations!B:G,4,0),IF(Translations!A2=4, VLOOKUP(SSI!B138,Translations!B:G,5,0), IF(Translations!A2=5, VLOOKUP(SSI!B138,Translations!B:I,6,0),IF(Translations!A2=6, VLOOKUP(SSI!B138,Translations!B:I,7,0), VLOOKUP(SSI!B138,Translations!B:I,8,0)))))))","v":"Company Name:"}]
[null,5.12,{"$f":"IF(Translations!A2=1, VLOOKUP(SSI!B139,Translations!B:G,2,0),IF(Translations!A2=2, VLOOKUP(SSI!B139,Translations!B:G,3,0),IF(Translations!A2=3, VLOOKUP(SSI!B139,Translations!B:G,4,0),IF(Translations!A2=4, VLOOKUP(SSI!B139,Translations!B:G,5,0),IF(Translations!A2=5, VLOOKUP(SSI!B139,Translations!B:I,6,0),IF(Translations!A2=6, VLOOKUP(SSI!B139,Translations!B:I,7,0), VLOOKUP(SSI!B139,Translations!B:I,8,0)))))))","v":"Date: "}]
[null,null,null,5.2110000000000003,null,5.2119999999999997,5.2130000000000001]
[null,5.2,{"$f":"IF(Translations!A2=1, VLOOKUP(SSI!B141,Translations!B:G,2,0),IF(Translations!A2=2, VLOOKUP(SSI!B141,Translations!B:G,3,0),IF(Translations!A2=3, VLOOKUP(SSI!B141,Translations!B:G,4,0),IF(Translations!A2=4, VLOOKUP(SSI!B141,Translations!B:G,5,0),IF(Translations!A2=5, VLOOKUP(SSI!B141,Translations!B:I,6,0),IF(Translations!A2=6, VLOOKUP(SSI!B141,Translations!B:I,7,0), VLOOKUP(SSI!B141,Translations!B:I,8,0)))))))","v":"01. Machine(s): \nAttach a separate list if necessary  "},{"$f":"IF(Translations!A2=1, VLOOKUP(SSI!D140,Translations!B:G,2,0),IF(Translations!A2=2, VLOOKUP(SSI!D140,Translations!B:G,3,0),IF(Translations!A2=3, VLOOKUP(SSI!D140,Translations!B:G,4,0),IF(Translations!A2=4, VLOOKUP(SSI!D140,Translations!B:G,5,0),IF(Translations!A2=5, VLOOKUP(SSI!D140,Translations!B:I,6,0),IF(Translations!A2=6, VLOOKUP(SSI!D140,Translations!B:I,7,0), VLOOKUP(SSI!D140,Translations!B:I,8,0)))))))","v":"Machine Type"},null,{"$f":"IF(Translations!A2=1, VLOOKUP(SSI!F140,Translations!B:G,2,0),IF(Translations!A2=2, VLOOKUP(SSI!F140,Translations!B:G,3,0),IF(Translations!A2=3, VLOOKUP(SSI!F140,Translations!B:G,4,0),IF(Translations!A2=4, VLOOKUP(SSI!F140,Translations!B:G,5,0), IF(Translations!A2=5, VLOOKUP(SSI!F140,Translations!B:I,6,0),IF(Translations!A2=6, VLOOKUP(SSI!F140,Translations!B:I,7,0), VLOOKUP(SSI!F140,Translations!B:I,8,0)))))))","v":"Tolerance Class"},{"$f":"IF(Translations!A2=1, VLOOKUP(SSI!G140,Translations!B:G,2,0),IF(Translations!A2=2, VLOOKUP(SSI!G140,Translations!B:G,3,0),IF(Translations!A2=3, VLOOKUP(SSI!G140,Translations!B:G,4,0),IF(Translations!A2=4, VLOOKUP(SSI!G140,Translations!B:G,5,0),IF(Translations!A2=5, VLOOKUP(SSI!G140,Translations!B:I,6,0),IF(Translations!A2=6, VLOOKUP(SSI!G140,Translations!B:I,7,0), VLOOKUP(SSI!G140,Translations!B:I,8,0)))))))","v":"Capacity"}]
[null,5.21,{"$f":"IF(Translations!A2=1, VLOOKUP(SSI!B142,Translations!B:G,2,0),IF(Translations!A2=2, VLOOKUP(SSI!B142,Translations!B:G,3,0),IF(Translations!A2=3, VLOOKUP(SSI!B142,Translations!B:G,4,0),IF(Translations!A2=4, VLOOKUP(SSI!B142,Translations!B:G,5,0),IF(Translations!A2=5, VLOOKUP(SSI!B142,Translations!B:I,6,0),IF(Translations!A2=6, VLOOKUP(SSI!B142,Translations!B:I,7,0), VLOOKUP(SSI!B142,Translations!B:I,8,0)))))))","v":"e.g. Drilling & milling center"},"MAHO, type *****",null,"IT 6","1 shift"]
[]
[]
[]
[]
[]
[]
[]
[]
[]
[]
[null,null,null,5.3259999999999996,5.327]
[null,null,null,5.3220000000000001,5.3230000000000004,5.3239999999999998,5.3250000000000002]
[null,5.3,{"$f":"IF(Translations!A2=1,VLOOKUP(SSI!B155,Translations!B:G,2,0),IF(Translations!A2=2,VLOOKUP(SSI!B155,Translations!B:G,3,0),IF(Translations!A2=3,VLOOKUP(SSI!B155,Translations!B:G,4,0),IF(Translations!A2=4,VLOOKUP(SSI!B155,Translations!B:G,5,0),IF(Translations!A2=5, VLOOKUP(SSI!B155,Translations!B:I,6,0),IF(Translations!A2=6, VLOOKUP(SSI!B155,Translations!B:I,7,0), VLOOKUP(SSI!B155,Translations!B:I,8,0)))))))","v":"02. Test equipment:\nAttach a separate list if necessary"},{"$f":"IF(Translations!A2=1,VLOOKUP(SSI!D154,Translations!B:G,2,0),IF(Translations!A2=2,VLOOKUP(SSI!D154,Translations!B:G,3,0),IF(Translations!A2=3,VLOOKUP(SSI!D154,Translations!B:G,4,0),IF(Translations!A2=4,VLOOKUP(SSI!D154,Translations!B:G,5,0),IF(Translations!A2=5, VLOOKUP(SSI!D154,Translations!B:I,6,0),IF(Translations!A2=6, VLOOKUP(SSI!D154,Translations!B:I,7,0), VLOOKUP(SSI!D154,Translations!B:I,8,0)))))))","v":"Please complete (if necessary, state required test equipment)"}]
[null,5.3109999999999999,{"$f":"IF(Translations!A2=1,VLOOKUP(SSI!B156,Translations!B:G,2,0),IF(Translations!A2=2,VLOOKUP(SSI!B156,Translations!B:G,3,0),IF(Translations!A2=3,VLOOKUP(SSI!B156,Translations!B:G,4,0),IF(Translations!A2=4,VLOOKUP(SSI!B156,Translations!B:G,5,0),IF(Translations!A2=5, VLOOKUP(SSI!B156,Translations!B:I,6,0),IF(Translations!A2=6, VLOOKUP(SSI!B156,Translations!B:I,7,0), VLOOKUP(SSI!B156,Translations!B:I,8,0)))))))","v":"Measuring equipment Tolerance classes"},null,null,"…..."]
[null,5.3120000000000003,{"$f":"IF(Translations!A2=1,VLOOKUP(SSI!B157,Translations!B:G,2,0),IF(Translations!A2=2,VLOOKUP(SSI!B157,Translations!B:G,3,0),IF(Translations!A2=3,VLOOKUP(SSI!B157,Translations!B:G,4,0),IF(Translations!A2=4,VLOOKUP(SSI!B157,Translations!B:G,5,0),IF(Translations!A2=5, VLOOKUP(SSI!B157,Translations!B:I,6,0),IF(Translations!A2=6, VLOOKUP(SSI!B157,Translations!B:I,7,0), VLOOKUP(SSI!B157,Translations!B:I,8,0)))))))","v":"Coordinate measuring machine"},{"$f":"IF(Translations!A2=1, VLOOKUP(SSI!D153,Translations!B:G,2,0),IF(Translations!A2=2, VLOOKUP(SSI!D153,Translations!B:G,3,0),IF(Translations!A2=3, VLOOKUP(SSI!D153,Translations!B:G,4,0),IF(Translations!A2=4, VLOOKUP(SSI!D153,Translations!B:G,5,0),IF(Translations!A2=5, VLOOKUP(SSI!D153,Translations!B:I,6,0),IF(Translations!A2=6, VLOOKUP(SSI!D153,Translations!B:I,7,0), VLOOKUP(SSI!D153,Translations!B:I,8,0)))))))","v":"Yes"},{"$f":"IF(Translations!A2=1,VLOOKUP(SSI!E153,Translations!B:G,2,0),IF(Translations!A2=2,VLOOKUP(SSI!E153,Translations!B:G,3,0),IF(Translations!A2=3,VLOOKUP(SSI!E153,Translations!B:G,4,0),IF(Translations!A2=4,VLOOKUP(SSI!E153,Translations!B:G,5,0),IF(Translations!A2=5, VLOOKUP(SSI!E153,Translations!B:I,6,0),IF(Translations!A2=6, VLOOKUP(SSI!E153,Translations!B:I,7,0), VLOOKUP(SSI!E153,Translations!B:I,8,0)))))))","v":"No"},{"$f":"IF(Translations!A2=1, VLOOKUP(SSI!E154,Translations!B:G,2,0),IF(Translations!A2=2, VLOOKUP(SSI!E154,Translations!B:G,3,0),IF(Translations!A2=3, VLOOKUP(SSI!E154,Translations!B:G,4,0),IF(Translations!A2=4, VLOOKUP(SSI!E154,Translations!B:G,5,0),IF(Translations!A2=5, VLOOKUP(SSI!E154,Translations!B:I,6,0),IF(Translations!A2=6, VLOOKUP(SSI!E154,Translations!B:I,7,0), VLOOKUP(SSI!E154,Translations!B:I,8,0)))))))","v":"Which One?"}]
[null,5.3129999999999997,{"$f":"IF(Translations!A2=1,VLOOKUP(SSI!B158,Translations!B:G,2,0),IF(Translations!A2=2,VLOOKUP(SSI!B158,Translations!B:G,3,0),IF(Translations!A2=3,VLOOKUP(SSI!B158,Translations!B:G,4,0),IF(Translations!A2=4,VLOOKUP(SSI!B158,Translations!B:G,5,0),IF(Translations!A2=5, VLOOKUP(SSI!B158,Translations!B:I,6,0),IF(Translations!A2=6, VLOOKUP(SSI!B158,Translations!B:I,7,0), VLOOKUP(SSI!B158,Translations!B:I,8,0)))))))","v":"Reference gauges & Go /No-Go gauges"},{"$f":"IF(Translations!A2=1, VLOOKUP(SSI!D153,Translations!B:G,2,0),IF(Translations!A2=2, VLOOKUP(SSI!D153,Translations!B:G,3,0),IF(Translations!A2=3, VLOOKUP(SSI!D153,Translations!B:G,4,0),IF(Translations!A2=4, VLOOKUP(SSI!D153,Translations!B:G,5,0),IF(Translations!A2=5, VLOOKUP(SSI!D153,Translations!B:I,6,0),IF(Translations!A2=6, VLOOKUP(SSI!D153,Translations!B:I,7,0), VLOOKUP(SSI!D153,Translations!B:I,8,0)))))))","v":"Yes"},{"$f":"IF(Translations!A2=1,VLOOKUP(SSI!E153,Translations!B:G,2,0),IF(Translations!A2=2,VLOOKUP(SSI!E153,Translations!B:G,3,0),IF(Translations!A2=3,VLOOKUP(SSI!E153,Translations!B:G,4,0),IF(Translations!A2=4,VLOOKUP(SSI!E153,Translations!B:G,5,0),IF(Translations!A2=5, VLOOKUP(SSI!E153,Translations!B:I,6,0),IF(Translations!A2=6, VLOOKUP(SSI!E153,Translations!B:I,7,0), VLOOKUP(SSI!E153,Translations!B:I,8,0)))))))","v":"No"},{"$f":"IF(Translations!A2=1, VLOOKUP(SSI!E154,Translations!B:G,2,0),IF(Translations!A2=2, VLOOKUP(SSI!E154,Translations!B:G,3,0),IF(Translations!A2=3, VLOOKUP(SSI!E154,Translations!B:G,4,0),IF(Translations!A2=4, VLOOKUP(SSI!E154,Translations!B:G,5,0),IF(Translations!A2=5, VLOOKUP(SSI!E154,Translations!B:I,6,0),IF(Translations!A2=6, VLOOKUP(SSI!E154,Translations!B:I,7,0), VLOOKUP(SSI!E154,Translations!B:I,8,0)))))))","v":"Which One?"}]
[null,5.3140000000000001,{"$f":"IF(Translations!A2=1,VLOOKUP(SSI!B159,Translations!B:G,2,0),IF(Translations!A2=2,VLOOKUP(SSI!B159,Translations!B:G,3,0),IF(Translations!A2=3,VLOOKUP(SSI!B159,Translations!B:G,4,0),IF(Translations!A2=4,VLOOKUP(SSI!B159,Translations!B:G,5,0),IF(Translations!A2=5, VLOOKUP(SSI!B159,Translations!B:I,6,0),IF(Translations!A2=6, VLOOKUP(SSI!B159,Translations!B:I,7,0), VLOOKUP(SSI!B159,Translations!B:I,8,0)))))))","v":"Optical measuring instrument"},{"$f":"IF(Translations!A2=1, VLOOKUP(SSI!D153,Translations!B:G,2,0),IF(Translations!A2=2, VLOOKUP(SSI!D153,Translations!B:G,3,0),IF(Translations!A2=3, VLOOKUP(SSI!D153,Translations!B:G,4,0),IF(Translations!A2=4, VLOOKUP(SSI!D153,Translations!B:G,5,0),IF(Translations!A2=5, VLOOKUP(SSI!D153,Translations!B:I,6,0),IF(Translations!A2=6, VLOOKUP(SSI!D153,Translations!B:I,7,0), VLOOKUP(SSI!D153,Translations!B:I,8,0)))))))","v":"Yes"},{"$f":"IF(Translations!A2=1,VLOOKUP(SSI!E153,Translations!B:G,2,0),IF(Translations!A2=2,VLOOKUP(SSI!E153,Translations!B:G,3,0),IF(Translations!A2=3,VLOOKUP(SSI!E153,Translations!B:G,4,0),IF(Translations!A2=4,VLOOKUP(SSI!E153,Translations!B:G,5,0),IF(Translations!A2=5, VLOOKUP(SSI!E153,Translations!B:I,6,0),IF(Translations!A2=6, VLOOKUP(SSI!E153,Translations!B:I,7,0), VLOOKUP(SSI!E153,Translations!B:I,8,0)))))))","v":"No"},{"$f":"IF(Translations!A2=1, VLOOKUP(SSI!E154,Translations!B:G,2,0),IF(Translations!A2=2, VLOOKUP(SSI!E154,Translations!B:G,3,0),IF(Translations!A2=3, VLOOKUP(SSI!E154,Translations!B:G,4,0),IF(Translations!A2=4, VLOOKUP(SSI!E154,Translations!B:G,5,0),IF(Translations!A2=5, VLOOKUP(SSI!E154,Translations!B:I,6,0),IF(Translations!A2=6, VLOOKUP(SSI!E154,Translations!B:I,7,0), VLOOKUP(SSI!E154,Translations!B:I,8,0)))))))","v":"Which One?"}]
[null,5.3159999999999998,{"$f":"IF(Translations!A2=1,VLOOKUP(SSI!B160,Translations!B:G,2,0),IF(Translations!A2=2,VLOOKUP(SSI!B160,Translations!B:G,3,0),IF(Translations!A2=3,VLOOKUP(SSI!B160,Translations!B:G,4,0),IF(Translations!A2=4,VLOOKUP(SSI!B160,Translations!B:G,5,0),IF(Translations!A2=5, VLOOKUP(SSI!B160,Translations!B:I,6,0),IF(Translations!A2=6, VLOOKUP(SSI!B160,Translations!B:I,7,0), VLOOKUP(SSI!B160,Translations!B:I,8,0)))))))","v":"Surface roughness measuring instrument"},{"$f":"IF(Translations!A2=1, VLOOKUP(SSI!D153,Translations!B:G,2,0),IF(Translations!A2=2, VLOOKUP(SSI!D153,Translations!B:G,3,0),IF(Translations!A2=3, VLOOKUP(SSI!D153,Translations!B:G,4,0),IF(Translations!A2=4, VLOOKUP(SSI!D153,Translations!B:G,5,0),IF(Translations!A2=5, VLOOKUP(SSI!D153,Translations!B:I,6,0),IF(Translations!A2=6, VLOOKUP(SSI!D153,Translations!B:I,7,0), VLOOKUP(SSI!D153,Translations!B:I,8,0)))))))","v":"Yes"},{"$f":"IF(Translations!A2=1,VLOOKUP(SSI!E153,Translations!B:G,2,0),IF(Translations!A2=2,VLOOKUP(SSI!E153,Translations!B:G,3,0),IF(Translations!A2=3,VLOOKUP(SSI!E153,Translations!B:G,4,0),IF(Translations!A2=4,VLOOKUP(SSI!E153,Translations!B:G,5,0),IF(Translations!A2=5, VLOOKUP(SSI!E153,Translations!B:I,6,0),IF(Translations!A2=6, VLOOKUP(SSI!E153,Translations!B:I,7,0), VLOOKUP(SSI!E153,Translations!B:I,8,0)))))))","v":"No"},{"$f":"IF(Translations!A2=1, VLOOKUP(SSI!E154,Translations!B:G,2,0),IF(Translations!A2=2, VLOOKUP(SSI!E154,Translations!B:G,3,0),IF(Translations!A2=3, VLOOKUP(SSI!E154,Translations!B:G,4,0),IF(Translations!A2=4, VLOOKUP(SSI!E154,Translations!B:G,5,0),IF(Translations!A2=5, VLOOKUP(SSI!E154,Translations!B:I,6,0),IF(Translations!A2=6, VLOOKUP(SSI!E154,Translations!B:I,7,0), VLOOKUP(SSI!E154,Translations!B:I,8,0)))))))","v":"Which One?"}]
[null,5.3170000000000002,{"$f":"IF(Translations!A2=1,VLOOKUP(SSI!B161,Translations!B:G,2,0),IF(Translations!A2=2,VLOOKUP(SSI!B161,Translations!B:G,3,0),IF(Translations!A2=3,VLOOKUP(SSI!B161,Translations!B:G,4,0),IF(Translations!A2=4,VLOOKUP(SSI!B161,Translations!B:G,5,0),IF(Translations!A2=5, VLOOKUP(SSI!B161,Translations!B:I,6,0),IF(Translations!A2=6, VLOOKUP(SSI!B161,Translations!B:I,7,0), VLOOKUP(SSI!B161,Translations!B:I,8,0)))))))","v":"In-Circuit-Tester"},{"$f":"IF(Translations!A2=1, VLOOKUP(SSI!D153,Translations!B:G,2,0),IF(Translations!A2=2, VLOOKUP(SSI!D153,Translations!B:G,3,0),IF(Translations!A2=3, VLOOKUP(SSI!D153,Translations!B:G,4,0),IF(Translations!A2=4, VLOOKUP(SSI!D153,Translations!B:G,5,0),IF(Translations!A2=5, VLOOKUP(SSI!D153,Translations!B:I,6,0),IF(Translations!A2=6, VLOOKUP(SSI!D153,Translations!B:I,7,0), VLOOKUP(SSI!D153,Translations!B:I,8,0)))))))","v":"Yes"},{"$f":"IF(Translations!A2=1,VLOOKUP(SSI!E153,Translations!B:G,2,0),IF(Translations!A2=2,VLOOKUP(SSI!E153,Translations!B:G,3,0),IF(Translations!A2=3,VLOOKUP(SSI!E153,Translations!B:G,4,0),IF(Translations!A2=4,VLOOKUP(SSI!E153,Translations!B:G,5,0),IF(Translations!A2=5, VLOOKUP(SSI!E153,Translations!B:I,6,0),IF(Translations!A2=6, VLOOKUP(SSI!E153,Translations!B:I,7,0), VLOOKUP(SSI!E153,Translations!B:I,8,0)))))))","v":"No"},{"$f":"IF(Translations!A2=1, VLOOKUP(SSI!E154,Translations!B:G,2,0),IF(Translations!A2=2, VLOOKUP(SSI!E154,Translations!B:G,3,0),IF(Translations!A2=3, VLOOKUP(SSI!E154,Translations!B:G,4,0),IF(Translations!A2=4, VLOOKUP(SSI!E154,Translations!B:G,5,0),IF(Translations!A2=5, VLOOKUP(SSI!E154,Translations!B:I,6,0),IF(Translations!A2=6, VLOOKUP(SSI!E154,Translations!B:I,7,0), VLOOKUP(SSI!E154,Translations!B:I,8,0)))))))","v":"Which One?"}]
[null,5.3179999999999996,{"$f":"IF(Translations!A2=1,VLOOKUP(SSI!B162,Translations!B:G,2,0),IF(Translations!A2=2,VLOOKUP(SSI!B162,Translations!B:G,3,0),IF(Translations!A2=3,VLOOKUP(SSI!B162,Translations!B:G,4,0),IF(Translations!A2=4,VLOOKUP(SSI!B162,Translations!B:G,5,0),IF(Translations!A2=5, VLOOKUP(SSI!B162,Translations!B:I,6,0),IF(Translations!A2=6, VLOOKUP(SSI!B162,Translations!B:I,7,0), VLOOKUP(SSI!B162,Translations!B:I,8,0)))))))","v":"Electrical measuring instruments"},{"$f":"IF(Translations!A2=1, VLOOKUP(SSI!D153,Translations!B:G,2,0),IF(Translations!A2=2, VLOOKUP(SSI!D153,Translations!B:G,3,0),IF(Translations!A2=3, VLOOKUP(SSI!D153,Translations!B:G,4,0),IF(Translations!A2=4, VLOOKUP(SSI!D153,Translations!B:G,5,0),IF(Translations!A2=5, VLOOKUP(SSI!D153,Translations!B:I,6,0),IF(Translations!A2=6, VLOOKUP(SSI!D153,Translations!B:I,7,0), VLOOKUP(SSI!D153,Translations!B:I,8,0)))))))","v":"Yes"},{"$f":"IF(Translations!A2=1,VLOOKUP(SSI!E153,Translations!B:G,2,0),IF(Translations!A2=2,VLOOKUP(SSI!E153,Translations!B:G,3,0),IF(Translations!A2=3,VLOOKUP(SSI!E153,Translations!B:G,4,0),IF(Translations!A2=4,VLOOKUP(SSI!E153,Translations!B:G,5,0),IF(Translations!A2=5, VLOOKUP(SSI!E153,Translations!B:I,6,0),IF(Translations!A2=6, VLOOKUP(SSI!E153,Translations!B:I,7,0), VLOOKUP(SSI!E153,Translations!B:I,8,0)))))))","v":"No"},{"$f":"IF(Translations!A2=1, VLOOKUP(SSI!E154,Translations!B:G,2,0),IF(Translations!A2=2, VLOOKUP(SSI!E154,Translations!B:G,3,0),IF(Translations!A2=3, VLOOKUP(SSI!E154,Translations!B:G,4,0),IF(Translations!A2=4, VLOOKUP(SSI!E154,Translations!B:G,5,0),IF(Translations!A2=5, VLOOKUP(SSI!E154,Translations!B:I,6,0),IF(Translations!A2=6, VLOOKUP(SSI!E154,Translations!B:I,7,0), VLOOKUP(SSI!E154,Translations!B:I,8,0)))))))","v":"Which One?"}]
[null,5.319,{"$f":"IF(Translations!A2=1,VLOOKUP(SSI!B163,Translations!B:G,2,0),IF(Translations!A2=2,VLOOKUP(SSI!B163,Translations!B:G,3,0),IF(Translations!A2=3,VLOOKUP(SSI!B163,Translations!B:G,4,0),IF(Translations!A2=4,VLOOKUP(SSI!B163,Translations!B:G,5,0),IF(Translations!A2=5, VLOOKUP(SSI!B163,Translations!B:I,6,0),IF(Translations!A2=6, VLOOKUP(SSI!B163,Translations!B:I,7,0), VLOOKUP(SSI!B163,Translations!B:I,8,0)))))))","v":"Clean room"},{"$f":"IF(Translations!A2=1, VLOOKUP(SSI!D153,Translations!B:G,2,0),IF(Translations!A2=2, VLOOKUP(SSI!D153,Translations!B:G,3,0),IF(Translations!A2=3, VLOOKUP(SSI!D153,Translations!B:G,4,0),IF(Translations!A2=4, VLOOKUP(SSI!D153,Translations!B:G,5,0),IF(Translations!A2=5, VLOOKUP(SSI!D153,Translations!B:I,6,0),IF(Translations!A2=6, VLOOKUP(SSI!D153,Translations!B:I,7,0), VLOOKUP(SSI!D153,Translations!B:I,8,0)))))))","v":"Yes"},{"$f":"IF(Translations!A2=1,VLOOKUP(SSI!E153,Translations!B:G,2,0),IF(Translations!A2=2,VLOOKUP(SSI!E153,Translations!B:G,3,0),IF(Translations!A2=3,VLOOKUP(SSI!E153,Translations!B:G,4,0),IF(Translations!A2=4,VLOOKUP(SSI!E153,Translations!B:G,5,0),IF(Translations!A2=5, VLOOKUP(SSI!E153,Translations!B:I,6,0),IF(Translations!A2=6, VLOOKUP(SSI!E153,Translations!B:I,7,0), VLOOKUP(SSI!E153,Translations!B:I,8,0)))))))","v":"No"},{"$f":"IF(Translations!A2=1,VLOOKUP(SSI!F154,Translations!B:G,2,0),IF(Translations!A2=2,VLOOKUP(SSI!F154,Translations!B:G,3,0),IF(Translations!A2=3,VLOOKUP(SSI!F154,Translations!B:G,4,0),IF(Translations!A2=4,VLOOKUP(SSI!F154,Translations!B:G,5,0),IF(Translations!A2=5, VLOOKUP(SSI!F154,Translations!B:I,6,0),IF(Translations!A2=6, VLOOKUP(SSI!F154,Translations!B:I,7,0), VLOOKUP(SSI!F154,Translations!B:I,8,0)))))))","v":"Which Class?"}]
[null,5.3150000000000004,{"$f":"IF(Translations!A2=1,VLOOKUP(SSI!B164,Translations!B:G,2,0),IF(Translations!A2=2,VLOOKUP(SSI!B164,Translations!B:G,3,0),IF(Translations!A2=3,VLOOKUP(SSI!B164,Translations!B:G,4,0),IF(Translations!A2=4,VLOOKUP(SSI!B164,Translations!B:G,5,0),IF(Translations!A2=5, VLOOKUP(SSI!B164,Translations!B:I,6,0),IF(Translations!A2=6, VLOOKUP(SSI!B164,Translations!B:I,7,0), VLOOKUP(SSI!B164,Translations!B:I,8,0)))))))","v":"Temperature-stabilized measuring room"},{"$f":"IF(Translations!A2=1, VLOOKUP(SSI!D153,Translations!B:G,2,0),IF(Translations!A2=2, VLOOKUP(SSI!D153,Translations!B:G,3,0),IF(Translations!A2=3, VLOOKUP(SSI!D153,Translations!B:G,4,0),IF(Translations!A2=4, VLOOKUP(SSI!D153,Translations!B:G,5,0),IF(Translations!A2=5, VLOOKUP(SSI!D153,Translations!B:I,6,0),IF(Translations!A2=6, VLOOKUP(SSI!D153,Translations!B:I,7,0), VLOOKUP(SSI!D153,Translations!B:I,8,0)))))))","v":"Yes"},{"$f":"IF(Translations!A2=1,VLOOKUP(SSI!E153,Translations!B:G,2,0),IF(Translations!A2=2,VLOOKUP(SSI!E153,Translations!B:G,3,0),IF(Translations!A2=3,VLOOKUP(SSI!E153,Translations!B:G,4,0),IF(Translations!A2=4,VLOOKUP(SSI!E153,Translations!B:G,5,0),IF(Translations!A2=5, VLOOKUP(SSI!E153,Translations!B:I,6,0),IF(Translations!A2=6, VLOOKUP(SSI!E153,Translations!B:I,7,0), VLOOKUP(SSI!E153,Translations!B:I,8,0)))))))","v":"No"}]
[null,5.32,{"$f":"IF(Translations!A2=1,VLOOKUP(SSI!B165,Translations!B:G,2,0),IF(Translations!A2=2,VLOOKUP(SSI!B165,Translations!B:G,3,0),IF(Translations!A2=3,VLOOKUP(SSI!B165,Translations!B:G,4,0),IF(Translations!A2=4,VLOOKUP(SSI!B165,Translations!B:G,5,0),IF(Translations!A2=5, VLOOKUP(SSI!B165,Translations!B:I,6,0),IF(Translations!A2=6, VLOOKUP(SSI!B165,Translations!B:I,7,0), VLOOKUP(SSI!B165,Translations!B:I,8,0)))))))","v":"Chemical Analytical Procedures"},{"$f":"IF(Translations!A2=1, VLOOKUP(SSI!G154,Translations!B:G,2,0), IF(Translations!A2=2, VLOOKUP(SSI!G154,Translations!B:G,3,0), IF(Translations!A2=3, VLOOKUP(SSI!G154,Translations!B:G,4,0), IF(Translations!A2=4, VLOOKUP(SSI!G154,Translations!B:G,5,0), IF(Translations!A2=5, VLOOKUP(SSI!G154,Translations!B:I,6,0),IF(Translations!A2=6, VLOOKUP(SSI!G154,Translations!B:I,7,0), VLOOKUP(SSI!G154,Translations!B:I,8,0)))))))","v":"List procedure Numbers - Attach a separate list if necessary"}]
[null,5.3209999999999997,{"$f":"IF(Translations!A2=1,VLOOKUP(SSI!B166,Translations!B:G,2,0),IF(Translations!A2=2,VLOOKUP(SSI!B166,Translations!B:G,3,0),IF(Translations!A2=3,VLOOKUP(SSI!B166,Translations!B:G,4,0),IF(Translations!A2=4,VLOOKUP(SSI!B166,Translations!B:G,5,0),IF(Translations!A2=5, VLOOKUP(SSI!B166,Translations!B:I,6,0),IF(Translations!A2=6, VLOOKUP(SSI!B166,Translations!B:I,7,0), VLOOKUP(SSI!B166,Translations!B:I,8,0)))))))","v":"Particle Size Procedures"},{"$f":"IF(Translations!A2=1, VLOOKUP(SSI!G154,Translations!B:G,2,0), IF(Translations!A2=2, VLOOKUP(SSI!G154,Translations!B:G,3,0), IF(Translations!A2=3, VLOOKUP(SSI!G154,Translations!B:G,4,0), IF(Translations!A2=4, VLOOKUP(SSI!G154,Translations!B:G,5,0), IF(Translations!A2=5, VLOOKUP(SSI!G154,Translations!B:I,6,0),IF(Translations!A2=6, VLOOKUP(SSI!G154,Translations!B:I,7,0), VLOOKUP(SSI!G154,Translations!B:I,8,0)))))))","v":"List procedure Numbers - Attach a separate list if necessary"}]
[]
[]
[]
[]
[null,5.4,{"$f":"IF(Translations!A2=1, VLOOKUP(SSI!B171,Translations!B:G,2,0), IF(Translations!A2=2, VLOOKUP(SSI!B171,Translations!B:G,3,0), IF(Translations!A2=3, VLOOKUP(SSI!B171,Translations!B:G,4,0), IF(Translations!A2=4, VLOOKUP(SSI!B171,Translations!B:G,5,0), IF(Translations!A2=5, VLOOKUP(SSI!B171,Translations!B:I,6,0),IF(Translations!A2=6, VLOOKUP(SSI!B171,Translations!B:I,7,0), VLOOKUP(SSI!B171,Translations!B:I,8,0)))))))","v":"City"},{"$f":"IF(Translations!A2=1, VLOOKUP(SSI!D172,Translations!B:G,2,0),IF(Translations!A2=2, VLOOKUP(SSI!D172,Translations!B:G,3,0),IF(Translations!A2=3, VLOOKUP(SSI!D172,Translations!B:G,4,0),IF(Translations!A2=4, VLOOKUP(SSI!D172,Translations!B:G,5,0),IF(Translations!A2=5, VLOOKUP(SSI!D172,Translations!B:I,6,0),IF(Translations!A2=6, VLOOKUP(SSI!D172,Translations!B:I,7,0), VLOOKUP(SSI!D172,Translations!B:I,8,0)))))))","v":"Date"},5.41,{"$f":"IF(Translations!A2=1, VLOOKUP(SSI!E171,Translations!B:G,2,0),IF(Translations!A2=2, VLOOKUP(SSI!E171,Translations!B:G,3,0),IF(Translations!A2=3, VLOOKUP(SSI!E171,Translations!B:G,4,0),IF(Translations!A2=4, VLOOKUP(SSI!E171,Translations!B:G,5,0),IF(Translations!A2=5, VLOOKUP(SSI!E171,Translations!B:I,6,0),IF(Translations!A2=6, VLOOKUP(SSI!E171,Translations!B:I,7,0), VLOOKUP(SSI!E171,Translations!B:I,8,0)))))))","v":"Signature"}]
[null,null,null,5.42]
[]
[null,5.5,{"$f":"IF(Translations!A2=1, VLOOKUP(SSI!B174,Translations!B:G,2,0),IF(Translations!A2=2, VLOOKUP(SSI!B174,Translations!B:G,3,0),IF(Translations!A2=3, VLOOKUP(SSI!B174,Translations!B:G,4,0),IF(Translations!A2=4, VLOOKUP(SSI!B174,Translations!B:G,5,0),IF(Translations!A2=5, VLOOKUP(SSI!B174,Translations!B:I,6,0),IF(Translations!A2=6, VLOOKUP(SSI!B174,Translations!B:I,7,0), VLOOKUP(SSI!B174,Translations!B:I,8,0)))))))","v":"Company Stamp"},null,5.51,{"$f":"IF(Translations!A2=1, VLOOKUP(SSI!E174,Translations!B:G,2,0),IF(Translations!A2=2, VLOOKUP(SSI!E174,Translations!B:G,3,0),IF(Translations!A2=3, VLOOKUP(SSI!E174,Translations!B:G,4,0),IF(Translations!A2=4, VLOOKUP(SSI!E174,Translations!B:G,5,0), IF(Translations!A2=5, VLOOKUP(SSI!E174,Translations!B:I,6,0),IF(Translations!A2=6, VLOOKUP(SSI!E174,Translations!B:I,7,0), VLOOKUP(SSI!E174,Translations!B:I,8,0)))))))","v":"Name and title of signatory in capital letters"}]
[]
[null,6,{"$f":"IF(Translations!A2=1, VLOOKUP(SSI!B176,Translations!B:G,2,0),IF(Translations!A2=2, VLOOKUP(SSI!B176,Translations!B:G,3,0),IF(Translations!A2=3, VLOOKUP(SSI!B176,Translations!B:G,4,0),IF(Translations!A2=4, VLOOKUP(SSI!B176,Translations!B:G,5,0),IF(Translations!A2=5, VLOOKUP(SSI!B176,Translations!B:I,6,0),IF(Translations!A2=6, VLOOKUP(SSI!B176,Translations!B:I,7,0), VLOOKUP(SSI!B176,Translations!B:I,8,0)))))))","v":"6.     Internal Assessment "}]
[null,6.1,{"$f":"IF(Translations!A2=1, VLOOKUP(SSI!B177,Translations!B:G,2,0),IF(Translations!A2=2, VLOOKUP(SSI!B177,Translations!B:G,3,0),IF(Translations!A2=3, VLOOKUP(SSI!B177,Translations!B:G,4,0),IF(Translations!A2=4, VLOOKUP(SSI!B177,Translations!B:G,5,0),IF(Translations!A2=5, VLOOKUP(SSI!B177,Translations!B:I,6,0),IF(Translations!A2=6, VLOOKUP(SSI!B177,Translations!B:I,7,0), VLOOKUP(SSI!B177,Translations!B:I,8,0)))))))","v":"(Oerlikon approval process: a minimum of two signatures is mandatory to ensure four eyes principal)"}]
[null,6.12,{"$f":"IF(Translations!A2=1, VLOOKUP(SSI!B178,Translations!B:G,2,0),IF(Translations!A2=2, VLOOKUP(SSI!B178,Translations!B:G,3,0),IF(Translations!A2=3, VLOOKUP(SSI!B178,Translations!B:G,4,0),IF(Translations!A2=4, VLOOKUP(SSI!B178,Translations!B:G,5,0),IF(Translations!A2=5, VLOOKUP(SSI!B178,Translations!B:I,6,0),IF(Translations!A2=6, VLOOKUP(SSI!B178,Translations!B:I,7,0), VLOOKUP(SSI!B178,Translations!B:I,8,0)))))))","v":"Suitability:"}]
[]
[]
[]
[]
[null,6.13,{"$f":"IF(Translations!A2=1, VLOOKUP(SSI!B183,Translations!B:G,2,0), IF(Translations!A2=2, VLOOKUP(SSI!B183,Translations!B:G,3,0), IF(Translations!A2=3, VLOOKUP(SSI!B183,Translations!B:G,4,0), IF(Translations!A2=4, VLOOKUP(SSI!B183,Translations!B:G,5,0), IF(Translations!A2=5, VLOOKUP(SSI!B183,Translations!B:I,6,0),IF(Translations!A2=6, VLOOKUP(SSI!B183,Translations!B:I,7,0), VLOOKUP(SSI!B183,Translations!B:I,8,0)))))))","v":"Procurement (GTC review is performed by ERP)"},null,6.1310000000000002,{"$f":"IF(Translations!A2=1, VLOOKUP(SSI!E183,Translations!B:G,2,0), IF(Translations!A2=2, VLOOKUP(SSI!E183,Translations!B:G,3,0), IF(Translations!A2=3, VLOOKUP(SSI!E183,Translations!B:G,4,0), IF(Translations!A2=4, VLOOKUP(SSI!E183,Translations!B:G,5,0), IF(Translations!A2=5, VLOOKUP(SSI!E183,Translations!B:I,6,0),IF(Translations!A2=6, VLOOKUP(SSI!E183,Translations!B:I,7,0), VLOOKUP(SSI!E183,Translations!B:I,8,0)))))))","v":"Engineering/LCM/ R&D"}]
[]
[]
[null,6.14,{"$f":"IF(Translations!A2=1, VLOOKUP(SSI!B186,Translations!B:G,2,0), IF(Translations!A2=2, VLOOKUP(SSI!B186,Translations!B:G,3,0), IF(Translations!A2=3, VLOOKUP(SSI!B186,Translations!B:G,4,0), IF(Translations!A2=4, VLOOKUP(SSI!B186,Translations!B:G,5,0),IF(Translations!A2=5, VLOOKUP(SSI!B186,Translations!B:I,6,0),IF(Translations!A2=6, VLOOKUP(SSI!B186,Translations!B:I,7,0), VLOOKUP(SSI!B186,Translations!B:I,8,0)))))))","v":"Date"},null,null,{"$f":"IF(Translations!A2=1, VLOOKUP(SSI!B186,Translations!B:G,2,0), IF(Translations!A2=2, VLOOKUP(SSI!B186,Translations!B:G,3,0), IF(Translations!A2=3, VLOOKUP(SSI!B186,Translations!B:G,4,0), IF(Translations!A2=4, VLOOKUP(SSI!B186,Translations!B:G,5,0), IF(Translations!A2=5, VLOOKUP(SSI!B186,Translations!B:I,6,0),IF(Translations!A2=6, VLOOKUP(SSI!B186,Translations!B:I,7,0), VLOOKUP(SSI!B186,Translations!B:I,8,0)))))))","v":"Date"}]
[]
[]
[null,6.15,{"$f":"IF(Translations!A2=1, VLOOKUP(SSI!B189,Translations!B:G,2,0), IF(Translations!A2=2, VLOOKUP(SSI!B189,Translations!B:G,3,0), IF(Translations!A2=3, VLOOKUP(SSI!B189,Translations!B:G,4,0), IF(Translations!A2=4, VLOOKUP(SSI!B189,Translations!B:G,5,0), IF(Translations!A2=5, VLOOKUP(SSI!B189,Translations!B:I,6,0),IF(Translations!A2=6, VLOOKUP(SSI!B189,Translations!B:I,7,0), VLOOKUP(SSI!B189,Translations!B:I,8,0)))))))","v":"Name"},null,null,{"$f":"IF(Translations!A2=1, VLOOKUP(SSI!B189,Translations!B:G,2,0), IF(Translations!A2=2, VLOOKUP(SSI!B189,Translations!B:G,3,0), IF(Translations!A2=3, VLOOKUP(SSI!B189,Translations!B:G,4,0), IF(Translations!A2=4, VLOOKUP(SSI!B189,Translations!B:G,5,0), IF(Translations!A2=5, VLOOKUP(SSI!B189,Translations!B:I,6,0),IF(Translations!A2=6, VLOOKUP(SSI!B189,Translations!B:I,7,0), VLOOKUP(SSI!B189,Translations!B:I,8,0)))))))","v":"Name"}]
[]
[]
[]
[null,6.16,{"$f":"IF(Translations!A2=1, VLOOKUP(SSI!B193,Translations!B:G,2,0), IF(Translations!A2=2, VLOOKUP(SSI!B193,Translations!B:G,3,0), IF(Translations!A2=3, VLOOKUP(SSI!B193,Translations!B:G,4,0), IF(Translations!A2=4, VLOOKUP(SSI!B193,Translations!B:G,5,0), IF(Translations!A2=5, VLOOKUP(SSI!B193,Translations!B:I,6,0),IF(Translations!A2=6, VLOOKUP(SSI!B193,Translations!B:I,7,0), VLOOKUP(SSI!B193,Translations!B:I,8,0)))))))","v":"Signature"},null,null,{"$f":"IF(Translations!A2=1, VLOOKUP(SSI!B193,Translations!B:G,2,0), IF(Translations!A2=2, VLOOKUP(SSI!B193,Translations!B:G,3,0), IF(Translations!A2=3, VLOOKUP(SSI!B193,Translations!B:G,4,0), IF(Translations!A2=4, VLOOKUP(SSI!B193,Translations!B:G,5,0), IF(Translations!A2=5, VLOOKUP(SSI!B193,Translations!B:I,6,0),IF(Translations!A2=6, VLOOKUP(SSI!B193,Translations!B:I,7,0), VLOOKUP(SSI!B193,Translations!B:I,8,0)))))))","v":"Signature"}]
[]
[]
[null,6.17,{"$f":"IF(Translations!A2=1, VLOOKUP(SSI!B196,Translations!B:G,2,0), IF(Translations!A2=2, VLOOKUP(SSI!B196,Translations!B:G,3,0), IF(Translations!A2=3, VLOOKUP(SSI!B196,Translations!B:G,4,0), IF(Translations!A2=4, VLOOKUP(SSI!B196,Translations!B:G,5,0), IF(Translations!A2=5, VLOOKUP(SSI!B196,Translations!B:I,6,0),IF(Translations!A2=6, VLOOKUP(SSI!B196,Translations!B:I,7,0), VLOOKUP(SSI!B196,Translations!B:I,8,0)))))))","v":"Logistic"},null,6.1710000000000003,{"$f":"IF(Translations!A2=1, VLOOKUP(SSI!E196,Translations!B:G,2,0), IF(Translations!A2=2, VLOOKUP(SSI!E196,Translations!B:G,3,0), IF(Translations!A2=3, VLOOKUP(SSI!E196,Translations!B:G,4,0), IF(Translations!A2=4, VLOOKUP(SSI!E196,Translations!B:G,5,0), IF(Translations!A2=5, VLOOKUP(SSI!E196,Translations!B:I,6,0),IF(Translations!A2=6, VLOOKUP(SSI!E196,Translations!B:I,7,0), VLOOKUP(SSI!E196,Translations!B:I,8,0)))))))","v":"Supplier Quality"}]
[]
[]
[null,null,{"$f":"IF(Translations!A2=1, VLOOKUP(SSI!B186,Translations!B:G,2,0), IF(Translations!A2=2, VLOOKUP(SSI!B186,Translations!B:G,3,0), IF(Translations!A2=3, VLOOKUP(SSI!B186,Translations!B:G,4,0), IF(Translations!A2=4, VLOOKUP(SSI!B186,Translations!B:G,5,0), IF(Translations!A2=5, VLOOKUP(SSI!B186,Translations!B:I,6,0),IF(Translations!A2=6, VLOOKUP(SSI!B186,Translations!B:I,7,0), VLOOKUP(SSI!B186,Translations!B:I,8,0)))))))","v":"Date"},null,null,{"$f":"IF(Translations!A2=1, VLOOKUP(SSI!B186,Translations!B:G,2,0), IF(Translations!A2=2, VLOOKUP(SSI!B186,Translations!B:G,3,0), IF(Translations!A2=3, VLOOKUP(SSI!B186,Translations!B:G,4,0), IF(Translations!A2=4, VLOOKUP(SSI!B186,Translations!B:G,5,0), IF(Translations!A2=5, VLOOKUP(SSI!B186,Translations!B:I,6,0),IF(Translations!A2=6, VLOOKUP(SSI!B186,Translations!B:I,7,0), VLOOKUP(SSI!B186,Translations!B:I,8,0)))))))","v":"Date"}]
[]
[]
[null,null,{"$f":"IF(Translations!A2=1, VLOOKUP(SSI!B189,Translations!B:G,2,0), IF(Translations!A2=2, VLOOKUP(SSI!B189,Translations!B:G,3,0), IF(Translations!A2=3, VLOOKUP(SSI!B189,Translations!B:G,4,0), IF(Translations!A2=4, VLOOKUP(SSI!B189,Translations!B:G,5,0), IF(Translations!A2=5, VLOOKUP(SSI!B189,Translations!B:I,6,0),IF(Translations!A2=6, VLOOKUP(SSI!B189,Translations!B:I,7,0), VLOOKUP(SSI!B189,Translations!B:I,8,0)))))))","v":"Name"},null,null,{"$f":"IF(Translations!A2=1, VLOOKUP(SSI!B189,Translations!B:G,2,0), IF(Translations!A2=2, VLOOKUP(SSI!B189,Translations!B:G,3,0), IF(Translations!A2=3, VLOOKUP(SSI!B189,Translations!B:G,4,0), IF(Translations!A2=4, VLOOKUP(SSI!B189,Translations!B:G,5,0), IF(Translations!A2=5, VLOOKUP(SSI!B189,Translations!B:I,6,0),IF(Translations!A2=6, VLOOKUP(SSI!B189,Translations!B:I,7,0), VLOOKUP(SSI!B189,Translations!B:I,8,0)))))))","v":"Name"}]
[]
[null,null,{"$f":"IF(Translations!A2=1, VLOOKUP(SSI!B193,Translations!B:G,2,0), IF(Translations!A2=2, VLOOKUP(SSI!B193,Translations!B:G,3,0), IF(Translations!A2=3, VLOOKUP(SSI!B193,Translations!B:G,4,0), IF(Translations!A2=4, VLOOKUP(SSI!B193,Translations!B:G,5,0), IF(Translations!A2=5, VLOOKUP(SSI!B193,Translations!B:I,6,0),IF(Translations!A2=6, VLOOKUP(SSI!B193,Translations!B:I,7,0), VLOOKUP(SSI!B193,Translations!B:I,8,0)))))))","v":"Signature"},null,null,{"$f":"IF(Translations!A2=1, VLOOKUP(SSI!B193,Translations!B:G,2,0), IF(Translations!A2=2, VLOOKUP(SSI!B193,Translations!B:G,3,0), IF(Translations!A2=3, VLOOKUP(SSI!B193,Translations!B:G,4,0), IF(Translations!A2=4, VLOOKUP(SSI!B193,Translations!B:G,5,0), IF(Translations!A2=5, VLOOKUP(SSI!B193,Translations!B:I,6,0),IF(Translations!A2=6, VLOOKUP(SSI!B193,Translations!B:I,7,0), VLOOKUP(SSI!B193,Translations!B:I,8,0)))))))","v":"Signature"}]

{"sheet":"Translations","index":2,"n_rows":155,"n_cols":9,"rows_kept":155,"cut":false,"hidden":true,"merged":[]}
[null,"Ref","English","German","Chinese","French","Hindi","Portuguese","Italian"]
[1,0,"Oerlikon Supplier Self Information ","Informationen über Zulieferer von Oerlikon","Oerlikon 供应商个人信息  ","Informations sur les fournisseurs d'Oerlikon  ","Oerlikon आपूर्तिकर्ता स्वयं जानकारी  ","Auto-informação do Fornecedor Oerlikon ","Informazioni fornitore Oerlikon"]
[null,1,"1.    Company Information","1.     Angaben zum Unternehmen","1.    公司信息","1.    Informations de l'entreprise","1.    कंपनी की जानकारी","1.     Informação da companhia","1.     Dati dell'azienda"]
["English",1.01,"Company Name","Name des Unternehmens :","公司名称","Nom de l'entreprise","कंपनी का नाम","Nome da companhia:","Nome dell'azienda:"]
["German",1.02,"Address","Adresse","地址","Adresse","पता","Endereço:","Indirizzo:"]
["Chinese",1.03,"Address Supplement","Zusätzliche Adressangaben :","地址附录","Supplément d'adresse","पता संलग्न","Suplemento de endereço:","Dati aggiuntivi indirizzo:"]
["French",1.04,"Postal Code / City","Postleitzahl / Stadt","邮政编码/城市","Code postal / Ville","पोस्टल कोड / शहर","Código postal / Cidade:","Codice postale / Città:"]
["Hindi",1.05,"Country","Land","國家","Pays","देश","País:","Paese:"]
["Portuguese",1.06,"Region / State","Region / Bundesland","地区/州","Région / État","क्षेत्र / राज्य","Região / Estado:","Regione / Stato:"]
["Italian",1.07,"Phone Number","Telefonnummer","电话号码","Numéro de téléphone","फ़ोन नंबर","Número de telefone:","Numero di telefono:"]
[null,1.08,"Homepage","Website","首页","Page d'accueil","मुखपृष्ठ","Página inicial:","Homepage:"]
[null,1.0900000000000001,"Email for electronic P.O.","E-Mail für elektronische Bestellung","电子采购订单的邮件。","Email pour bon de commande électronique","इलेक्ट्रॉनिक पीओ के लिए ईमेल।","Correio eletrónico:","Email per ordine d'acquisto elettronico"]
[null,1.1000000000000001,"Year of foundation","Gründungsjahr","建立年份","Année de fondation","स्थापना का वर्ष","Ano de fundação:","Anno di fondazione:"]
[null,1.1100000000000001,"Oerlikon Vendor Code (if existing)","Oerlikon Zulieferer code (sofern vorhanden) :","奥尔利康供应商代码（如有）","Code du fournisseur Oerlikon (si disponible) :","Oerlikon विक्रेता कोड (यदि मौजूद है)","Código do fornecedor Oerlikon (se existente):","Codice fornitore Oerlikon (se disponibile):"]
[null,1.1200000000000001,"Dun & Bradstreet ID","Dun & Bradstreet Nummer","邓白氏身份证","Identifiant Dun & Bradstreet","D-U-N-S व्याख्या","Número D-U-N-S","Numero D-U-N-S "]
[null,1.1299999999999999,"(In order to business with Oerlikon register in Dun & Bradstreet for free)","(Um mit Oerlikon Geschäfte zu machen, registrieren Sie sich kostenlos in Dun & Bradstreet)","(为了与欧瑞康开展业务，免费在Dun＆Bradstreet注册)","(Pour faire affaire avec Oerlikon, inscrivez-vous gratuitement à Dun & Bradstreet)","(डन एंड ब्रैडस्ट्रीट में ओर्लिकॉन रजिस्टर के साथ मुफ्त में व्यापार करने के लिए)","(Para fazer negócios com a Oerlikon, registre-se gratuitamente na Dun & Bradstreet)","(Per fare affari con Oerlikon, registrati gratuitamente a Dun & Bradstreet)"]
[null,1.1399999999999999,"VAT Registration Number","Umsatzsteuer-Identifikationsnummer","注册增值税号码","Numéro d’identification :","मूल्य वर्धित कर पंजीयन क्रमांक :","Número de identificação fiscal:","Codice IVA:"]
[null,1.1499999999999999,"Leading Category Level 1","Führende Kategorie Ebene 1","领导类别一级","Catégorie principale de niveau 1","अग्रणी श्रेणी स्तर 1","Nível da categoria principal 1:","Livello di categoria principale 1:"]
[null,1.1599999999999999,"Leading Category Level 2","Führende Kategorie Ebene 2","领导类别二级","Catégorie principale de niveau 2","अग्रणी श्रेणी स्तर 2","Nível da categoria principal 2:","Livello di categoria principale 2:"]
[null,2,"2.     Financial Information","2.     Finanzdaten","2.     财务信息","2.     Données financières","2.     वित्तीय जानकारी","2.     Informação financeira","2.     Dati finanziari"]
[null,2.1,"2.1   Banking Information","2.1     Bankdaten","2.1   银行信息","2.1     Données bancaires","2.1   बैंकिंग जानकारी","2.1     Informação bancária","2.1     Dati bancari"]
[null,2.11,"IBAN","IBAN",{"$f":"C22","v":"IBAN"},"IBAN","IBAN","IBAN","IBAN"]
[null,2.12,"or","oder","或","ou","अथवा","ou","o"]
[null,2.13,"Bank Name:","Bankname:","银行名称：","Nom de banque :","बैंक का नाम:","Nome do banco:","Nome della banca:"]
[null,2.14,"Bank Address:","Bankadresse:","银行地址：","Adresse de la banque :","बैंक का पता:","Endereço do banco:","Indirizzo bancario:"]
[null,2.15,"Bank Number:","Banknummer:","银行号码。","Numéro de banque :","बैंक नंबर:","Número do banco:","Numero di banca:"]
[null,2.16,"Account Number:","Kontonummer:","账号：","Numéro de compte :","खाता संख्या:","Número da conta:","Numero di conto:"]
[null,2.17,"SWIFT / BIC-Code:","SWIFT / BIC-Code:","SWIFT / BIC-Code:","SWIFT / BIC-Code:","SWIFT / BIC कोड :","Código SWIFT/BIC:","Codice SWIFT / BIC:"]
[null,2.2000000000000002,"2.2   Insurance Information","2.2     Versicherungsdaten","2.2   保险信息","2.2     Données d'assurance","2.2   बीमा जानकारी","2.2   Informação sobre seguros","2.2     Dati assicurativi"]
[null,2.21,"Business liability insurance","Geschäftshaftpflichtversicherung","企业责任保险","Assurance responsabilité civile","व्यापार देयता बीमा","Seguro de responsabilidade comercial","Assicurazione di Responsabilità civile commerciale"]
[null,2.2200000000000002,"Insurance Company:","Versicherungs-unternehmen :","保险公司。","Compagnie d'assurance","बीमा कंपनी:","Companhia de seguro:","Società assicurativa:"]
[null,2.23,"Agency Digit:","Agenturziffer :","机构数字","Chiffre d'agence :","एजेंसी अंक:","Dígito da agência:","Cifra genzia:"]
[null,2.2400000000000002,"Product liability insurance","Produkthaftpflichtversicherung","产品责任保险","Assurance responsabilité civile des produits","उत्पाद देयता बीमा","Seguro de responsabilidade de produto","Assicurazion della responsabilità civile prodotti"]
[null,2.25,"Insurance Company:","Versicherungs-unternehmen :","保险公司。","Compagnie d'assurance","बीमा कंपनी:","Companhia de seguro:","Società assicurativa:"]
[null,2.2599999999999998,"Agency Digit:","Agenturziffer :","机构数字","Chiffre d'agence :","एजेंसी अंक:","Dígito da agência:","Cifra genzia:"]
[null,2.27,"Agency Number:","Agenturnummer:","机构编号:","Numéro d'agence :","एजेंसी संख्या:","Nº da agência:","Numero agenzia:"]
[null,2.2799999999999998,"Agency Number:","Agenturnummer:","机构编号:","Numéro d'agence :","एजेंसी संख्या:","Nº da agência:","Numero agenzia:"]
[null,2.29,"Already Supplier to Oerlikon? (Yes/No):","Bereits Zulieferer von Oerlikon? (Ja/Nein) :","您是否愿意与Oerlikon制定质量保证协议？（是/否）:","Etes-vous déjà un fournisseur d'Oerlikon ? (oui/non) :","पहले से ही Oerlikon के लिए आपूर्तिकर्ता? (हाँ/नहीं):","Já um fornecedor Oerlikon? (Sim/Não):","Già fornitore Oerlikon? (Sì / No):"]
[null,2.2909999999999999,"Oerlikon Company","Oerlikon Unternehmen","奥尔利康公司","Société Oerlikon","Oerlikon कंपनी","Companhia Oerlikon","Oerlikon Company"]
[null,2.2919999999999998,"Sales Volume","Umsatzvolumen","销售量","Volume des ventes","विक्रय हिस्सा","Volume de vendas","Volume delle vendite"]
[null,2.2930000000000001,"Products","Produkte","產品","Produits","उत्पाद","Produtos","Prodotti"]
[null,3,"3.     Certificates and Certifications","3.     Zertifikate und Bescheinigungen","3.     证书和认证","3.     Certificats et attestations","3.     प्रमाणपत्र और प्रमाणीकरण","3.     Certificados e declarações","3.     Certificati e certificazioni"]
[null,3.1,"Does a Quality Management System exist and is it in place?  ","Wird ein Qualitätsmanagement genutzt? ","质量管理体系是否存在并已经建立？","La gestion de la qualité est-elle utilisée ? ","क्या गुणवत्ता प्रणाली मौजूद है और सही रूप से लागू है?  ","Existe um Sistema de gestão de qualidade, e está implementado? ","Esiste e si applica un sistema di gestione della qualità? "]
[null,3.11,"Attach all Relevant Certificates with SSI Form","Senden Sie alle relevanten Zertifikate mit dem SSI-Formular zu.","请附上所有相关证书与SSI表格。","Joignez tous les certificats pertinents avec le formulaire SSI","SSI फॉर्म के साथ सभी प्रासंगिक प्रमाण पत्र संलग्न करें","Anexar todos os certificados relevantes com o formulário SSI","Allegare tutti i certificati rilevanti con il modulo SSI"]
[null,3.12,"Yes","Ja","是的。","Oui","हाँ","Sim","Si"]
[null,3.13,"No","Nein","不","Non","नहीं","Não","No"]
[null,3.14,"Comments","Kommentare","评论","Remarques : ","टिप्पणियाँ","Comentários","Commenti: "]
[null,3.15,"Version","Version","版本","Version","संस्करण","  Versão","  Versione"]
[null,3.16,"Date of Certification Expiration","Ablaufdatum der Zertifizierung","证书过期日期","Date d'expiration de la certification","प्रमाणीकरण की समय सीमा समाप्ति दिनांक","  Data de vencimento do certificado","Data di scadenza della certificazione"]
[null,3.2,"Certificate","Zertifikat","证书","Certificat","प्रमाणपत्र","Certificado","Certificato"]
[null,3.3,"Others","Andere","其他人","Autres","अन्य","Outros","Altri"]
[null,3.31,"Conflict Mineral Statement","Nichtverwendung von Konflikt-Mineralien","冲突矿物声明"," Non-utilisation de minéraux conflictuels","संघर्ष खनिज कथन","Declaração de minerais de conflito","Dichiarazione sui Conflict Mineral "]
[null,3.32,"RoHS Directive","RoHS-Richtlinie","RoHS指令","RoHS Directive","RoHS निर्देशक ","RoHS Directiva","RoHS Dirretiva"]
[null,3.33,"REACH Directive","REACH-Richtlinie","REACH指令","REACH Directive","REACH निर्देशक ","REACH Directiva","REACH Dirretiva"]
[null,3.34,"Hazardous Substances/ Dangerous Goods","Gefahrenstoffe/Gefahrengut","危险物质/危险货物","Matières dangereuses/ marchandises dangereuses","खतरनाक पदार्थ/खतरनाक सामान","Materiais perigosos/Mercadorias perigosas","Sostanze nocive / Merci pericolose"]
[null,3.35,"Declaration of Conformity","Konformitätsnachweis","遵守宣言","Preuve de conformité","अनुरूपता की घोषणा","Declaração CE de conformidade ","Certificazione di conformità"]
[null,3.36,"Internal Code of Conduct","Firmeninterner Verhaltenskodex (Code of Conduct)","公司內部行為準則","Code de conduite interne de l'entreprise","आंतरिक आचार संहिता","Código de conduta interno"," Codice di condotta interno all'azienda (Code of Conduct)"]
[null,3.37,"EICC Member (Electronic Industry Citizenship Coalition)","Mitglied EICC (Electronic Industry Citizenship Coalition)","EICC成员（电子产业公民联盟）"," Membre EICC (Coalition de citoyenneté de l'industrie électronique)","EICC सदस्य (इलेक्ट्रॉनिक उद्योग नागरिकता गठबंधन)"," Membro de EICC (Electronic Industry Citizenship Coalition)","EICC Member (Electronic Industry Citizenship Coalition)"]
[null,3.38,"Remarks","  Anmerkungen","备注","Remarques","टिप्पणियां","  Observações","  Commenti"]
[null,3.391,"Compliance Confirmed","Einhaltung bestätigt","确认遵守","Conformité confirmée","अनुपालन की पुष्टि","Cumprimento confirmada","Conformità confermata"]
[null,3.3919999999999999,"Compliance not Confirmed","Einhaltung nicht bestätigt","未确认遵守","Conformité non confirmée","अनुपालन की पुष्टि नहीं की गई","Einhaltung não confirmado","Conformità non confermata"]
[null,3.3929999999999998,"Products Exist","Produkte vorhanden","產品存在。","Produits existants","उत्पाद उपलब्ध हैं","Produto disponível","Prodotti esistenti"]
[null,3.3940000000000001,"Irrelevant","unerheblich","不相关","non pertinent","असंबद्घ","não relevante","Irrilevante"]
[null,3.395,"Others","Andere","其他人","Autres","अन्य","Outros","Altri"]
[null,3.4,"Are you willing to develop a quality assurance agreement with Oerlikon?  (Yes/No):","Sind Sie bereit, eine Qualitätsvereinbarung mit Oerlikon zu entwickeln? (Ja/Nein):","您是否愿意与奥立孔签订一份质量保证协议？（是/否）","Êtes-vous disposé à élaborer un accord d'assurance qualité avec Oerlikon ? (Oui/Non)","क्या आप Oerlikon के साथ एक गुणवत्ता आश्वासन समझौता विकसित करने के इच्छुक हैं?  (हाँ/नहीं):","Está disposto a desenvolver um acordo de garantia de qualidade com a Oerlikon? (Sim/Não):","È disposto a instaurare un accordo per il controllo della qualità con Oerlikon? (Sì / No):"]
[null,3.5,"Does your company plan the implementation of a certified Quality and Environmental Management System? ","Plant Ihr Unternehmen die Umsetzung eines zertifizierten Qualitäts- und Umweltmanagementsystems?","贵公司是否计划实施认证的质量和环境管理体系？","Votre entreprise envisage-t-elle de mettre en place un système de gestion environnementale ou de qualité certifié? ","क्या आपकी कंपनी प्रमाणित गुणवत्ता और पर्यावरण प्रबंधन प्रणाली के कार्यान्वयन की योजना बना रही है? ","A sua companhia pretende implementar um Sistema de gestão ambiental e qualidade certificado? ","La Sua azienda ha intenzione di utilizzare un sistema di gestione della qualità e di gestione ambientale certificato? "]
[null,3.51,"If yes, which one and until when:","Falls ja, welches und bis wann:","''如果是的话，是哪一个，持续到什么时候？''","Si oui, lequel et jusqu'à quand :","यदि हाँ, तो कौन सा और कब तक:","Se sim, qual, e até quando:","In caso affermativo, quale e fino a quando:"]
[null,3.5110000000000001,"If you do not dispose of a certified management system, please, answer the following questions:","Falls Sie nicht über ein zertifiziertes Managementsystem verfügen, beantworten Sie bitte die folgenden Fragen:","如果您没有一个经过认证的管理系统，请回答以下问题：","Si vous ne possédez pas de système de gestion certifié, veuillez répondre aux questions suivantes :","यदि आप प्रमाणित प्रबंधन प्रणाली का निपटान नहीं करते हैं, तो कृपया निम्नलिखित प्रश्नों के उत्तर दें:","Caso não possua um sistema de gestão certificado, responda as seguintes questões:","Se non dispone di nessun sistema di gestione certificato, si prega di rispondere alle seguenti domande:"]
[null,3.512,"1.    Does your company have a (Quality) Management Manual?  (If yes, please provide copy)","1.    Hat Ihr Unternehmen ein (Qualitäts-)Managementhandbuch? (Wenn ja, bitte eine Kopie zur Verfügung stellen)","您公司是否有一份（质量）管理手册？（如果有，请提供副本）","1.    Votre entreprise possède-t-elle un Manuel de Management de la Qualité ? (Si oui, veuillez fournir une copie)","1.    क्या आपकी कंपनी के पास (गुणवत्ता) प्रबंधन मैनुअल है?  (यदि हाँ, तो कृपया प्रतिलिपि प्रदान करें)","1.    A sua empresa fornece um Manual de Gestão (de Qualidade)? (Se sim, por favor, forneça uma cópia)","1.   La tua azienda ha un Manuale di Gestione (della Qualità)? (Se sì, forniscine una copia)"]
[null,3.5129999999999999,"2.    Does your company have a Supplier Assessment System?","2.    Hat Ihr Unternehmen ein Lieferantenbewertungssystem?","您公司是否有供应商评估系统？","2.    Votre entreprise dispose-t-elle d'un système d'évaluation des fournisseurs ?","2.    क्या आपकी कंपनी के पास आपूर्तिकर्ता मूल्यांकन प्रणाली है?","2.    A sua companhia possui um Sistema de avaliação de fornecedores?","2.   La tua azienda ha un Sistema di Valutazione dei Fornitori?"]
[null,3.5139999999999998,"3.    Does your company request quality records from its suppliers?","3.    Verlangt Ihr Unternehmen Qualitätsnachweise von seinen Lieferanten?","贵公司是否向供应商索取质量记录？","3.    Votre entreprise demande-t-elle des dossiers de qualité à ses fournisseurs ?","3.    क्या आपकी कंपनी अपने आपूर्तिकर्ताओं से गुणवत्ता रिकॉर्ड का अनुरोध करती है?","3.    A sua companhia solicita registos de qualidade aos seus fornecedores?","3.   La vostra azienda richiede documenti di qualità dai fornitori?"]
[null,3.5150000000000001,"4.    Does your company perform an incoming goods inspection?","4.    Führt Ihr Unternehmen eine Wareneingangskontrolle durch?","您公司是否进行来料检验？","4.    Est-ce que votre entreprise effectue une inspection des marchandises entrantes ?","4.    क्या आपकी कंपनी आने वाले माल का निरीक्षण करती है?","4.    A sua companhia realiza verificações a bens recebidos?","4.   La vostra azienda effettua un controllo delle merci in entrata?"]
[null,3.516,"5.    Does your company have appropriate means enabling you to identify your products throughout the entire product realization process?","5.    Hat Ihr Unternehmen geeignete Mittel, um Ihre Produkte während des gesamten Produktrealisierungsprozesses zu identifizieren?","德公司是否具备适当的手段，使您能够在整个产品实现过程中识别您的产品？","5.    Est-ce que votre entreprise dispose des moyens appropriés pour identifier vos produits tout au long du processus de réalisation des produits ?","5.    क्या आपकी कंपनी के पास उचित साधन हैं जो आपको संपूर्ण उत्पाद प्राप्ति प्रक्रिया के दौरान अपने उत्पादों की पहचान करने में सक्षम बनाते हैं?","5.    A sua companhia possui os meios apropriados, de forma a que possa identificar os seus produtos ao longo de todo o processo de realização?","5.   La vostra azienda dispone dei mezzi adeguati per identificare i vostri prodotti durante l'intero processo di realizzazione del prodotto?"]
[null,3.5169999999999999,"6.    Are quality controls performed throughout the production process?","6.    Werden Qualitätskontrollen während des gesamten Produktionsprozesses durchgeführt?","在生产过程中是否进行质量控制？","6.    Les contrôles de qualité sont-ils effectués tout au long du processus de production ?","6.    क्या उत्पादन प्रक्रिया के दौरान गुणवत्ता नियंत्रण किया जाता है?","6.    Há controlos de qualidade realizados durante o processo de produção?","6.   Sono eseguiti controlli di qualità durante tutto il processo di produzione?"]
[null,3.5179999999999998,"7.    Does your company maintain quality records?  If yes, for how long? _____ Years","7.    Ist Ihr Unternehmen Qualitätsaufzeichnungen führt? Wenn ja, wie lange? _____ Jahre","贵公司是否保留质量记录？如果是的话，保留多长时间？_____年","7.    Votre entreprise tient-elle des dossiers de qualité ? Si oui, depuis combien de temps ? _____ ans","7.    क्या आपकी कंपनी गुणवत्ता रिकॉर्ड बनाए रखती है?  यदि हाँ, तो कब तक? _____साल","7.    A sua empresa mantém registos de qualidade?  Se sim, por quanto tempo? _____ anos","7.   La tua azienda mantiene registri di qualità? Se sì, per quanto tempo? _____ Anni"]
[null,3.5190000000000001,"8.    Does your company perform a final quality inspection of the finished goods?","8.    Führt Ihr Unternehmen eine abschließende Qualitätskontrolle der fertigen Waren durch?","贵公司是否对成品进行最终质量检查？","8.    Est-ce que votre entreprise effectue une inspection finale de la qualité des produits finis ?","8.    क्या आपकी कंपनी तैयार माल का अंतिम गुणवत्ता निरीक्षण करती है?","8.    A sua companhia realiza inspeções de qualidade final dos produtos finalizados?","8.   La tua azienda effettua un controllo di qualità finale sui prodotti finiti?"]
[null,3.52,"9.    Does your company have a Crisis Management and / or Business Continuity Plan?","9.    Hat Ihr Unternehmen einen Krisenmanagement- und/oder Business Continuity-Plan?","您公司是否有危机管理和/或业务连续性计划？","9.    Est-ce que votre entreprise dispose d'un plan de gestion de crise et/ou de continuité d'activité ?","9.    क्या आपकी कंपनी के पास संकट प्रबंधन और/या व्यवसाय निरंतरता योजना है?","9.    A sua empresa tem uma Gestão de Crise e/ou Plano de Continuidade de Atividade?","9.   La tua azienda ha un piano di gestione delle crisi e/o di continuità aziendale?"]
[null,3.5209999999999999,"10.  Does your company have procedure to control Foreign Object Damage (FOD)?","10.  Hat Ihr Unternehmen ein Verfahren zur Kontrolle von Fremdkörperbeschädigungen (FOD)?","您的公司是否有控制外来物体损伤（FOD）的程序？","10.  Est-ce que votre entreprise a une procédure pour contrôler les dommages causés par des objets étrangers (FOD) ?","10.  क्या आपकी कंपनी के पास विदेशी वस्तु क्षति (एफओडी) को नियंत्रित करने की प्रक्रिया है?","10.  A sua empresa tem procedimentos para o controlo de Danos por Objeto Estranho (FOD)?","10. La tua azienda ha una procedura per controllare i danni causati da oggetti stranieri (FOD)?"]
[null,3.5219999999999998,"11.  Does your company have control mechanisms in place which identify and sort out defective products?","11.  Hat Ihr Unternehmen Kontrollmechanismen implementiert, die fehlerhafte Produkte identifizieren und aussortieren?","您公司是否有相应的控制机制来识别和处理有问题的产品？","11.  Est-ce que votre entreprise dispose de mécanismes de contrôle en place pour identifier et trier les produits défectueux ?","11.  क्या आपकी कंपनी के पास नियंत्रण तंत्र है जो दोषपूर्ण उत्पादों की पहचान और समाधान करता है?","11.  A sua empresa possui mecanismos de controlo que identificam e resolvem produtos defeituosos?","11. La tua azienda ha meccanismi di controllo in atto che identificano e risolvono i prodotti difettosi?"]
[null,3.5230000000000001,"12.  Does your company have a formal corrective action program in place?","12.  Hat Ihr Unternehmen ein formales Korrekturmaßnahmenprogramm implementiert?","你公司是否有正式的纠正措施计划？","12.  Est-ce que votre entreprise dispose d'un programme formel de correction des actions en place ?","12.  क्या आपकी कंपनी के पास औपचारिक सुधारात्मक कार्रवाई कार्यक्रम है?","12.  A sua empresa tem um programa formal de ação corretiva implementado?","12. La tua azienda ha un programma formale di azioni correttive in atto?"]
[null,3.524,"13.  Is Human Factor considered during investigation and improvement plans?","13.  Wird der menschliche Faktor bei Untersuchungen und Verbesserungsplänen berücksichtigt?","人为因素在调查和改进计划中是否被考虑？","13.  Est-ce que le facteur humain est pris en compte lors des enquêtes et des plans d'amélioration ?","13.  क्या जांच और सुधार योजनाओं के दौरान मानव कारक पर विचार किया जाता है?","13.  O Factor Humano é considerado durante a investigação e planos de melhorias?","13. La considerazione del fattore umano avviene durante le indagini e i piani di miglioramento?"]
[null,3.5249999999999999,"14.  Does your company perform a cause analysis and defines preventive measures?","14.  Führt Ihr Unternehmen eine Ursachenanalyse durch und definiert präventive Maßnahmen?","公司是否进行原因分析并制定预防措施？","14.  Est-ce que votre entreprise effectue une analyse des causes et définit des mesures préventives ?","14.  क्या आपकी कंपनी एक कारण विश्लेषण करती है और निवारक उपायों को परिभाषित करती है?","14.  A sua companhia efectua uma análise de causa e define medições de prevenção? ","14. La tua azienda effettua un'analisi delle cause e definisce misure preventive?"]
[null,3.5259999999999998,"15.  Does your company have a calibration system in place that is in accordance with international standards?","15.  Hat Ihr Unternehmen ein Kalibriersystem gemäß internationalen Standards implementiert?","贵公司是否已经建立了符合国际标准的校准体系？","15.  Est-ce que votre entreprise dispose d'un système d'étalonnage conforme aux normes internationales ?","15.  क्या आपकी कंपनी के पास एक अंशांकन प्रणाली है जो अंतरराष्ट्रीय मानकों के अनुसार है?","15.  A sua empresa tem um sistema de calibração implementado, de acordo com os padrões internacionais?","15. La tua azienda ha un sistema di taratura conforme agli standard internazionali?"]
[null,3.5270000000000001,"16.  Does your company agree to provide acceptance reports if necessary?","16.  Ist Ihr Unternehmen bereit, bei Bedarf Abnahmeprotokolle zur Verfügung zu stellen?","贵公司是否同意在必要时提供验收报告？","16.  Est-ce que votre entreprise accepte de fournir des rapports d'acceptation si nécessaire ?","16.  यदि आवश्यक हो तो क्या आपकी कंपनी स्वीकृति रिपोर्ट प्रदान करने के लिए सहमत है?","16.  A sua companhia concorda em fornecer relatórios de recepção se necessário?","16. La vostra azienda accetta di fornire relazioni di accettazione se necessario?"]
[null,3.528,"17.  Has your company defined procedures regarding environmental and are they implemented on-site?","17.  Hat Ihr Unternehmen Verfahren bezüglich der Umwelt definiert und werden sie vor Ort umgesetzt?","贵公司是否已经制定了有关环境的程序，并在现场实施？","17.  Votre entreprise a-t-elle défini des procédures concernant l'environnement et sont-elles mises en œuvre sur place ?","17.  क्या आपकी कंपनी ने पर्यावरण के संबंध में प्रक्रियाओं को परिभाषित किया है और क्या उन्हें साइट पर लागू किया गया है?","17.  A sua empresa definiu procedimentos relativos ao ambiente e estão eles implementados no local?","17. La tua azienda ha definito procedure riguardanti l'ambiente e sono esse attuate in loco?"]
[null,3.5289999999999999,"18.  Has your company defined procedures regarding occupational health and are they implemented on-site?","18.  Hat Ihr Unternehmen Verfahren bezüglich der Arbeitssicherheit definiert und werden sie vor Ort umgesetzt?","公司是否已经制定了有关职业健康的程序，并且在现场实施了呢？","18.  Votre entreprise a-t-elle défini des procédures concernant la santé au travail et sont-elles mises en œuvre sur site ?","18.  क्या आपकी कंपनी ने व्यावसायिक स्वास्थ्य के संबंध में प्रक्रियाओं को परिभाषित किया है और क्या उन्हें साइट पर लागू किया गया है?","18.  A sua empresa definiu procedimentos relativos à saúde ocupacional e estão implementados no local?","18. La tua azienda ha definito procedure riguardanti la salute sul lavoro e sono implementate in loco?"]
[null,3.53,"19.  Has your company defined procedures regarding safety aspects and are they implemented on-site?","19.  Hat Ihr Unternehmen Verfahren in Bezug auf Sicherheitsaspekte definiert und werden sie vor Ort umgesetzt?","公司是否已经明确了有关安全方面的程序，并且在现场实施？","19.  Est-ce que votre entreprise a défini des procédures concernant les aspects de sécurité et sont-elles mises en œuvre sur site ?","19.  क्या आपकी कंपनी ने सुरक्षा पहलुओं के संबंध में प्रक्रियाओं को परिभाषित किया है और क्या उन्हें साइट पर लागू किया गया है?","19.  A sua empresa definiu procedimentos relativos a questões de segurança e estão eles implementados no local?","19. La tua azienda ha definito procedure riguardanti gli aspetti di sicurezza e sono esse attuate in loco?"]
[null,3.5310000000000001,"20.  Does your company take measures to systematically ensure that your products comply with all requirements which may have an impact on environmental as well as occupational health and safety issues?","20.  Nimmt Ihr Unternehmen Maßnahmen, um systematisch sicherzustellen, dass Ihre Produkte allen Anforderungen entsprechen, die sich auf Umwelt- sowie Arbeitsschutzfragen auswirken können?","贵公司是否采取措施，以确保产品在环境和职业健康安全问题上符合所有可能影响的要求？","20.  Est-ce que votre entreprise prend des mesures pour garantir systématiquement que vos produits respectent toutes les exigences qui pourraient avoir un impact sur l'environnement ainsi que sur la santé et la sécurité au travail ?","20.  क्या आपकी कंपनी व्यवस्थित रूप से यह सुनिश्चित करने के उपाय करती है कि आपके उत्पाद उन सभी आवश्यकताओं का अनुपालन करते हैं जो पर्यावरण के साथ-साथ व्यावसायिक स्वास्थ्य और सुरक्षा के मुद्दों पर प्रभाव डाल सकते हैं?","20.  A sua empresa toma medidas para garantir sistematicamente que os seus produtos cumpram todos os requisitos que possam ter impacto nas questões ambientais e de saúde e segurança ocupacional?","20. La tua azienda adotta misure per garantire sistematicamente che i tuoi prodotti siano conformi a tutti i requisiti che potrebbero influire sulla salute ambientale e sulla sicurezza sul lavoro?"]
[null,3.532,"21.  Does your company have a Risk Mitigation program in place as part of quality management system?","21.  Hat Ihr Unternehmen ein Risikominderungsprogramm im Rahmen des Qualitätsmanagementsystems?","您公司是否已经在质量管理体系中建立了风险缓解计划？","21.  Est-ce que votre entreprise dispose d'un programme de gestion des risques dans le cadre de son système de gestion de la qualité ?","21.  क्या आपकी कंपनी के पास गुणवत्ता प्रबंधन प्रणाली के हिस्से के रूप में जोखिम शमन कार्यक्रम है?","21.  A sua empresa tem um programa de Mitigação de Riscos implementado como parte do sistema de gestão de qualidade?","21. La vostra azienda ha un programma di mitigazione del rischio come parte del sistema di gestione della qualità?"]
[null,3.5329999999999999,"22.  Is effectiveness of companies' risk management system reviewed annually?","22.  Wird die Effektivität des Risikomanagementsystems von Unternehmen jährlich überprüft?","每年是否审查公司的风险管理体系的有效性？","22.  Est-ce que l'efficacité du système de gestion des risques des entreprises est examinée chaque année ?","22.  क्या कंपनियों की जोखिम प्रबंधन प्रणाली की प्रभावशीलता की वार्षिक समीक्षा की जाती है?","22.  A eficácia do sistema de gestão de riscos das empresas é revista anualmente?","22. La revisione annuale dell'efficacia del sistema di gestione del rischio delle aziende avviene?"]
[null,3.5339999999999998,"23.  Does your company have a system to grant the security of information?","23.  Hat Ihr Unternehmen ein System zur Gewährleistung der Informationssicherheit?","贵公司是否有一个保障信息安全的系统？","23.  Votre entreprise dispose-t-elle d'un système pour garantir la sécurité des informations ?","23.  क्या आपकी कंपनी के पास सूचना की सुरक्षा प्रदान करने के लिए एक प्रणाली है?","23.  A sua empresa possui um sistema para garantir a segurança da informação?","23. La tua azienda ha un sistema per garantire la sicurezza delle informazioni?"]
[null,3.5350000000000001,"24.  Does your company agree to a site visit by our auditors and allows access to all relevant records, if necessary?","24.  Ist Ihr Unternehmen damit einverstanden, dass unsere Prüfer einen Standortbesuch durchführen und bei Bedarf Zugang zu allen relevanten Unterlagen erhalten?","贵公司是否同意我们的审计员进行现场访问，并在必要时提供所有相关记录的访问权限？","24.  Est-ce que votre entreprise accepte une visite sur site de nos auditeurs et autorise l'accès à tous les dossiers pertinents, si nécessaire ?","24.  क्या आपकी कंपनी हमारे लेखा परीक्षकों द्वारा साइट विज़िट के लिए सहमत है और यदि आवश्यक हो तो सभी प्रासंगिक रिकॉर्ड तक पहुंच की अनुमति देती है?","24.  A sua empresa concorda com uma visita ao local pelos nossos auditores e permite o acesso a todos os registos relevantes, se necessário?","24. La vostra azienda accetta una visita sul sito da parte dei nostri revisori e consente l'accesso a tutti i documenti pertinenti, se necessario?"]
[null,3.536,"25.  Is your company willing to draw up and enter into a Quality Assurance Agreement with Oerlikon?","25.  Ist Ihr Unternehmen bereit, eine Qualitätsvereinbarung mit Oerlikon zu erstellen und abzuschließen?","把贵公司愿意与奥立孔签订质量保证协议吗？","25.  Est-ce que votre entreprise est disposée à rédiger et à conclure un accord d'assurance qualité avec Oerlikon ?","25.  क्या आपकी कंपनी Oerlikon के साथ गुणवत्ता आश्वासन समझौते को तैयार करने और दर्ज करने के लिए तैयार है?","25.  A sua empresa está disposta a elaborar e celebrar um Acordo de Garantia de Qualidade com a Oerlikon?","25. La vostra azienda è disposta a redigere e stipulare un Accordo di Garanzia della Qualità con Oerlikon?"]
[null,3.5369999999999999,"26.  Does your company have a documented First Article Inspection Report (FAIR) program in place, that includes customer approval on changes?","26.  Hat Ihr Unternehmen ein dokumentiertes First Article Inspection Report (FAIR)-Programm, das die Zustimmung des Kunden zu Änderungen beinhaltet?","您的公司是否已经建立了一个包括客户变更批准的正式的首件检验报告（FAIR）计划？","26.  Votre entreprise dispose-t-elle d'un programme documenté de Rapport d'Inspection du Premier Article (FAIR), incluant l'approbation du client sur les modifications ?","26.  क्या आपकी कंपनी के पास एक प्रलेखित प्रथम लेख निरीक्षण रिपोर्ट (एफएआईआर) कार्यक्रम है, जिसमें परिवर्तनों पर ग्राहक अनुमोदन शामिल है?","26.  A sua empresa tem um programa documentado de Relatório de Inspeção de Primeiro Artigo (FAIR) implementado, que inclui a aprovação do cliente em alterações?","26. La tua azienda ha un programma documentato di First Article Inspection Report (FAIR) in atto, che include l'approvazione del cliente sulle modifiche?"]
[null,3.5379999999999998,"27.  Does your company have a defined process for handling data and information (information security)?","27.  Hat Ihr Unternehmen einen definierten Prozess zur Behandlung von Daten und Informationen (Informationssicherheit)?","您公司是否有明确的处理数据和信息（信息安全）的流程？","27.  Votre entreprise dispose-t-elle d'un processus défini pour gérer les données et les informations (sécurité de l'information) ?","27.  क्या आपकी कंपनी के पास डेटा और सूचना (सूचना सुरक्षा) को संभालने के लिए एक परिभाषित प्रक्रिया है?","27.  A sua empresa tem um processo definido para lidar com dados e informações (segurança da informação)?","27. La tua azienda ha un processo definito per gestire i dati e le informazioni (sicurezza delle informazioni)?"]
[null,3.5390000000000001,"28.  Is your company certified by an external organization for sustainability?","28.  Ist Ihr Unternehmen von einer externen Organisation für Nachhaltigkeit zertifiziert?","贵公司是否获得外部机构的可持续性认证？","28.  Est-ce que votre entreprise est certifiée par une organisation externe pour la durabilité ?","28.  क्या आपकी कंपनी स्थिरता के लिए किसी बाहरी संगठन द्वारा प्रमाणित है?","28.  A sua empresa está certificada por uma organização externa para a sustentabilidade?","28. La vostra azienda è certificata da un'organizzazione esterna per la sostenibilità?"]
[null,3.54,"29.  If your company does not have a sustainability rating yet, is it willing to undergo Sustainability assessment by EcoVadis?","29.  Wenn Ihr Unternehmen noch keine Nachhaltigkeitsbewertung hat, ist es bereit, sich einer Nachhaltigkeitsprüfung durch EcoVadis zu unterziehen?","如果贵公司尚未获得可持续性评级，是否愿意接受EcoVadis的可持续性评估？","29.  Si votre entreprise n'a pas encore de notation en matière de durabilité, est-elle disposée à subir une évaluation de durabilité par EcoVadis ?","29.  यदि आपकी कंपनी के पास अभी तक स्थिरता रेटिंग नहीं है, तो क्या वह इकोवाडिस द्वारा स्थिरता मूल्यांकन से गुजरने के लिए तैयार है?","29.  Se a sua empresa ainda não possui uma classificação de sustentabilidade, está disposta a passar por uma avaliação de sustentabilidade pela EcoVadis?","29. Se la vostra azienda non ha ancora una valutazione sulla sostenibilità, è disposta a sottoporsi a una valutazione di sostenibilità da parte di EcoVadis?"]
[null,3.5409999999999999,"Remarks:","Bemerkungen:","备注：","Remarques :","टिप्पणियां:","Observações:","Osservazioni:"]
[null,3.5419999999999998,"Yes","Ja","是的。","Oui","हाँ","Sim","Si"]
[null,3.5430000000000001,"No","Nein","否","Non","नहीं","Não","No"]
[null,3.544,"Yes            No","Ja             Nein","是             否","Oui            Non","हाँ            नहीं","Sim            Não","Si            No"]
[null,4,"4.     Enclosures","4.     Anlangen","4.     外壳","4.     Pièces jointes ","4.     संलग्नक","4.     Anexos","4.     Allegati"]
[null,4.1100000000000003,"General Payment and Delivery Conditions","Allgemeine Zahlungs- und Lieferbedingungen","一般付款和交货条件","Conditions générales de paiement et de livraison","सामान्य भुगतान और वितरण की स्थिति","Condições gerais de pagamento e entrega","Condizioni di pagamento e consegna generali"]
[null,4.12,"Brochure and Product Documentation","Broschüre und Produktunterlagen","宣传册和产品文档","Brochure et documentation produit","ब्रोशर और उत्पाद दस्तावेज़ीकरण","Brochura e documentação de produto","Opuscolo e documentazione sui prodotti"]
[null,4.13,"References of Completed Projects","Referenzen zu abgeschlossenen Projekten","已完成的项目参考","Références de projets terminés","पूर्ण प्रोजोक्ट्स के संदर्भ","Referências a projetos completados","Riferimenti a progetti completati"]
[null,4.1399999999999997,"Organization Charts","Organigramme","组织结构图","Organigrammes","संगठन चार्ट","Organograma","Organigramma"]
[null,4.1500000000000004,"List of Production Resources","Liste der Produktionsressourcen","生产资源清单","Liste des équipements de production","उत्पादन संसाधनों की सूची","Lista de recursos de produção","Lista delle risorse di produzione"]
[null,4.16,"Annual Report","Jahresbericht","年度报告","Rapport annuel","वार्षिक रिपोर्ट","Relatório anual","Bilancio annuale"]
[null,4.17,"Quality Manual","Qualitätshandbuch","质量手册","Manuel de qualité","गुणवत्ता मैनुअल","Manual de qualidade","Manuale di qualità"]
[null,4.18,"Self-Assessment for Electrical Safety","Selbstbewertung für elektrische Sicherheit","自我评估电气安全","Auto-évaluation de la sécurité électrique","विद्युत सुरक्षा के लिए स्व-मूल्यांकन","Autoavaliação de segurança elétrica","Autovalutazione per la sicurezza dell'impianto elettrico"]
[null,4.1900000000000004,"Additional Business Unit Specific Self Information Survey:","Zusätzliche unternehmensspezifische Selbstbewertungsdaten","附加业务单元特定的自我信息调查：","Données d'auto-évaluation supplémentaires spécifiques à l'entreprise ","अतिरिक्त व्यावसायिक यूनिट विशिष्ट स्वयं सूचना सर्वेक्षण :","Levantamento adicional de autoinformação específica da unidade de negócio","Indagine aggiuntiva su informazioni personali per divisione aziendale"]
[null,4.2,"          Comments:","          Kommentare:","          评论：","          Remarques:","          टिप्पणियाँ:","          Comentários:","          Commenti:"]
[null,5,"5.     Remarks","5.     Bemerkungen","5.     言论:","5.     Remarques","5.     टिप्पणियां","5.     Comentários","5.     Commenti"]
[null,5.0999999999999996,"List of machines & test equipment","Liste der Maschinen & Prüfequipments","设备清单与测试设备","Liste des machines et équipements de test","मशीनों और परीक्षण उपकरणों की सूची","Lista de máquinas e equipamento de teste","Lista delle macchine e dei dispositivi di controllo"]
[null,5.1100000000000003,"Company Name:","Firmenname:","公司名称：","Nom de l'entreprise :","कंपनी का नाम:","Nome da COMPANHIA:","Nome della DITTA:"]
[null,5.12,"Date: ","Datum:","日期：","Date:","दिनांक","Data: ","Data:"]
[null,5.2,"01. Machine(s): \nAttach a separate list if necessary  ","01. Maschine ( n ) beilegen einer seperaten Liste wenn notwendig","机器（们）:\n如有必要，请附上单独的清单。","01. Machine (s):\n     joindre une liste séparée si nécessaire ","01. मशीन (ओं): \nयदि आवश्यक हो तो एक अलग सूची संलग्न करें","01. Máquina(s) Anexar uma lista separada, se necessário ","01. Macchina(e) Allegare un elenco a parte se necessario"]
[null,5.21,"e.g. Drilling & milling center","z. B. Bohr- und Fräszentrum","钻铣中心","p. ex.Centre de perçage et de fraisage","जैसे ड्रिलिंग और मिलिंग सेंटर","por ex. Perfuração e centro de usinagem","Per es. Centro di foratura e fresatura"]
[null,5.2110000000000003,"Machine Type","Maschinentyp","机器类型","Type de machine","मशीन का प्रकार","Tipo da máquina","Tipo di macchina"]
[null,5.2119999999999997,"Tolerance Class","Toleranzklasse","容忍等级","Classe de tolérance","सहिष्णुता वर्ग","Classe de tolerância","Classe di tolleranza"]
[null,5.2130000000000001,"Capacity","Kapazität","容量","Capacité","क्षमता","Capacidade","Capacità"]
[null,5.3,"02. Test equipment:\nAttach a separate list if necessary","02. Prüfequipment beilegen einer separaten Liste wenn notwendig","02 测试设备\n如有需要，请附上单独的清单。","02.Equipement de test:\n     joindre une liste séparée si nécessaire","02. परीक्षण उपकरण:\nयदि आवश्यक हो तो एक अलग सूची संलग्न करें","02.Equipamento de teste Anexar uma lista separada, se necessário","02.Dispositivo di controllo Allegare un elenco a parte se necessario"]
[null,5.3109999999999999,"Measuring equipment Tolerance classes","Messgeräte Toleranzklassen","测量设备公差等级","Appareil de mesure Classes de tolérance","मापने के उपकरण सहिष्णुता कक्षाएं","Equipamento de medição Classes de tolerância","Dispositivo di misurazione Classi di tolleranza"]
[null,5.3120000000000003,"Coordinate measuring machine","Koordinatenmessgerät","坐标测量机","Machine de mesure de coordonnées","समन्वय मापने की मशीन","Máquina de medição de coordenadas","Macchina di misura a coordinate"]
[null,5.3129999999999997,"Reference gauges & Go /No-Go gauges","Referenzlehren und Go/No-Go-Lehren","参考规格和合格规格","Jauges de référence et jauges GO – NoGo","संदर्भ गेज & गो / नो-गो गेज","Calibre de referência & Go – Calibres NoGo","Calibri campione e calibri differenziali"]
[null,5.3140000000000001,"Optical measuring instrument","Optisches Messgerät","光学测量仪器","Appareil de mesure optique","ऑप्टिकल मापने का उपकरण","Instrumento de medição ótica","Apparecchio di misurazione ottico"]
[null,5.3150000000000004,"Temperature-stabilized measuring room","Temperaturstabilisierter Messraum","温度稳定的测量室","Salle de métrologie à température stabilisée","मापने का कमरा जो तापमान-स्थिर है ","Medição de espaço de temperatura estabilizada","Camera metrologica a temperatura costante"]
[null,5.3159999999999998,"Surface roughness measuring instrument","Oberflächenrauheitsmessgerät","表面粗糙度测量仪器","Appareil de mesure de profondeur de rugosité","सतह खुरदरापन मापने का उपकरण","Instrumento de medição da rugosidade da superfície","Apparecchio di misurazione della rugosità superficiale"]
[null,5.3170000000000002,"In-Circuit-Tester","In-Circuit-Tester","电路测试仪","Testeur de circuit","इन-सर्किट-परीक्षक","Verificador de circuito","Tester in-circuit"]
[null,5.3179999999999996,"Electrical measuring instruments","Elektrische Messinstrumente","电气测量仪器","Appareils de mesure électriques","विद्युत माप उपकरण","Instrumentos de medição elétrica","Apparecchi di misurazione elettrici"]
[null,5.319,"Clean room","Sauberer Raum","整洁的房间","Salle blanche","साफ कमरा","Espaço limpo","Camera senza polvere "]
[null,5.32,"Chemical Analytical Procedures","Chemische analytische Verfahren","化学分析程序","Procédures analytiques chimiques","रासायनिक विश्लेषणात्मक प्रक्रियाएं","Procedimentos de análise química","Procedure analitiche chimiche"]
[null,5.3209999999999997,"Particle Size Procedures","Partikelgrößenverfahren","粒度测试程序","Procédures selon la taille des particules","कण आकार प्रक्रियाएं","Procedimentos de tamanho de partículas","Procedure secondo la dimensione delle particelle"]
[null,5.3220000000000001,"Please complete (if necessary, state required test equipment)","Bitte ausfüllen ( wenn nötig fehlende Prüfmittel mit aufnehmen ) ","请填写！（必要时可一起列出这里缺少的检验工具类别项）","Veuillez remplir ( si nécessaire ajouter l'équipement de test manquant ) ","कृपया पूर्ण करें (यदि आवश्यक हो, तो आवश्यक परीक्षण उपकरण बताएं) ","Por favor completar (se necessário, declarar o equipamento de teste requerido) ","Si prega di completare (se necessario, dichiarare anche i dispositivi di controllo mancanti)"]
[null,5.3230000000000004,"Which One?","Welche?","哪一个？","Lequel ?","कौन सा?","Qual?","Quale ?"]
[null,5.3239999999999998,"Which Class?","In welcher Klasse?","哪个班级？","Quelle classe ?","कौन सा वर्ग?","Qual classe ?","Quale classe ?"]
[null,5.3250000000000002,"List procedure Numbers - Attach a separate list if necessary","Listenverfahrensnummern -  Legen Sie bitte ggf. eine gesonderte Liste bei.","列出程序编号 - 如有必要，请附上单独的清单。","Liste de procédures, numéros - Joignez une liste séparée si nécessaire","सूची प्रक्रिया संख्याएँ - यदि आवश्यक हो तो एक अलग सूची संलग्न करें","Lista de Números de procedimento - Anexar uma lista separada, se necessário","Elenco procedura, Numeri - Allegare un elenco separato se necessario"]
[null,5.3259999999999996,"Yes","Ja","是的。","Oui","हाँ","Sim","Si"]
[null,5.327,"No","Nein","否","Non","नहीं","Não","No"]
[null,5.4,"City","Stadt","城市","Ville","शहर","Localidade","Luogo"]
[null,5.41,"Signature","Unterschrift","签名","Signature","हस्ताक्षर","Assinatura ","Firma"]
[null,5.42,"Date","Datum","日期","Date","दिनांक","Data:","Data"]
[null,5.5,"Company Stamp","Firmenstempel","公司印章","Cachet de la société","कंपनी स्टाम्प","Carimbo de empresa","Timbro dell'azienda"]
[null,5.51,"Name and title of signatory in capital letters","Name und Titel des Unterzeichners in Blockbuchstaben","署名人的姓名和职务大写","Nom et titre du signataire en caractères d'imprimerie","बड़े अक्षरों में हस्ताक्षरकर्ता का नाम और शीर्षक","Nome e título  do signatário em letra maiúsculas","Nome e titolo del firmatario in stampatello maiuscolo"]
[null,6,"6.     Internal Assessment ","6.     Interne Bewertung","6.     内部评估 ","6.     Évaluation interne","6.     आंतरिक मूल्यांकन","6.     Avaliação interna","6.     Valutazione interna"]
[null,6.1,"(Oerlikon approval process: a minimum of two signatures is mandatory to ensure four eyes principal)","(Der Oerlikon-Genehmigungsprozess erfordert mindestens zwei Unterschriften, um das Vier-Augen-Prinzip sicherzustellen)","奥尔利康批准流程：确保四目原则，至少需要两位签名。","Le processus d'approbation Oerlikon nécessite un minimum de deux signatures pour garantir le principe des quatre yeux","(Oerlikon अनुमोदन प्रक्रिया: चार आंखों के प्रिंसिपल को सुनिश्चित करने के लिए न्यूनतम दो हस्ताक्षर अनिवार्य हैं)","(O processo de aprovação da Oerlikon: é obrigatório um mínimo de duas assinaturas para garantir o princípio dos quatro olhos)","(Il processo di approvazione Oerlikon richiede almeno due firme obbligatorie per garantire il principio delle quattro occhi)"]
[null,6.12,"Suitability:","Einsatzeignung :","不适合。","Aptitude  :","उपयुक्तता:","Aptidão de uso:","Idoneità:"]
[null,6.13,"Procurement (GTC review is performed by ERP)","Einkauf\t (GTC Prüfung erfolgt durch ERP)","采购（GTC审查由ERP执行）","L'examen de la GTC (gestion des contrats) est effectué par le système ERP","खरीद (जीटीसी समीक्षा ईआरपी द्वारा की जाती है)","Compra  (Verificação GTC é efectuada pelo ERP)","Acquisti (Il controllo GTC viene eseguito da ERP)"]
[null,6.1310000000000002,"Engineering/LCM/ R&D","Engineering/LCM/ R&D","工程/最小公倍数/R&D","Ingénierie/LCM/R&D","इंजीनियरिंग/एलसीएम/ R&D","Engenharia/LCM/R&D","Engineering/LCM/ R&D"]
[null,6.14,"Date","Datum","日期","Date","दिनांक","Data","Data"]
[null,6.15,"Name","Name","名字","Nom","नाम","Nome","Nome"]
[null,6.16,"Signature","Unterschrift","签名","Signature","हस्ताक्षर","Assinatura ","Firma"]
[null,6.17,"Logistic","Logistik ","物流","Logistique","उपस्कर","Logísticas ","Logistica "]
[null,6.1710000000000003,"Supplier Quality","Lieferantenqualität","供应商质量","Qualité du fournisseur","आपूर्तिकर्ता गुणवत्ता","Supplier Quality","Supplier Quality"]
[null,4.3,"Attach Relevent Documents with SSI Form","Senden Sie relevanten Zertifikate mit dem SSI-Formular zu","附上SSI表格的相关文件。","Veuillez joindre les documents pertinents au formulaire SSI","कृपया SSI फॉर्म के साथ संबंधित दस्तावेज़ जोड़ें।","Anexe os documentos relevantes ao formulário SSI","Allegare certificati pertinenti con il modulo SSI"]

{"sheet":"List","index":3,"n_rows":32,"n_cols":17,"rows_kept":32,"cut":false,"hidden":true,"merged":[]}
["Raw_Material","Electrical_Equipment","Standard_Parts_Catalog_Parts","General_Sub_Assemblies_Systems_Components","Mechanical_Components","Mechanical_Drive_Technology","Pneumatics_Hydraulics","Materials_Consumables_Supplies","Non_Production_Material","External_Processing","Thermal_Spray_Products","Metal_Waste_Scrap_and_by_Products",null,null,{"$f":"SSI!D23:F23","v":0},0,0]
["Raw Material-1000","Thermal Spray Powders-2001","Standard Parts / Catalog Parts-3000","General Sub-Assemblies, Systems, Compone-4000","Mechanical Components-5000","Mechanical Drive Technology-6000","Aerospace-7001","Materials, consumables, and supplies-8000","Non-Production Material-8500","External Processing-9000","Thermal Spray products-9700","Scrap  Material for Recycling-9800",null,null,"Filtered List"]
["Engineered System-1001","HVOF Powders-2002","Services-3001","Model, raw material supply-4041","Cast parts-5051","Transmission (without motor)-6061","Industrial Gas Turbine-7002","Machining Accessories-8081","Working materials-8501","Packing materials-9001","Abradables-9701","Tungsten based scrap-9810",null,null,{"$f":"_xlfn._xlws.SORT(_xlfn.UNIQUE( _xlfn.XLOOKUP(List!O1,LIST,List!A2:L40),,TRUE))","v":{"$error":"#N/A"}}]
["Stand Alone System-1002","Thermal Spray Wires-2003","Springs-3010","Thread manufacture / finishing-4042","Plastic-5052","Gearing-6062","Automotive-7003","Heat Treat Supplies-8082","Overhead costs material-8503","Services-9002","Carbides-9702","Aluminium based scrap-9820"]
["Core Component-1003","Braze Materials-2004","Washer, ring-3020","Packages / laps-4043","Ceramic-5053","Belt pulleys-6063","Medical-7004","Misc. Equipment Parts-8083","Office equipment-8504","Others-9003","Metal & Alloys-9703"]
["Key Component-1004","Pack Diffusion Alloys-2005","Bolt, cotter pin, wedge-3030","Supplementary attachments-4044","Sintered parts, permanent magnets, Magne-5054","Belts-6064","Textile-7005","Colors, paints-8084","EDP, telecommunications-8505","Outsourced production-9091","Ceramics-9704"]
["Peripheral Component-1005","Braze Superalloys-2006","Screws, nuts-3031","Trading goods-4045","Machine cutting parts-5055","Couplings-6065","Paper / Print & Steel-7006","General Maintenance-8085","Capital Investments-8506","Surface Treatment-9092","Electronics-9705"]
["Accessory Component-1006","Auxiliary Materials-2007","Pins, nails, hooks, rivets-3032","Other sub-assemblies/systems-4046","Sheet metal parts-5056","Bearings and rollers-6066","Industrial Components-7007","Chemicals-8086","Leasing-8507","Subcontracting-9093","Wires (excl. Carbide based)-9706"]
["Spare Parts-1007","Welding Products-2008","Turnbuckles, shackles-3033","Integrated Modules-4047","Bent parts-5057","Chains, ropes, accessories-6067","Oil / Gas Industry-7008","Technical gases-8087","Shipment / Transportation Costs (850840)-8508","Intercompany Transfer Parts-9094","Braze-9707"]
["Other-1008","Infiltration Matrix Materials-2009","Straps-3034","Sub-Assemblies-4048","Steel structure, chassis, frames,-5058","Brakes-6068","Pneumatics / Hydraulics-7070","Coating Material-8088","Energy-8509","Customer Furnished Parts-9095","Nickel Powders-9708"]
["Wear Part-1009","Electronic Powders-2010","Operating elements (also as per drawing)-3035","Spare parts-4049","Mechanical sub-assemblies-5059","Torque Converter-6069","Pneumatics-7071","Adhesives-8089","Travel-8510","Customer Imposed Parts-9096","Other Auxilliaries-9709"]
["Raw Material-1010","Powder Metallurgy Products-2011","Seals, insulators-3036","Plant Design-4050","Glass-5060","Flange and misc. Transmission components-6070","Hydraulics-7072","Oils, greases, lubricants-8090","Marketing-8520"]
["Cold drawn steel-1011","Electrical Equipment-2020","Pipe accessories, fittings-3040","Tyre Machine-4051","Combs-5061","Sleeve Hub and Wheel-6071","Vacuum components-7073","Welding Supplies-8091","Services-8530"]
["Sheet metal-1012","Motors, converters, fans-2021","Signs, labels, inscriptions-3050","Welding Machineries-4052",null,"Threaded spindle, cardan, angle joints-6072","Vacuum Pumps-7074","Packaging Material-8092","Sales-related service-8580"]
["Bars, profiles-1013","Transformers, chokes, magnets-2022","Hard paper, fabric base laminate, leathe-3060",null,null,"Differentials-6073","Vacuum Valves-7075","Tools, assemblies, models, measuring aid-8093"]
["Heat treated alloy-1014","Electrical switching devices-2023","Wire fabric-3070",null,null,null,"Vacuum Instrumentation-7076"]
["Aluminium-1015","Cables, lines, and cord sets-2024",null,null,null,null,"Vacuum Accessories-7077"]
["Copper, Brass-1016","Electrical installation devices, materia-2025",null,null,null,null,"Vacuum Components-7078"]
["Titanium-1017","Sensor technology, measuring technology-2026",null,null,null,null,"Vacuum Fittings-7079"]
["Tubes-1018","Electronic devices-2027"]
["Forged raw-1019","PC equipment, automation, control-2028"]
["Plastic semi-finished products-1020","Power supply units and power supply-2029"]
["Cold rolled sections, steel strips galva-1021","Electrical sub-assemblies-2030"]
["Wood-1022"]
["Prepreg-1023"]
["Raw Material OTC-1024"]
["Polymers-1025"]
["Fillers-1026"]
["Plasticizers-1027"]
["Vulcanization agents-1028"]
["Additives-1029"]
["Reinforcing materials-1030"]